Workbook

Sheet Main
B10: 2023-03-02
B12: Sheet No. | C12: Template Name | D12: Summary
B13: 1 | C13: Future Intra | D13: For Intraday trading in F&O segment
B14: 2 | C14: Cash Intra | D14: For Intraday trading in cash market segment
B15: 3 | C15: Mid-cap Intra | D15: For Intraday trading in Mid-cap stocks
B16: 4 | C16: Bulk Deals | D16: Reveals Bulk Deals carried on NSE & BSE
B17: 5 | C17: Call Tracker
K27: `

Sheet Future Intra
M5: Back to Main Page
A6: FOR INTRA DAY TRADING | L6: =Main!B10 -> 2023-03-02
A9: Sr.no | B9: Sector | C9: Scrip | D9: Expiry Date | E9: CLOSE RATE | F9: Pivot Point | G9: Supports | J9: Resistances
E10: Point | F10: Point | G10: S1 | H10: S2 | I10: S3 | J10: R1 | K10: R2 | L10: R3 | M10: HIGH | N10: LOW | O10: OI | P10: % Change in OI
A11: 1 | B11: Index | C11: NIFTY | D11: 2023-03-29 | E11: 17532.70 | F11: 17500.02 | G11: 17450.03 | H11: 17367.37 | I11: 17317.38 | J11: 17582.68 | K11: 17632.67 | L11: 17715.33 | M11: 17550 | N11: 17417.35 | O11: 13309950 | P11: -1.71%
A12: 2 | B12: Index | C12: BANKNIFTY | D12: 2023-03-29 | E12: 40910.45 | F12: 40791.93 | G12: 40640.92 | H12: 40371.38 | I12: 40220.37 | J12: 41061.47 | K12: 41212.48 | L12: 41482.02 | M12: 40942.95 | N12: 40522.4 | O12: 4759700 | P12: 0.97%
A13: 3 | B13: Index | C13: FINNIFTY | D13: 2023-03-28 | E13: 18194.75 | F13: 18179.93 | G13: 18141.57 | H13: 18088.38 | I13: 18050.02 | J13: 18233.12 | K13: 18271.48 | L13: 18324.67 | M13: 18218.3 | N13: 18126.75 | O13: 15480 | P13: -30.65%
A14: 4 | B14: Index | C14: MIDCPNIFTY | D14: 2023-03-28 | E14: 7282.85 | F14: 2427.62 | G14: 4855.23 | H14: 2427.62 | I14: 4855.23 | J14: 4855.23 | K14: 2427.62 | L14: 4855.23 | M14: 0 | N14: 0 | O14: 0
A15: 5 | B15: Chemical | C15: AARTIIND | D15: 2023-03-29 | E15: 542.10 | F15: 539.20 | G15: 535.25 | H15: 528.40 | I15: 524.45 | J15: 546.05 | K15: 550.00 | L15: 556.85 | M15: 543.15 | N15: 532.35 | O15: 4178600 | P15: 0.33%
A16: 6 | B16: Capital_Goods | C16: ABB | D16: 2023-03-29 | E16: 3318.25 | F16: 3286.55 | G16: 3245.50 | H16: 3172.75 | I16: 3131.70 | J16: 3359.30 | K16: 3400.35 | L16: 3473.10 | M16: 3327.6 | N16: 3213.8 | O16: 1530250 | P16: 4.63%
A17: 7 | B17: Pharma | C17: ABBOTINDIA | D17: 2023-03-29 | E17: 20527.00 | F17: 20504.88 | G17: 20272.37 | H17: 20017.73 | I17: 19785.22 | J17: 20759.52 | K17: 20992.03 | L17: 21246.67 | M17: 20737.4 | N17: 20250.25 | O17: 48200 | P17: 1.01%
A18: 8 | B18: Others | C18: ABCAPITAL | D18: 2023-03-29 | E18: 152.95 | F18: 150.82 | G18: 148.13 | H18: 143.32 | I18: 140.63 | J18: 155.63 | K18: 158.32 | L18: 163.13 | M18: 153.5 | N18: 146 | O18: 32529600 | P18: 6.28%
A19: 9 | B19: Textile | C19: ABFRL | D19: 2023-03-29 | E19: 236.45 | F19: 234.80 | G19: 232.65 | H19: 228.85 | I19: 226.70 | J19: 238.60 | K19: 240.75 | L19: 244.55 | M19: 236.95 | N19: 231 | O19: 20802600 | P19: -1.00%
A20: 10 | B20: Cement | C20: ACC | D20: 2023-03-29 | E20: 1780.30 | F20: 1771.20 | G20: 1756.40 | H20: 1732.50 | I20: 1717.70 | J20: 1795.10 | K20: 1809.90 | L20: 1833.80 | M20: 1786 | N20: 1747.3 | O20: 4777750 | P20: 0.59%
A21: 11 | B21: Others | C21: ADANIENT | D21: 2023-03-29 | E21: 1571.55 | F21: 1521.40 | G21: 1455.80 | H21: 1340.05 | I21: 1274.45 | J21: 1637.15 | K21: 1702.75 | L21: 1818.50 | M21: 1587 | N21: 1405.65 | O21: 14522250 | P21: 12.60%
A22: 12 | B22: Others | C22: ADANIPORTS | D22: 2023-03-29 | E22: 605.00 | F22: 606.75 | G22: 595.00 | H22: 585.00 | I22: 573.25 | J22: 616.75 | K22: 628.50 | L22: 638.50 | M22: 618.5 | N22: 596.75 | O22: 46996875 | P22: -0.59%
A23: 13 | B23: Pharma | C23: ALKEM | D23: 2023-03-29 | E23: 3138.95 | F23: 3162.47 | G23: 3108.48 | H23: 3078.02 | I23: 3024.03 | J23: 3192.93 | K23: 3246.92 | L23: 3277.38 | M23: 3216.45 | N23: 3132 | O23: 475200 | P23: 4.16%
A24: 14 | B24: Cement | C24: AMBUJACEM | D24: 2023-03-29 | E24: 356.25 | F24: 353.50 | G24: 349.60 | H24: 342.95 | I24: 339.05 | J24: 360.15 | K24: 364.05 | L24: 370.70 | M24: 357.4 | N24: 346.85 | O24: 63891000 | P24: 1.67%
A25: 15 | B25: Others | C25: APOLLOHOSP | D25: 2023-03-29 | E25: 4430.55 | F25: 4419.53 | G25: 4376.07 | H25: 4321.58 | I25: 4278.12 | J25: 4474.02 | K25: 4517.48 | L25: 4571.97 | M25: 4463 | N25: 4365.05 | O25: 1427750 | P25: -1.81%
A26: 16 | B26: Automobile | C26: APOLLOTYRE | D26: 2023-03-29 | E26: 317.35 | F26: 316.35 | G26: 314.20 | H26: 311.05 | I26: 308.90 | J26: 319.50 | K26: 321.65 | L26: 324.80 | M26: 318.5 | N26: 313.2 | O26: 11763500 | P26: 1.39%
A27: 17 | B27: Automobile | C27: ASHOKLEY | D27: 2023-03-29 | E27: 144.60 | F27: 145.33 | G27: 143.37 | H27: 142.13 | I27: 140.17 | J27: 146.57 | K27: 148.53 | L27: 149.77 | M27: 147.3 | N27: 144.1 | O27: 62430000 | P27: 0.61%
A28: 18 | B28: FMCG | C28: ASIANPAINT | D28: 2023-03-29 | E28: 2853.30 | F28: 2851.27 | G28: 2833.53 | H28: 2813.77 | I28: 2796.03 | J28: 2871.03 | K28: 2888.77 | L28: 2908.53 | M28: 2869 | N28: 2831.5 | O28: 7207200 | P28: -2.33%
A29: 19 | B29: Others | C29: ASTRAL | D29: 2023-03-29 | E29: 1913.35 | F29: 1918.65 | G29: 1896.90 | H29: 1880.45 | I29: 1858.70 | J29: 1935.10 | K29: 1956.85 | L29: 1973.30 | M29: 1940.4 | N29: 1902.2 | O29: 1882100 | P29: 0.07%
A30: 20 | B30: Others | C30: ATUL | D30: 2023-03-29 | E30: 7132.90 | F30: 7131.50 | G30: 7073.10 | H30: 7013.30 | I30: 6954.90 | J30: 7191.30 | K30: 7249.70 | L30: 7309.50 | M30: 7189.9 | N30: 7071.7 | O30: 173175 | P30: -1.28%
A31: 21 | B31: Banking | C31: AUBANK | D31: 2023-03-29 | E31: 605.15 | F31: 600.70 | G31: 593.15 | H31: 581.15 | I31: 573.60 | J31: 612.70 | K31: 620.25 | L31: 632.25 | M31: 608.25 | N31: 588.7 | O31: 11074000 | P31: 1.87%
A32: 22 | B32: Pharma | C32: AUROPHARMA | D32: 2023-03-29 | E32: 465.90 | F32: 463.85 | G32: 459.70 | H32: 453.50 | I32: 449.35 | J32: 470.05 | K32: 474.20 | L32: 480.40 | M32: 468 | N32: 457.65 | O32: 14054000 | P32: 0.62%
A33: 23 | B33: Banking | C33: AXISBANK | D33: 2023-03-29 | E33: 868.70 | F33: 863.52 | G33: 854.98 | H33: 841.27 | I33: 832.73 | J33: 877.23 | K33: 885.77 | L33: 899.48 | M33: 872.05 | N33: 849.8 | O33: 47521200 | P33: -4.10%
A34: 24 | B34: Automobile | C34: BAJAJ-AUTO | D34: 2023-03-29 | E34: 3744.80 | F34: 3718.77 | G34: 3675.88 | H34: 3606.97 | I34: 3564.08 | J34: 3787.68 | K34: 3830.57 | L34: 3899.48 | M34: 3761.65 | N34: 3649.85 | O34: 1169500 | P34: -7.62%
A35: 25 | B35: Finance | C35: BAJAJFINSV | D35: 2023-03-29 | E35: 1353.55 | F35: 1354.68 | G35: 1340.52 | H35: 1327.48 | I35: 1313.32 | J35: 1367.72 | K35: 1381.88 | L35: 1394.92 | M35: 1368.85 | N35: 1341.65 | O35: 10123000 | P35: 0.89%
A36: 26 | B36: Finance | C36: BAJFINANCE | D36: 2023-03-29 | E36: 6198.20 | F36: 6194.52 | G36: 6154.28 | H36: 6110.37 | I36: 6070.13 | J36: 6238.43 | K36: 6278.67 | L36: 6322.58 | M36: 6234.75 | N36: 6150.6 | O36: 4765125 | P36: 0.93%
A37: 27 | B37: Automobile | C37: BALKRISIND | D37: 2023-03-29 | E37: 2060.15 | F37: 2049.95 | G37: 2033.90 | H37: 2007.65 | I37: 1991.60 | J37: 2076.20 | K37: 2092.25 | L37: 2118.50 | M37: 2066 | N37: 2023.7 | O37: 1700700 | P37: -1.31%
A38: 28 | B38: Others | C38: BALRAMCHIN | D38: 2023-03-29 | E38: 364.20 | F38: 362.65 | G38: 359.90 | H38: 355.60 | I38: 352.85 | J38: 366.95 | K38: 369.70 | L38: 374.00 | M38: 365.4 | N38: 358.35 | O38: 6004800 | P38: -1.24%
A39: 29 | B39: Banking | C39: BANDHANBNK | D39: 2023-03-29 | E39: 236.65 | F39: 235.22 | G39: 232.83 | H39: 229.02 | I39: 226.63 | J39: 239.03 | K39: 241.42 | L39: 245.23 | M39: 237.6 | N39: 231.4 | O39: 37004400 | P39: -0.73%
A40: 30 | B40: Banking | C40: BANKBARODA | D40: 2023-03-29 | E40: 165.50 | F40: 163.25 | G40: 160.65 | H40: 155.80 | I40: 153.20 | J40: 168.10 | K40: 170.70 | L40: 175.55 | M40: 165.85 | N40: 158.4 | O40: 103065300 | P40: -5.20%
A41: 31 | B41: FMCG | C41: BATAINDIA | D41: 2023-03-29 | E41: 1427.45 | F41: 1424.15 | G41: 1417.70 | H41: 1407.95 | I41: 1401.50 | J41: 1433.90 | K41: 1440.35 | L41: 1450.10 | M41: 1430.6 | N41: 1414.4 | O41: 2859175 | P41: 5.61%
A42: 32 | B42: Capital_Goods | C42: BEL | D42: 2023-03-29 | E42: 97.40 | F42: 96.73 | G42: 95.92 | H42: 94.43 | I42: 93.62 | J42: 98.22 | K42: 99.03 | L42: 100.52 | M42: 97.55 | N42: 95.25 | O42: 100126200 | P42: 1.25%
A43: 33 | B43: FMCG | C43: BERGEPAINT | D43: 2023-03-29 | E43: 579.15 | F43: 579.38 | G43: 573.87 | H43: 568.58 | I43: 563.07 | J43: 584.67 | K43: 590.18 | L43: 595.47 | M43: 584.9 | N43: 574.1 | O43: 7031200 | P43: 1.22%
A44: 34 | B44: Automobile | C44: BHARATFORG | D44: 2023-03-29 | E44: 829.35 | F44: 827.23 | G44: 822.12 | H44: 814.88 | I44: 809.77 | J44: 834.47 | K44: 839.58 | L44: 846.82 | M44: 832.35 | N44: 820 | O44: 7042000 | P44: 1.18%
A45: 35 | B45: Telecom | C45: BHARTIARTL | D45: 2023-03-29 | E45: 755.55 | F45: 753.32 | G45: 748.03 | H45: 740.52 | I45: 735.23 | J45: 760.83 | K45: 766.12 | L45: 773.63 | M45: 758.6 | N45: 745.8 | O45: 43619250 | P45: -0.98%
A46: 36 | B46: Capital_Goods | C46: BHEL | D46: 2023-03-29 | E46: 73.15 | F46: 72.08 | G46: 70.87 | H46: 68.58 | I46: 67.37 | J46: 74.37 | K46: 75.58 | L46: 77.87 | M46: 73.3 | N46: 69.8 | O46: 73993500 | P46: -2.11%
A47: 37 | B47: Pharma | C47: BIOCON | D47: 2023-03-29 | E47: 228.50 | F47: 230.12 | G47: 226.43 | H47: 224.37 | I47: 220.68 | J47: 232.18 | K47: 235.87 | L47: 237.93 | M47: 233.8 | N47: 228.05 | O47: 35702900 | P47: 1.68%
A48: 38 | B48: Automobile | C48: BOSCHLTD | D48: 2023-03-29 | E48: 18342.70 | F48: 18263.63 | G48: 18102.27 | H48: 17861.83 | I48: 17700.47 | J48: 18504.07 | K48: 18665.43 | L48: 18905.87 | M48: 18425 | N48: 18023.2 | O48: 148150 | P48: 0.27%
A49: 39 | B49: Oil_Gas | C49: BPCL | D49: 2023-03-29 | E49: 318.10 | F49: 319.15 | G49: 316.35 | H49: 314.60 | I49: 311.80 | J49: 320.90 | K49: 323.70 | L49: 325.45 | M49: 321.95 | N49: 317.4 | O49: 15514200 | P49: 3.71%
A50: 40 | B50: FMCG | C50: BRITANNIA | D50: 2023-03-29 | E50: 4396.55 | F50: 4420.68 | G50: 4350.92 | H50: 4305.28 | I50: 4235.52 | J50: 4466.32 | K50: 4536.08 | L50: 4581.72 | M50: 4490.45 | N50: 4375.05 | O50: 1399600 | P50: -0.79%
A51: 41 | B51: Technology | C51: BSOFT | D51: 2023-03-29 | E51: 279.15 | F51: 278.75 | G51: 276.75 | H51: 274.35 | I51: 272.35 | J51: 281.15 | K51: 283.15 | L51: 285.55 | M51: 280.75 | N51: 276.35 | O51: 8160000 | P51: 1.75%
A52: 42 | B52: Banking | C52: CANBK | D52: 2023-03-29 | E52: 289.95 | F52: 287.12 | G52: 283.33 | H52: 276.72 | I52: 272.93 | J52: 293.73 | K52: 297.52 | L52: 304.13 | M52: 290.9 | N52: 280.5 | O52: 39374100 | P52: -0.44%
A53: 43 | B53: Finance | C53: CANFINHOME | D53: 2023-03-29 | E53: 580.85 | F53: 579.68 | G53: 576.02 | H53: 571.18 | I53: 567.52 | J53: 584.52 | K53: 588.18 | L53: 593.02 | M53: 583.35 | N53: 574.85 | O53: 3043950 | P53: 3.27%
A54: 44 | B54: Others | C54: CHAMBLFERT | D54: 2023-03-29 | E54: 283.40 | F54: 280.97 | G54: 277.43 | H54: 271.47 | I54: 267.93 | J54: 286.93 | K54: 290.47 | L54: 296.43 | M54: 284.5 | N54: 275 | O54: 4782000 | P54: -2.54%
A55: 45 | B55: Finance | C55: CHOLAFIN | D55: 2023-03-29 | E55: 770.00 | F55: 768.25 | G55: 761.50 | H55: 753.00 | I55: 746.25 | J55: 776.75 | K55: 783.50 | L55: 792.00 | M55: 775 | N55: 759.75 | O55: 11036250 | P55: -0.14%
A56: 46 | B56: Pharma | C56: CIPLA | D56: 2023-03-29 | E56: 905.05 | F56: 907.77 | G56: 899.53 | H56: 894.02 | I56: 885.78 | J56: 913.28 | K56: 921.52 | L56: 927.03 | M56: 916 | N56: 902.25 | O56: 11895000 | P56: 4.28%
A57: 47 | B57: Others | C57: COALINDIA | D57: 2023-03-29 | E57: 218.45 | F57: 217.22 | G57: 215.33 | H57: 212.22 | I57: 210.33 | J57: 220.33 | K57: 222.22 | L57: 225.33 | M57: 219.1 | N57: 214.1 | O57: 40479600 | P57: -3.77%
A58: 48 | B58: Technology | C58: COFORGE | D58: 2023-03-29 | E58: 4319.90 | F58: 4301.25 | G58: 4273.45 | H58: 4227.00 | I58: 4199.20 | J58: 4347.70 | K58: 4375.50 | L58: 4421.95 | M58: 4329.05 | N58: 4254.8 | O58: 975000 | P58: 4.20%
A59: 49 | B59: FMCG | C59: COLPAL | D59: 2023-03-29 | E59: 1486.70 | F59: 1484.73 | G59: 1478.17 | H59: 1469.63 | I59: 1463.07 | J59: 1493.27 | K59: 1499.83 | L59: 1508.37 | M59: 1491.3 | N59: 1476.2 | O59: 1864450 | P59: 0.62%
A60: 50 | B60: Others | C60: CONCOR | D60: 2023-03-29 | E60: 603.20 | F60: 600.77 | G60: 596.58 | H60: 589.97 | I60: 585.78 | J60: 607.38 | K60: 611.57 | L60: 618.18 | M60: 604.95 | N60: 594.15 | O60: 9731000 | P60: -2.17%
A61: 51 | B61: Others | C61: COROMANDEL | D61: 2023-03-29 | E61: 919.90 | F61: 915.85 | G61: 908.80 | H61: 897.70 | I61: 890.65 | J61: 926.95 | K61: 934.00 | L61: 945.10 | M61: 922.9 | N61: 904.75 | O61: 1767500 | P61: 3.06%
A62: 52 | B62: Capital_Goods | C62: CROMPTON | D62: 2023-03-29 | E62: 311.50 | F62: 310.10 | G62: 307.90 | H62: 304.30 | I62: 302.10 | J62: 313.70 | K62: 315.90 | L62: 319.50 | M62: 312.3 | N62: 306.5 | O62: 5896500 | P62: -1.01%
A63: 53 | B63: Banking | C63: CUB | D63: 2023-03-29 | E63: 142.35 | F63: 141.27 | G63: 140.03 | H63: 137.72 | I63: 136.48 | J63: 143.58 | K63: 144.82 | L63: 147.13 | M63: 142.5 | N63: 138.95 | O63: 11890000 | P63: -1.12%
A64: 54 | B64: Capital_Goods | C64: CUMMINSIND | D64: 2023-03-29 | E64: 1610.60 | F64: 1600.32 | G64: 1584.68 | H64: 1558.77 | I64: 1543.13 | J64: 1626.23 | K64: 1641.87 | L64: 1667.78 | M64: 1615.95 | N64: 1574.4 | O64: 2909400 | P64: 2.15%
A65: 55 | B65: FMCG | C65: DABUR | D65: 2023-03-29 | E65: 530.80 | F65: 532.72 | G65: 527.03 | H65: 523.27 | I65: 517.58 | J65: 536.48 | K65: 542.17 | L65: 545.93 | M65: 538.4 | N65: 528.95 | O65: 10585000 | P65: 6.41%
A66: 56 | B66: Cement | C66: DALBHARAT | D66: 2023-03-29 | E66: 1881.65 | F66: 1869.33 | G66: 1852.32 | H66: 1822.98 | I66: 1805.97 | J66: 1898.67 | K66: 1915.68 | L66: 1945.02 | M66: 1886.35 | N66: 1840 | O66: 1948000 | P66: 1.70%
A67: 57 | B67: Chemical | C67: DEEPAKNTR | D67: 2023-03-29 | E67: 1852.05 | F67: 1836.13 | G67: 1815.87 | H67: 1779.68 | I67: 1759.42 | J67: 1872.32 | K67: 1892.58 | L67: 1928.77 | M67: 1856.4 | N67: 1799.95 | O67: 1442000 | P67: 0.03%
A68: 58 | B68: Others | C68: DELTACORP | D68: 2023-03-29 | E68: 196.85 | F68: 194.08 | G68: 190.22 | H68: 183.58 | I68: 179.72 | J68: 200.72 | K68: 204.58 | L68: 211.22 | M68: 197.95 | N68: 187.45 | O68: 16492000 | P68: -9.16%
A69: 59 | B69: Pharma | C69: DIVISLAB | D69: 2023-03-29 | E69: 2858.95 | F69: 2854.23 | G69: 2838.27 | H69: 2817.58 | I69: 2801.62 | J69: 2874.92 | K69: 2890.88 | L69: 2911.57 | M69: 2870.2 | N69: 2833.55 | O69: 3081600 | P69: 0.30%
A70: 60 | B70: Others | C70: DIXON | D70: 2023-03-29 | E70: 2926.10 | F70: 2936.27 | G70: 2877.68 | H70: 2829.27 | I70: 2770.68 | J70: 2984.68 | K70: 3043.27 | L70: 3091.68 | M70: 2994.85 | N70: 2887.85 | O70: 746875 | P70: -16.63%
A71: 61 | B71: Realty | C71: DLF | D71: 2023-03-29 | E71: 357.00 | F71: 356.13 | G71: 353.37 | H71: 349.73 | I71: 346.97 | J71: 359.77 | K71: 362.53 | L71: 366.17 | M71: 358.9 | N71: 352.5 | O71: 44347050 | P71: -1.69%
A72: 62 | B72: Pharma | C72: DRREDDY | D72: 2023-03-29 | E72: 4363.40 | F72: 4350.80 | G72: 4328.65 | H72: 4293.90 | I72: 4271.75 | J72: 4385.55 | K72: 4407.70 | L72: 4442.45 | M72: 4372.95 | N72: 4316.05 | O72: 2165875 | P72: -0.16%
A73: 63 | B73: Automobile | C73: EICHERMOT | D73: 2023-03-29 | E73: 3155.35 | F73: 3141.13 | G73: 3122.37 | H73: 3089.38 | I73: 3070.62 | J73: 3174.12 | K73: 3192.88 | L73: 3225.87 | M73: 3159.9 | N73: 3108.15 | O73: 3225075 | P73: 3.20%
A74: 64 | B74: Automobile | C74: ESCORTS | D74: 2023-03-29 | E74: 2052.15 | F74: 2040.67 | G74: 2021.33 | H74: 1990.52 | I74: 1971.18 | J74: 2071.48 | K74: 2090.82 | L74: 2121.63 | M74: 2060 | N74: 2009.85 | O74: 1450350 | P74: 4.60%
A75: 65 | B75: Automobile | C75: EXIDEIND | D75: 2023-03-29 | E75: 179.55 | F75: 178.37 | G75: 176.93 | H75: 174.32 | I75: 172.88 | J75: 180.98 | K75: 182.42 | L75: 185.03 | M75: 179.8 | N75: 175.75 | O75: 18414000 | P75: -3.93%
A76: 66 | B76: Banking | C76: FEDERALBNK | D76: 2023-03-29 | E76: 134.75 | F76: 133.35 | G76: 131.55 | H76: 128.35 | I76: 126.55 | J76: 136.55 | K76: 138.35 | L76: 141.55 | M76: 135.15 | N76: 130.15 | O76: 66205000 | P76: 0.04%
A77: 67 | B77: Technology | C77: FSL | D77: 2023-03-29 | E77: 114.40 | F77: 114.32 | G77: 113.68 | H77: 112.97 | I77: 112.33 | J77: 115.03 | K77: 115.67 | L77: 116.38 | M77: 114.95 | N77: 113.6 | O77: 15579200 | P77: -2.03%
A78: 68 | B78: Oil_Gas | C78: GAIL | D78: 2023-03-29 | E78: 104.15 | F78: 103.73 | G78: 103.22 | H78: 102.28 | I78: 101.77 | J78: 104.67 | K78: 105.18 | L78: 106.12 | M78: 104.25 | N78: 102.8 | O78: 72550350 | P78: 1.48%
A79: 69 | B79: Pharma | C79: GLENMARK | D79: 2023-03-29 | E79: 430.35 | F79: 429.47 | G79: 425.43 | H79: 420.52 | I79: 416.48 | J79: 434.38 | K79: 438.42 | L79: 443.33 | M79: 433.5 | N79: 424.55 | O79: 4582000 | P79: -0.60%
A80: 70 | B80: Infrastructure | C80: GMRINFRA | D80: 2023-03-29 | E80: 38.60 | F80: 38.50 | G80: 38.25 | H80: 37.90 | I80: 37.65 | J80: 38.85 | K80: 39.10 | L80: 39.45 | M80: 38.75 | N80: 38.15 | O80: 121882500 | P80: -1.04%
A81: 71 | B81: Others | C81: GNFC | D81: 2023-03-29 | E81: 545.60 | F81: 540.10 | G81: 529.75 | H81: 513.90 | I81: 503.55 | J81: 555.95 | K81: 566.30 | L81: 582.15 | M81: 550.45 | N81: 524.25 | O81: 8087300 | P81: -8.93%
A82: 72 | B82: FMCG | C82: GODREJCP | D82: 2023-03-29 | E82: 917.95 | F82: 923.22 | G82: 907.63 | H82: 897.32 | I82: 881.73 | J82: 933.53 | K82: 949.12 | L82: 959.43 | M82: 938.8 | N82: 912.9 | O82: 5216000 | P82: 0.95%
A83: 73 | B83: Realty | C83: GODREJPROP | D83: 2023-03-29 | E83: 1123.90 | F83: 1118.63 | G83: 1108.27 | H83: 1092.63 | I83: 1082.27 | J83: 1134.27 | K83: 1144.63 | L83: 1160.27 | M83: 1129 | N83: 1103 | O83: 4604450 | P83: -1.10%
A84: 74 | B84: Pharma | C84: GRANULES | D84: 2023-03-29 | E84: 285.15 | F84: 284.28 | G84: 281.87 | H84: 278.58 | I84: 276.17 | J84: 287.57 | K84: 289.98 | L84: 293.27 | M84: 286.7 | N84: 281 | O84: 6780000 | P84: -0.26%
A85: 75 | B85: Cement | C85: GRASIM | D85: 2023-03-29 | E85: 1600.00 | F85: 1595.00 | G85: 1584.25 | H85: 1568.50 | I85: 1557.75 | J85: 1610.75 | K85: 1621.50 | L85: 1637.25 | M85: 1605.75 | N85: 1579.25 | O85: 9272475 | P85: 0.22%
A86: 76 | B86: Oil_Gas | C86: GUJGASLTD | D86: 2023-03-29 | E86: 515.10 | F86: 513.95 | G86: 510.85 | H86: 506.60 | I86: 503.50 | J86: 518.20 | K86: 521.30 | L86: 525.55 | M86: 517.05 | N86: 509.7 | O86: 4398750 | P86: 14.70%
A87: 77 | B87: Others | C87: HAL | D87: 2023-03-29 | E87: 2683.60 | F87: 2650.53 | G87: 2613.07 | H87: 2542.53 | I87: 2505.07 | J87: 2721.07 | K87: 2758.53 | L87: 2829.07 | M87: 2688 | N87: 2580 | O87: 3005400 | P87: -1.97%
A88: 78 | B88: Capital_Goods | C88: HAVELLS | D88: 2023-03-29 | E88: 1223.15 | F88: 1217.70 | G88: 1209.50 | H88: 1195.85 | I88: 1187.65 | J88: 1231.35 | K88: 1239.55 | L88: 1253.20 | M88: 1225.9 | N88: 1204.05 | O88: 4847000 | P88: 1.53%
A89: 79 | B89: Technology | C89: HCLTECH | D89: 2023-03-29 | E89: 1105.50 | F89: 1100.05 | G89: 1092.00 | H89: 1078.50 | I89: 1070.45 | J89: 1113.55 | K89: 1121.60 | L89: 1135.10 | M89: 1108.1 | N89: 1086.55 | O89: 14546700 | P89: -0.19%
A90: 80 | B90: Finance | C90: HDFC | D90: 2023-03-29 | E90: 2628.40 | F90: 2628.80 | G90: 2619.65 | H90: 2610.90 | I90: 2601.75 | J90: 2637.55 | K90: 2646.70 | L90: 2655.45 | M90: 2637.95 | N90: 2620.05 | O90: 22992900 | P90: 1.18%
A91: 81 | B91: Finance | C91: HDFCAMC | D91: 2023-03-29 | E91: 1821.55 | F91: 1818.80 | G91: 1804.60 | H91: 1787.65 | I91: 1773.45 | J91: 1835.75 | K91: 1849.95 | L91: 1866.90 | M91: 1833 | N91: 1801.85 | O91: 2842500 | P91: 5.42%
A92: 82 | B92: Banking | C92: HDFCBANK | D92: 2023-03-29 | E92: 1609.45 | F92: 1611.52 | G92: 1604.48 | H92: 1599.52 | I92: 1592.48 | J92: 1616.48 | K92: 1623.52 | L92: 1628.48 | M92: 1618.55 | N92: 1606.55 | O92: 67226500 | P92: 3.04%
A93: 83 | B93: Finance | C93: HDFCLIFE | D93: 2023-03-29 | E93: 492.35 | F93: 490.95 | G93: 488.40 | H93: 484.45 | I93: 481.90 | J93: 494.90 | K93: 497.45 | L93: 501.40 | M93: 493.5 | N93: 487 | O93: 23090100 | P93: 0.59%
A94: 84 | B94: Automobile | C94: HEROMOTOCO | D94: 2023-03-29 | E94: 2447.75 | F94: 2442.78 | G94: 2433.57 | H94: 2419.38 | I94: 2410.17 | J94: 2456.97 | K94: 2466.18 | L94: 2480.37 | M94: 2452 | N94: 2428.6 | O94: 3001200 | P94: 2.92%
A95: 85 | B95: Metals | C95: HINDALCO | D95: 2023-03-29 | E95: 415.90 | F95: 412.68 | G95: 407.72 | H95: 399.53 | I95: 394.57 | J95: 420.87 | K95: 425.83 | L95: 434.02 | M95: 417.65 | N95: 404.5 | O95: 26280800 | P95: -3.05%
A96: 86 | B96: Metals | C96: HINDCOPPER | D96: 2023-03-29 | E96: 103.35 | F96: 101.82 | G96: 99.98 | H96: 96.62 | I96: 94.78 | J96: 105.18 | K96: 107.02 | L96: 110.38 | M96: 103.65 | N96: 98.45 | O96: 20265600 | P96: -2.88%
A97: 87 | B97: Oil_Gas | C97: HINDPETRO | D97: 2023-03-29 | E97: 216.75 | F97: 216.78 | G97: 215.37 | H97: 213.98 | I97: 212.57 | J97: 218.17 | K97: 219.58 | L97: 220.97 | M97: 218.2 | N97: 215.4 | O97: 24486300 | P97: 1.36%
A98: 88 | B98: FMCG | C98: HINDUNILVR | D98: 2023-03-29 | E98: 2475.90 | F98: 2473.35 | G98: 2464.05 | H98: 2452.20 | I98: 2442.90 | J98: 2485.20 | K98: 2494.50 | L98: 2506.35 | M98: 2482.65 | N98: 2461.5 | O98: 9421500 | P98: -0.77%
A99: 89 | B99: Others | C99: HONAUT | D99: 2023-03-29 | E99: 35527.65 | F99: 35288.95 | G99: 34981.90 | H99: 34436.15 | I99: 34129.10 | J99: 35834.70 | K99: 36141.75 | L99: 36687.50 | M99: 35596 | N99: 34743.2 | O99: 25170 | P99: -0.59%
A100: 90 | B100: Finance | C100: IBULHSGFIN | D100: 2023-03-29 | E100: 105.10 | F100: 104.20 | G100: 102.15 | H100: 99.20 | I100: 97.15 | J100: 107.15 | K100: 109.20 | L100: 112.15 | M100: 106.25 | N100: 101.25 | O100: 46348000 | P100: 1.74%
A101: 91 | B101: Banking | C101: ICICIBANK | D101: 2023-03-29 | E101: 860.35 | F101: 860.55 | G101: 855.40 | H101: 850.45 | I101: 845.30 | J101: 865.50 | K101: 870.65 | L101: 875.60 | M101: 865.7 | N101: 855.6 | O101: 75152700 | P101: -0.35%
A102: 92 | B102: Finance | C102: ICICIGI | D102: 2023-03-29 | E102: 1105.70 | F102: 1104.30 | G102: 1098.65 | H102: 1091.60 | I102: 1085.95 | J102: 1111.35 | K102: 1117.00 | L102: 1124.05 | M102: 1109.95 | N102: 1097.25 | O102: 3301400 | P102: -0.45%
A103: 93 | B103: Finance | C103: ICICIPRULI | D103: 2023-03-29 | E103: 410.85 | F103: 408.80 | G103: 405.50 | H103: 400.15 | I103: 396.85 | J103: 414.15 | K103: 417.45 | L103: 422.80 | M103: 412.1 | N103: 403.45 | O103: 14467500 | P103: 4.56%
A104: 94 | B104: Telecom | C104: IDEA | D104: 2023-03-29 | E104: 6.95 | F104: 6.92 | G104: 6.83 | H104: 6.72 | I104: 6.63 | J104: 7.03 | K104: 7.12 | L104: 7.23 | M104: 7 | N104: 6.8 | O104: 458430000 | P104: -0.62%
A105: 95 | B105: Finance | C105: IDFC | D105: 2023-03-29 | E105: 77.90 | F105: 77.27 | G105: 76.53 | H105: 75.17 | I105: 74.43 | J105: 78.63 | K105: 79.37 | L105: 80.73 | M105: 78 | N105: 75.9 | O105: 172090000 | P105: -1.52%
A106: 96 | B106: Banking | C106: IDFCFIRSTB | D106: 2023-03-29 | E106: 55.60 | F106: 55.57 | G106: 54.98 | H106: 54.37 | I106: 53.78 | J106: 56.18 | K106: 56.77 | L106: 57.38 | M106: 56.15 | N106: 54.95 | O106: 195735000 | P106: 1.19%
A107: 97 | B107: Others | C107: IEX | D107: 2023-03-29 | E107: 148.45 | F107: 147.58 | G107: 145.92 | H107: 143.38 | I107: 141.72 | J107: 150.12 | K107: 151.78 | L107: 154.32 | M107: 149.25 | N107: 145.05 | O107: 40095000 | P107: 0.25%
A108: 98 | B108: Oil_Gas | C108: IGL | D108: 2023-03-29 | E108: 442.05 | F108: 441.78 | G108: 438.27 | H108: 434.48 | I108: 430.97 | J108: 445.57 | K108: 449.08 | L108: 452.87 | M108: 445.3 | N108: 438 | O108: 8266500 | P108: 1.52%
A109: 99 | B109: Infrastructure | C109: INDHOTEL | D109: 2023-03-29 | E109: 316.30 | F109: 315.10 | G109: 311.90 | H109: 307.50 | I109: 304.30 | J109: 319.50 | K109: 322.70 | L109: 327.10 | M109: 318.3 | N109: 310.7 | O109: 25842000 | P109: 1.66%
A110: 100 | B110: Cement | C110: INDIACEM | D110: 2023-03-29 | E110: 194.85 | F110: 192.65 | G110: 190.00 | H110: 185.15 | I110: 182.50 | J110: 197.50 | K110: 200.15 | L110: 205.00 | M110: 195.3 | N110: 187.8 | O110: 14694300 | P110: -2.82%
A111: 101 | B111: Others | C111: INDIAMART | D111: 2023-03-29 | E111: 4940.00 | F111: 4902.78 | G111: 4779.57 | H111: 4619.13 | I111: 4495.92 | J111: 5063.22 | K111: 5186.43 | L111: 5346.87 | M111: 5026 | N111: 4742.35 | O111: 331950 | P111: 18.09%
A112: 102 | B112: Others | C112: INDIGO | D112: 2023-03-29 | E112: 1854.40 | F112: 1858.60 | G112: 1839.55 | H112: 1824.70 | I112: 1805.65 | J112: 1873.45 | K112: 1892.50 | L112: 1907.35 | M112: 1877.65 | N112: 1843.75 | O112: 3550500 | P112: 3.05%
A113: 103 | B113: Banking | C113: INDUSINDBK | D113: 2023-03-29 | E113: 1109.55 | F113: 1099.13 | G113: 1084.82 | H113: 1060.08 | I113: 1045.77 | J113: 1123.87 | K113: 1138.18 | L113: 1162.92 | M113: 1113.45 | N113: 1074.4 | O113: 27018450 | P113: 4.76%
A114: 104 | B114: Telecom | C114: INDUSTOWER | D114: 2023-03-29 | E114: 160.65 | F114: 159.43 | G114: 156.97 | H114: 153.28 | I114: 150.82 | J114: 163.12 | K114: 165.58 | L114: 169.27 | M114: 161.9 | N114: 155.75 | O114: 31318000 | P114: 0.94%
A115: 105 | B115: Technology | C115: INFY | D115: 2023-03-29 | E115: 1506.55 | F115: 1501.87 | G115: 1494.18 | H115: 1481.82 | I115: 1474.13 | J115: 1514.23 | K115: 1521.92 | L115: 1534.28 | M115: 1509.55 | N115: 1489.5 | O115: 35228400 | P115: 0.17%
A116: 106 | B116: Technology | C116: INTELLECT | D116: 2023-03-29 | E116: 460.15 | F116: 457.95 | G116: 454.60 | H116: 449.05 | I116: 445.70 | J116: 463.50 | K116: 466.85 | L116: 472.40 | M116: 461.3 | N116: 452.4 | O116: 4111000 | P116: 0.49%
A117: 107 | B117: Oil_Gas | C117: IOC | D117: 2023-03-29 | E117: 77.30 | F117: 76.97 | G117: 76.48 | H117: 75.67 | I117: 75.18 | J117: 77.78 | K117: 78.27 | L117: 79.08 | M117: 77.45 | N117: 76.15 | O117: 71691750 | P117: 0.78%
A118: 108 | B118: Pharma | C118: IPCALAB | D118: 2023-03-29 | E118: 810.05 | F118: 809.20 | G118: 805.85 | H118: 801.65 | I118: 798.30 | J118: 813.40 | K118: 816.75 | L118: 820.95 | M118: 812.55 | N118: 805 | O118: 1762150 | P118: 0.71%
A119: 109 | B119: Others | C119: IRCTC | D119: 2023-03-29 | E119: 615.10 | F119: 614.48 | G119: 610.17 | H119: 605.23 | I119: 600.92 | J119: 619.42 | K119: 623.73 | L119: 628.67 | M119: 618.8 | N119: 609.55 | O119: 13609750 | P119: -0.51%
A120: 110 | B120: FMCG | C120: ITC | D120: 2023-03-29 | E120: 379.20 | F120: 378.43 | G120: 376.17 | H120: 373.13 | I120: 370.87 | J120: 381.47 | K120: 383.73 | L120: 386.77 | M120: 380.7 | N120: 375.4 | O120: 58988800 | P120: -0.51%
A121: 111 | B121: Metals | C121: JINDALSTEL | D121: 2023-03-29 | E121: 575.60 | F121: 569.25 | G121: 561.40 | H121: 547.20 | I121: 539.35 | J121: 583.45 | K121: 591.30 | L121: 605.50 | M121: 577.1 | N121: 555.05 | O121: 21827500 | P121: -1.86%
A122: 112 | B122: Cement | C122: JKCEMENT | D122: 2023-03-29 | E122: 2839.60 | F122: 2817.08 | G122: 2787.17 | H122: 2734.73 | I122: 2704.82 | J122: 2869.52 | K122: 2899.43 | L122: 2951.87 | M122: 2847 | N122: 2764.65 | O122: 495750 | P122: -1.83%
A123: 113 | B123: Metals | C123: JSWSTEEL | D123: 2023-03-29 | E123: 681.55 | F123: 678.92 | G123: 675.08 | H123: 668.62 | I123: 664.78 | J123: 685.38 | K123: 689.22 | L123: 695.68 | M123: 682.75 | N123: 672.45 | O123: 24225750 | P123: -0.43%
A124: 114 | B124: Others | C124: JUBLFOOD | D124: 2023-03-29 | E124: 444.40 | F124: 443.25 | G124: 440.70 | H124: 437.00 | I124: 434.45 | J124: 446.95 | K124: 449.50 | L124: 453.20 | M124: 445.8 | N124: 439.55 | O124: 14902500 | P124: -0.27%
A125: 115 | B125: Banking | C125: KOTAKBANK | D125: 2023-03-29 | E125: 1752.30 | F125: 1747.35 | G125: 1737.70 | H125: 1723.10 | I125: 1713.45 | J125: 1761.95 | K125: 1771.60 | L125: 1786.20 | M125: 1757 | N125: 1732.75 | O125: 40612000 | P125: -0.78%
A126: 116 | B126: Finance | C126: L&TFH | D126: 2023-03-29 | E126: 90.80 | F126: 89.95 | G126: 88.75 | H126: 86.70 | I126: 85.50 | J126: 92.00 | K126: 93.20 | L126: 95.25 | M126: 91.15 | N126: 87.9 | O126: 67126328 | P126: 1.36%
A127: 117 | B127: Others | C127: LALPATHLAB | D127: 2023-03-29 | E127: 1953.00 | F127: 1977.67 | G127: 1905.33 | H127: 1857.67 | I127: 1785.33 | J127: 2025.33 | K127: 2097.67 | L127: 2145.33 | M127: 2050 | N127: 1930 | O127: 821750 | P127: 1.14%
A128: 118 | B128: Pharma | C128: LAURUSLABS | D128: 2023-03-29 | E128: 316.45 | F128: 316.58 | G128: 314.47 | H128: 312.48 | I128: 310.37 | J128: 318.57 | K128: 320.68 | L128: 322.67 | M128: 318.7 | N128: 314.6 | O128: 9791100 | P128: 0.34%
A129: 119 | B129: Finance | C129: LICHSGFIN | D129: 2023-03-29 | E129: 359.40 | F129: 357.02 | G129: 354.03 | H129: 348.67 | I129: 345.68 | J129: 362.38 | K129: 365.37 | L129: 370.73 | M129: 360 | N129: 351.65 | O129: 11810000 | P129: 0.72%
A130: 120 | B130: Capital_Goods | C130: LT | D130: 2023-03-29 | E130: 2126.10 | F130: 2127.47 | G130: 2113.78 | H130: 2101.47 | I130: 2087.78 | J130: 2139.78 | K130: 2153.47 | L130: 2165.78 | M130: 2141.15 | N130: 2115.15 | O130: 7962300 | P130: 0.21%
A131: 121 | B131: Technology | C131: LTIM | D131: 2023-03-29 | E131: 4777.40 | F131: 4768.47 | G131: 4738.98 | H131: 4700.57 | I131: 4671.08 | J131: 4806.88 | K131: 4836.37 | L131: 4874.78 | M131: 4797.95 | N131: 4730.05 | O131: 1324500 | P131: 4.39%
A132: 122 | B132: Technology | C132: LTTS | D132: 2023-03-29 | E132: 3697.50 | F132: 3679.43 | G132: 3656.32 | H132: 3615.13 | I132: 3592.02 | J132: 3720.62 | K132: 3743.73 | L132: 3784.92 | M132: 3702.55 | N132: 3638.25 | O132: 1086600 | P132: 3.17%
A133: 123 | B133: Pharma | C133: LUPIN | D133: 2023-03-29 | E133: 663.80 | F133: 661.63 | G133: 657.92 | H133: 652.03 | I133: 648.32 | J133: 667.52 | K133: 671.23 | L133: 677.12 | M133: 665.35 | N133: 655.75 | O133: 7687400 | P133: 0.33%
A134: 124 | B134: Automobile | C134: M&M | D134: 2023-03-29 | E134: 1279.35 | F134: 1288.48 | G134: 1267.32 | H134: 1255.28 | I134: 1234.12 | J134: 1300.52 | K134: 1321.68 | L134: 1333.72 | M134: 1309.65 | N134: 1276.45 | O134: 13618500 | P134: 4.50%
A135: 125 | B135: Finance | C135: M&MFIN | D135: 2023-03-29 | E135: 255.95 | F135: 255.37 | G135: 252.98 | H135: 250.02 | I135: 247.63 | J135: 258.33 | K135: 260.72 | L135: 263.68 | M135: 257.75 | N135: 252.4 | O135: 22632000 | P135: -0.98%
A136: 126 | B136: Finance | C136: MANAPPURAM | D136: 2023-03-29 | E136: 106.00 | F136: 105.20 | G136: 104.15 | H136: 102.30 | I136: 101.25 | J136: 107.05 | K136: 108.10 | L136: 109.95 | M136: 106.25 | N136: 103.35 | O136: 40614000 | P136: -2.00%
A137: 127 | B137: FMCG | C137: MARICO | D137: 2023-03-29 | E137: 493.60 | F137: 493.52 | G137: 490.58 | H137: 487.57 | I137: 484.63 | J137: 496.53 | K137: 499.47 | L137: 502.48 | M137: 496.45 | N137: 490.5 | O137: 8080800 | P137: -0.53%
A138: 128 | B138: Automobile | C138: MARUTI | D138: 2023-03-29 | E138: 8797.25 | F138: 8770.12 | G138: 8725.48 | H138: 8653.72 | I138: 8609.08 | J138: 8841.88 | K138: 8886.52 | L138: 8958.28 | M138: 8814.75 | N138: 8698.35 | O138: 2255600 | P138: -2.15%
A139: 129 | B139: FMCG | C139: MCDOWELL-N | D139: 2023-03-29 | E139: 747.10 | F139: 746.60 | G139: 743.20 | H139: 739.30 | I139: 735.90 | J139: 750.50 | K139: 753.90 | L139: 757.80 | M139: 750 | N139: 742.7 | O139: 13511875 | P139: 0.13%
A140: 130 | B140: Others | C140: MCX | D140: 2023-03-29 | E140: 1435.15 | F140: 1427.65 | G140: 1417.95 | H140: 1400.75 | I140: 1391.05 | J140: 1444.85 | K140: 1454.55 | L140: 1471.75 | M140: 1437.35 | N140: 1410.45 | O140: 906000 | P140: -3.33%
A141: 131 | B141: Pharma | C141: METROPOLIS | D141: 2023-03-29 | E141: 1337.20 | F141: 1330.88 | G141: 1314.77 | H141: 1292.33 | I141: 1276.22 | J141: 1353.32 | K141: 1369.43 | L141: 1391.87 | M141: 1347 | N141: 1308.45 | O141: 976000 | P141: -2.98%
A142: 132 | B142: Finance | C142: MFSL | D142: 2023-03-29 | E142: 702.90 | F142: 699.48 | G142: 689.67 | H142: 676.43 | I142: 666.62 | J142: 712.72 | K142: 722.53 | L142: 735.77 | M142: 709.3 | N142: 686.25 | O142: 3303300 | P142: 18.10%
A143: 133 | B143: Oil_Gas | C143: MGL | D143: 2023-03-29 | E143: 907.95 | F143: 904.47 | G143: 899.93 | H143: 891.92 | I143: 887.38 | J143: 912.48 | K143: 917.02 | L143: 925.03 | M143: 909 | N143: 896.45 | O143: 2113600 | P143: 0.96%
A144: 134 | B144: Automobile | C144: MOTHERSON | D144: 2023-03-29 | E144: 81.70 | F144: 81.20 | G144: 80.60 | H144: 79.50 | I144: 78.90 | J144: 82.30 | K144: 82.90 | L144: 84.00 | M144: 81.8 | N144: 80.1 | O144: 61431750 | P144: -2.66%
A145: 135 | B145: Technology | C145: MPHASIS | D145: 2023-03-29 | E145: 2073.85 | F145: 2067.48 | G145: 2044.37 | H145: 2014.88 | I145: 1991.77 | J145: 2096.97 | K145: 2120.08 | L145: 2149.57 | M145: 2090.6 | N145: 2038 | O145: 2009425 | P145: -1.47%
A146: 136 | B146: Automobile | C146: MRF | D146: 2023-03-29 | E146: 86286.05 | F146: 85895.80 | G146: 85310.25 | H146: 84334.45 | I146: 83748.90 | J146: 86871.60 | K146: 87457.15 | L146: 88432.95 | M146: 86481.35 | N146: 84920 | O146: 58830 | P146: -1.26%
A147: 137 | B147: Finance | C147: MUTHOOTFIN | D147: 2023-03-29 | E147: 959.75 | F147: 963.45 | G147: 954.65 | H147: 949.55 | I147: 940.75 | J147: 968.55 | K147: 977.35 | L147: 982.45 | M147: 972.25 | N147: 958.35 | O147: 6830450 | P147: 0.84%
A148: 138 | B148: Metals | C148: NATIONALUM | D148: 2023-03-29 | E148: 83.15 | F148: 81.87 | G148: 80.43 | H148: 77.72 | I148: 76.28 | J148: 84.58 | K148: 86.02 | L148: 88.73 | M148: 83.3 | N148: 79.15 | O148: 52425000 | P148: 1.58%
A149: 139 | B149: Others | C149: NAUKRI | D149: 2023-03-29 | E149: 3536.40 | F149: 3533.67 | G149: 3507.78 | H149: 3479.17 | I149: 3453.28 | J149: 3562.28 | K149: 3588.17 | L149: 3616.78 | M149: 3559.55 | N149: 3505.05 | O149: 1652250 | P149: 0.72%
A150: 140 | B150: Chemical | C150: NAVINFLUOR | D150: 2023-03-29 | E150: 4198.40 | F150: 4175.78 | G150: 4133.17 | H150: 4067.93 | I150: 4025.32 | J150: 4241.02 | K150: 4283.63 | L150: 4348.87 | M150: 4218.4 | N150: 4110.55 | O150: 396150 | P150: 1.89%
A151: 141 | B151: FMCG | C151: NESTLEIND | D151: 2023-03-29 | E151: 18850.30 | F151: 18796.57 | G151: 18703.78 | H151: 18557.27 | I151: 18464.48 | J151: 18943.08 | K151: 19035.87 | L151: 19182.38 | M151: 18889.35 | N151: 18650.05 | O151: 254080 | P151: -4.65%
A152: 142 | B152: Metals | C152: NMDC | D152: 2023-03-29 | E152: 115.45 | F152: 114.48 | G152: 113.22 | H152: 110.98 | I152: 109.72 | J152: 116.72 | K152: 117.98 | L152: 120.22 | M152: 115.75 | N152: 112.25 | O152: 50125500 | P152: 2.27%
A153: 143 | B153: Power | C153: NTPC | D153: 2023-03-29 | E153: 173.15 | F153: 172.75 | G153: 171.70 | H153: 170.25 | I153: 169.20 | J153: 174.20 | K153: 175.25 | L153: 176.70 | M153: 173.8 | N153: 171.3 | O153: 74225400 | P153: 0.52%
A154: 144 | B154: Realty | C154: OBEROIRLTY | D154: 2023-03-29 | E154: 873.95 | F154: 870.70 | G154: 864.40 | H154: 854.85 | I154: 848.55 | J154: 880.25 | K154: 886.55 | L154: 896.10 | M154: 877 | N154: 861.15 | O154: 6055700 | P154: 1.41%
A155: 145 | B155: Technology | C155: OFSS | D155: 2023-03-29 | E155: 3182.40 | F155: 3180.55 | G155: 3162.85 | H155: 3143.30 | I155: 3125.60 | J155: 3200.10 | K155: 3217.80 | L155: 3237.35 | M155: 3198.25 | N155: 3161 | O155: 318400 | P155: 0.25%
A156: 146 | B156: Oil_Gas | C156: ONGC | D156: 2023-03-29 | E156: 155.60 | F156: 154.63 | G156: 153.52 | H156: 151.43 | I156: 150.32 | J156: 156.72 | K156: 157.83 | L156: 159.92 | M156: 155.75 | N156: 152.55 | O156: 35431550 | P156: 0.80%
A157: 147 | B157: Textile | C157: PAGEIND | D157: 2023-03-29 | E157: 38442.80 | F157: 38540.90 | G157: 38181.80 | H157: 37920.80 | I157: 37561.70 | J157: 38801.90 | K157: 39161.00 | L157: 39422.00 | M157: 38900 | N157: 38279.9 | O157: 128400 | P157: 1.55%
A158: 148 | B158: Pharma | C158: PEL | D158: 2023-03-29 | E158: 783.75 | F158: 779.77 | G158: 770.68 | H158: 757.62 | I158: 748.53 | J158: 792.83 | K158: 801.92 | L158: 814.98 | M158: 788.85 | N158: 766.7 | O158: 6842550 | P158: 6.58%
A159: 149 | B159: Technology | C159: PERSISTENT | D159: 2023-03-29 | E159: 4895.25 | F159: 4862.28 | G159: 4810.57 | H159: 4725.88 | I159: 4674.17 | J159: 4946.97 | K159: 4998.68 | L159: 5083.37 | M159: 4914 | N159: 4777.6 | O159: 889700 | P159: 1.84%
A160: 150 | B160: Oil_Gas | C160: PETRONET | D160: 2023-03-29 | E160: 221.60 | F160: 222.73 | G160: 220.02 | H160: 218.43 | I160: 215.72 | J160: 224.32 | K160: 227.03 | L160: 228.62 | M160: 225.45 | N160: 221.15 | O160: 12225000 | P160: 3.40%
A161: 151 | B161: Finance | C161: PFC | D161: 2023-03-29 | E161: 150.45 | F161: 148.93 | G161: 146.72 | H161: 142.98 | I161: 140.77 | J161: 152.67 | K161: 154.88 | L161: 158.62 | M161: 151.15 | N161: 145.2 | O161: 48719600 | P161: 5.24%
A162: 152 | B162: FMCG | C162: PIDILITIND | D162: 2023-03-29 | E162: 2316.60 | F162: 2315.68 | G162: 2306.52 | H162: 2296.43 | I162: 2287.27 | J162: 2325.77 | K162: 2334.93 | L162: 2345.02 | M162: 2324.85 | N162: 2305.6 | O162: 2939500 | P162: -1.52%
A163: 153 | B163: Chemical | C163: PIIND | D163: 2023-03-29 | E163: 3150.75 | F163: 3130.48 | G163: 3103.77 | H163: 3056.78 | I163: 3030.07 | J163: 3177.47 | K163: 3204.18 | L163: 3251.17 | M163: 3157.2 | N163: 3083.5 | O163: 2033500 | P163: 0.53%
A164: 154 | B164: Banking | C164: PNB | D164: 2023-03-29 | E164: 50.45 | F164: 49.88 | G164: 49.12 | H164: 47.78 | I164: 47.02 | J164: 51.22 | K164: 51.98 | L164: 53.32 | M164: 50.65 | N164: 48.55 | O164: 202832000 | P164: 1.36%
A165: 155 | B165: Others | C165: POLYCAB | D165: 2023-03-29 | E165: 3070.15 | F165: 3061.28 | G165: 3039.12 | H165: 3008.08 | I165: 2985.92 | J165: 3092.32 | K165: 3114.48 | L165: 3145.52 | M165: 3083.45 | N165: 3030.25 | O165: 1081800 | P165: 23.03%
A166: 156 | B166: Power | C166: POWERGRID | D166: 2023-03-29 | E166: 219.75 | F166: 220.42 | G166: 217.53 | H166: 215.32 | I166: 212.43 | J166: 222.63 | K166: 225.52 | L166: 227.73 | M166: 223.3 | N166: 218.2 | O166: 28223100 | P166: 1.87%
A167: 157 | B167: Media | C167: PVR | D167: 2023-03-29 | E167: 1541.35 | F167: 1526.28 | G167: 1500.57 | H167: 1459.78 | I167: 1434.07 | J167: 1567.07 | K167: 1592.78 | L167: 1633.57 | M167: 1552 | N167: 1485.5 | O167: 2552704 | P167: 1.80%
A168: 158 | B168: Others | C168: RAIN | D168: 2023-03-29 | E168: 167.55 | F168: 163.60 | G168: 158.10 | H168: 148.65 | I168: 143.15 | J168: 173.05 | K168: 178.55 | L168: 188.00 | M168: 169.1 | N168: 154.15 | O168: 11840500 | P168: 11.95%
A169: 159 | B169: Cement | C169: RAMCOCEM | D169: 2023-03-29 | E169: 732.00 | F169: 726.42 | G169: 718.83 | H169: 705.67 | I169: 698.08 | J169: 739.58 | K169: 747.17 | L169: 760.33 | M169: 734 | N169: 713.25 | O169: 2595050 | P169: 2.31%
A170: 160 | B170: Banking | C170: RBLBANK | D170: 2023-03-29 | E170: 162.20 | F170: 160.70 | G170: 157.40 | H170: 152.60 | I170: 149.30 | J170: 165.50 | K170: 168.80 | L170: 173.60 | M170: 164 | N170: 155.9 | O170: 24795000 | P170: 5.85%
A171: 161 | B171: Power | C171: RECLTD | D171: 2023-03-29 | E171: 115.90 | F171: 115.45 | G171: 114.70 | H171: 113.50 | I171: 112.75 | J171: 116.65 | K171: 117.40 | L171: 118.60 | M171: 116.2 | N171: 114.25 | O171: 43992000 | P171: 2.71%
A172: 162 | B172: Oil_Gas | C172: RELIANCE | D172: 2023-03-29 | E172: 2353.05 | F172: 2347.53 | G172: 2338.27 | H172: 2323.48 | I172: 2314.22 | J172: 2362.32 | K172: 2371.58 | L172: 2386.37 | M172: 2356.8 | N172: 2332.75 | O172: 39039500 | P172: 0.75%
A173: 163 | B173: Metals | C173: SAIL | D173: 2023-03-29 | E173: 85.70 | F173: 85.07 | G173: 84.13 | H173: 82.57 | I173: 81.63 | J173: 86.63 | K173: 87.57 | L173: 89.13 | M173: 86 | N173: 83.5 | O173: 106776000 | P173: -1.72%
A174: 164 | B174: Banking | C174: SBICARD | D174: 2023-03-29 | E174: 752.75 | F174: 754.48 | G174: 746.27 | H174: 739.78 | I174: 731.57 | J174: 760.97 | K174: 769.18 | L174: 775.67 | M174: 762.7 | N174: 748 | O174: 7924000 | P174: 2.10%
A175: 165 | B175: Finance | C175: SBILIFE | D175: 2023-03-29 | E175: 1127.05 | F175: 1124.27 | G175: 1118.53 | H175: 1110.02 | I175: 1104.28 | J175: 1132.78 | K175: 1138.52 | L175: 1147.03 | M175: 1130 | N175: 1115.75 | O175: 5832750 | P175: 3.10%
A176: 166 | B176: Banking | C176: SBIN | D176: 2023-03-29 | E176: 538.90 | F176: 534.68 | G176: 529.72 | H176: 520.53 | I176: 515.57 | J176: 543.87 | K176: 548.83 | L176: 558.02 | M176: 539.65 | N176: 525.5 | O176: 83842500 | P176: -3.27%
A177: 167 | B177: Cement | C177: SHREECEM | D177: 2023-03-29 | E177: 25962.35 | F177: 25890.98 | G177: 25751.97 | H177: 25541.58 | I177: 25402.57 | J177: 26101.37 | K177: 26240.38 | L177: 26450.77 | M177: 26030 | N177: 25680.6 | O177: 365750 | P177: -0.13%
A178: 168 | B178: Capital_Goods | C178: SIEMENS | D178: 2023-03-29 | E178: 3272.70 | F178: 3266.97 | G178: 3253.53 | H178: 3234.37 | I178: 3220.93 | J178: 3286.13 | K178: 3299.57 | L178: 3318.73 | M178: 3280.4 | N178: 3247.8 | O178: 2141975 | P178: 2.37%
A179: 169 | B179: Textile | C179: SRF | D179: 2023-03-29 | E179: 2247.35 | F179: 2231.32 | G179: 2212.03 | H179: 2176.72 | I179: 2157.43 | J179: 2266.63 | K179: 2285.92 | L179: 2321.23 | M179: 2250.6 | N179: 2196 | O179: 3918000 | P179: -2.04%
A180: 170 | B180: Finance | C180: SHRIRAMFIN | D180: 2023-03-29 | E180: 1225.00 | F180: 1222.53 | G180: 1209.52 | H180: 1194.03 | I180: 1181.02 | J180: 1238.02 | K180: 1251.03 | L180: 1266.52 | M180: 1235.55 | N180: 1207.05 | O180: 4155000 | P180: -5.49%
A181: 171 | B181: Pharma | C181: SUNPHARMA | D181: 2023-03-29 | E181: 964.10 | F181: 964.52 | G181: 959.43 | H181: 954.77 | I181: 949.68 | J181: 969.18 | K181: 974.27 | L181: 978.93 | M181: 969.6 | N181: 959.85 | O181: 16108400 | P181: -0.58%
A182: 172 | B182: Media | C182: SUNTV | D182: 2023-03-29 | E182: 439.00 | F182: 435.40 | G182: 430.90 | H182: 422.80 | I182: 418.30 | J182: 443.50 | K182: 448.00 | L182: 456.10 | M182: 439.9 | N182: 427.3 | O182: 8256000 | P182: -0.29%
A183: 173 | B183: Pharma | C183: SYNGENE | D183: 2023-03-29 | E183: 589.75 | F183: 588.65 | G183: 582.30 | H183: 574.85 | I183: 568.50 | J183: 596.10 | K183: 602.45 | L183: 609.90 | M183: 595 | N183: 581.2 | O183: 2362000 | P183: -0.63%
A184: 174 | B184: Chemical | C184: TATACHEM | D184: 2023-03-29 | E184: 1000.95 | F184: 995.68 | G184: 987.02 | H184: 973.08 | I184: 964.42 | J184: 1009.62 | K184: 1018.28 | L184: 1032.22 | M184: 1004.35 | N184: 981.75 | O184: 5642500 | P184: 1.23%
A185: 175 | B185: Telecom | C185: TATACOMM | D185: 2023-03-29 | E185: 1214.45 | F185: 1215.48 | G185: 1208.77 | H185: 1203.08 | I185: 1196.37 | J185: 1221.17 | K185: 1227.88 | L185: 1233.57 | M185: 1222.2 | N185: 1209.8 | O185: 2163500 | P185: -0.87%
A186: 176 | B186: FMCG | C186: TATACONSUM | D186: 2023-03-29 | E186: 718.05 | F186: 716.67 | G186: 713.58 | H186: 709.12 | I186: 706.03 | J186: 721.13 | K186: 724.22 | L186: 728.68 | M186: 719.75 | N186: 712.2 | O186: 10698300 | P186: 0.22%
A187: 177 | B187: Automobile | C187: TATAMOTORS | D187: 2023-03-29 | E187: 427.60 | F187: 426.98 | G187: 424.27 | H187: 420.93 | I187: 418.22 | J187: 430.32 | K187: 433.03 | L187: 436.37 | M187: 429.7 | N187: 423.65 | O187: 58482000 | P187: -3.23%
A188: 178 | B188: Power | C188: TATAPOWER | D188: 2023-03-29 | E188: 206.00 | F188: 205.38 | G188: 203.97 | H188: 201.93 | I188: 200.52 | J188: 207.42 | K188: 208.83 | L188: 210.87 | M188: 206.8 | N188: 203.35 | O188: 98563500 | P188: -1.91%
A189: 179 | B189: Metals | C189: TATASTEEL | D189: 2023-03-29 | E189: 106.30 | F189: 106.43 | G189: 105.12 | H189: 103.93 | I189: 102.62 | J189: 107.62 | K189: 108.93 | L189: 110.12 | M189: 107.75 | N189: 105.25 | O189: 205903500 | P189: 9.17%
A190: 180 | B190: Technology | C190: TCS | D190: 2023-03-29 | E190: 3398.35 | F190: 3382.03 | G190: 3363.07 | H190: 3327.78 | I190: 3308.82 | J190: 3417.32 | K190: 3436.28 | L190: 3471.57 | M190: 3401 | N190: 3346.75 | O190: 9856175 | P190: -3.78%
A191: 181 | B191: Technology | C191: TECHM | D191: 2023-03-29 | E191: 1130.90 | F191: 1121.83 | G191: 1110.62 | H191: 1090.33 | I191: 1079.12 | J191: 1142.12 | K191: 1153.33 | L191: 1173.62 | M191: 1133.05 | N191: 1101.55 | O191: 11007000 | P191: 0.60%
A192: 182 | B192: FMCG | C192: TITAN | D192: 2023-03-29 | E192: 2399.10 | F192: 2393.67 | G192: 2379.93 | H192: 2360.77 | I192: 2347.03 | J192: 2412.83 | K192: 2426.57 | L192: 2445.73 | M192: 2407.4 | N192: 2374.5 | O192: 7242375 | P192: 0.56%
A193: 183 | B193: Pharma | C193: TORNTPHARM | D193: 2023-03-29 | E193: 1481.00 | F193: 1473.15 | G193: 1463.30 | H193: 1445.60 | I193: 1435.75 | J193: 1490.85 | K193: 1500.70 | L193: 1518.40 | M193: 1483 | N193: 1455.45 | O193: 1940500 | P193: 0.39%
A194: 184 | B194: Power | C194: TORNTPOWER | D194: 2023-03-29 | E194: 509.95 | F194: 510.12 | G194: 506.63 | H194: 503.32 | I194: 499.83 | J194: 513.43 | K194: 516.92 | L194: 520.23 | M194: 513.6 | N194: 506.8 | O194: 3271500 | P194: 0.23%
A195: 185 | B195: Others | C195: TRENT | D195: 2023-03-29 | E195: 1298.50 | F195: 1300.17 | G195: 1284.13 | H195: 1269.77 | I195: 1253.73 | J195: 1314.53 | K195: 1330.57 | L195: 1344.93 | M195: 1316.2 | N195: 1285.8 | O195: 3872800 | P195: 1.16%
A196: 186 | B196: Automobile | C196: TVSMOTOR | D196: 2023-03-29 | E196: 1063.90 | F196: 1070.42 | G196: 1053.58 | H196: 1043.27 | I196: 1026.43 | J196: 1080.73 | K196: 1097.57 | L196: 1107.88 | M196: 1087.25 | N196: 1060.1 | O196: 5962600 | P196: 2.22%
A197: 187 | B197: FMCG | C197: UBL | D197: 2023-03-29 | E197: 1460.35 | F197: 1461.07 | G197: 1449.18 | H197: 1438.02 | I197: 1426.13 | J197: 1472.23 | K197: 1484.12 | L197: 1495.28 | M197: 1472.95 | N197: 1449.9 | O197: 1142400 | P197: 0.07%
A198: 188 | B198: Cement | C198: ULTRACEMCO | D198: 2023-03-29 | E198: 7328.65 | F198: 7324.92 | G198: 7278.83 | H198: 7229.02 | I198: 7182.93 | J198: 7374.73 | K198: 7420.82 | L198: 7470.63 | M198: 7371 | N198: 7275.1 | O198: 1975600 | P198: -0.55%
A199: 189 | B199: Chemical | C199: UPL | D199: 2023-03-29 | E199: 717.80 | F199: 711.58 | G199: 704.67 | H199: 691.53 | I199: 684.62 | J199: 724.72 | K199: 731.63 | L199: 744.77 | M199: 718.5 | N199: 698.45 | O199: 15622100 | P199: 0.94%
A200: 190 | B200: Metals | C200: VEDL | D200: 2023-03-29 | E200: 280.35 | F200: 276.50 | G200: 271.75 | H200: 263.15 | I200: 258.40 | J200: 285.10 | K200: 289.85 | L200: 298.45 | M200: 281.25 | N200: 267.9 | O200: 39426000 | P200: -0.05%
A201: 191 | B201: Capital_Goods | C201: VOLTAS | D201: 2023-03-29 | E201: 903.55 | F201: 903.33 | G201: 895.67 | H201: 887.78 | I201: 880.12 | J201: 911.22 | K201: 918.88 | L201: 926.77 | M201: 911 | N201: 895.45 | O201: 4699800 | P201: 2.63%
A202: 192 | B202: Capital_Goods | C202: WHIRLPOOL | D202: 2023-03-29 | E202: 1315.00 | F202: 1314.93 | G202: 1310.12 | H202: 1305.23 | I202: 1300.42 | J202: 1319.82 | K202: 1324.63 | L202: 1329.52 | M202: 1319.75 | N202: 1310.05 | O202: 914550 | P202: 1.52%
A203: 193 | B203: Technology | C203: WIPRO | D203: 2023-03-29 | E203: 392.50 | F203: 391.48 | G203: 390.07 | H203: 387.63 | I203: 386.22 | J203: 393.92 | K203: 395.33 | L203: 397.77 | M203: 392.9 | N203: 389.05 | O203: 37075500 | P203: -0.66%
A204: 194 | B204: Media | C204: ZEEL | D204: 2023-03-29 | E204: 200.60 | F204: 198.63 | G204: 195.77 | H204: 190.93 | I204: 188.07 | J204: 203.47 | K204: 206.33 | L204: 211.17 | M204: 201.5 | N204: 193.8 | O204: 68847000 | P204: -0.32%
A205: 195 | B205: Pharma | C205: ZYDUSLIFE | D205: 2023-03-29 | E205: 475.85 | F205: 473.50 | G205: 467.05 | H205: 458.25 | I205: 451.80 | J205: 482.30 | K205: 488.75 | L205: 497.55 | M205: 479.95 | N205: 464.7 | O205: 7173000 | P205: 4.43%
A222: Pivot Point: This is trigger point for intra day buy/sell based on the price range of the previous day
... 14 more rows

Sheet Cash Intra
M5: Back to Main Page
A6: FOR INTRA DAY TRADING | K6: =Main!B10 -> 2023-03-02
A8: Sr.no | C8: CLOSE RATE | D8: Pivot Point | E8: Supports | H8: Resistances
E9: S1 | F9: S2 | G9: S3 | H9: R1 | I9: R2 | J9: R3 | K9: HIGH | L9: LOW | M9: Total Trade Quanity in Lakhs
A10: 1 | B10: Nifty 50 | C10: 17450.90 | D10: 17421.30 | E10: 17374.85 | F10: 17298.80 | G10: 17252.35 | H10: 17497.35 | I10: 17543.80 | J10: 17619.85 | K10: 17467.75 | L10: 17345.25
A11: 2 | B11: Nifty Bank | C11: 40698.15 | D11: 40588.48 | E11: 40451.62 | F11: 40205.08 | G11: 40068.22 | H11: 40835.02 | I11: 40971.88 | J11: 41218.42 | K11: 40725.35 | L11: 40341.95
A12: 3 | B12: Nifty CPSE | C12: 2913.40 | D12: 2902.72 | E12: 2889.58 | F12: 2865.77 | G12: 2852.63 | H12: 2926.53 | I12: 2939.67 | J12: 2963.48 | K12: 2915.85 | L12: 2878.90
A13: 4 | B13: Nifty Infra | C13: 5051.60 | D13: 5043.03 | E13: 5028.52 | F13: 5005.43 | G13: 4990.92 | H13: 5066.12 | I13: 5080.63 | J13: 5103.72 | K13: 5057.55 | L13: 5019.95
A14: 5 | B14: Nifty IT | C14: 30097.75 | D14: 29977.40 | E14: 29833.15 | F14: 29568.55 | G14: 29424.30 | H14: 30242.00 | I14: 30386.25 | J14: 30650.85 | K14: 30121.65 | L14: 29712.80
A15: 6 | B15: Nifty PSE | C15: 4445.15 | D15: 4427.82 | E15: 4407.08 | F15: 4369.02 | G15: 4348.28 | H15: 4465.88 | I15: 4486.62 | J15: 4524.68 | K15: 4448.55 | L15: 4389.75
A16: 7 | B16: Nifty Midcap 50 | C16: 8567.70 | D16: 8538.03 | E16: 8500.57 | F16: 8433.43 | G16: 8395.97 | H16: 8605.17 | I16: 8642.63 | J16: 8709.77 | K16: 8575.50 | L16: 8470.90
A17: 8 | B17: ABB | C17: 3311.45 | D17: 3279.28 | E17: 3238.87 | F17: 3166.28 | G17: 3125.87 | H17: 3351.87 | I17: 3392.28 | J17: 3464.87 | K17: 3319.7 | L17: 3206.7 | M17: 5.5656
A18: 9 | B18: ACC | C18: 1769.45 | D18: 1760.38 | E18: 1744.72 | F18: 1719.98 | G18: 1704.32 | H18: 1785.12 | I18: 1800.78 | J18: 1825.52 | K18: 1776.05 | L18: 1735.65 | M18: 6.26061
A19: 10 | B19: AUBANK | C19: 611.5 | D19: 605.33 | E19: 597.17 | F19: 582.83 | G19: 574.67 | H19: 619.67 | I19: 627.83 | J19: 642.17 | K19: 613.5 | L19: 591 | M19: 10.79988
A20: 11 | B20: ABBOTINDIA | C20: 20460.6 | D20: 20428.87 | E20: 20191.73 | F20: 19922.87 | G20: 19685.73 | H20: 20697.73 | I20: 20934.87 | J20: 21203.73 | K20: 20666 | L20: 20160 | M20: 0.08852
A21: 12 | B21: ADANIENT | C21: 1564.3 | D21: 1518.43 | E21: 1456.87 | F21: 1349.43 | G21: 1287.87 | H21: 1625.87 | I21: 1687.43 | J21: 1794.87 | K21: 1580 | L21: 1411 | M21: 201.1434
A22: 13 | B22: ADANIGREEN | C22: 509.55 | D22: 507.00 | E22: 504.45 | F22: 499.35 | G22: 496.80 | H22: 512.10 | I22: 514.65 | J22: 519.75 | K22: 509.55 | L22: 501.9 | M22: 3.8736
A23: 14 | B23: ADANIPORTS | C23: 602.1 | D23: 604.23 | E23: 592.47 | F23: 582.83 | G23: 571.07 | H23: 613.87 | I23: 625.63 | J23: 635.27 | K23: 616 | L23: 594.6 | M23: 186.61166
A24: 15 | B24: ATGL | C24: 711.65 | D24: 691.37 | E24: 670.28 | F24: 628.92 | G24: 607.83 | H24: 732.73 | I24: 753.82 | J24: 795.18 | K24: 712.45 | L24: 650 | M24: 73.8737
A25: 16 | B25: ADANITRANS | C25: 675 | D25: 660.50 | E25: 646.00 | F25: 617.00 | G25: 602.50 | H25: 689.50 | I25: 704.00 | J25: 733.00 | K25: 675 | L25: 631.5 | M25: 26.28313
A26: 17 | B26: AWL | C26: 379.7 | D26: 376.10 | E26: 372.50 | F26: 365.30 | G26: 361.70 | H26: 383.30 | I26: 386.90 | J26: 394.10 | K26: 379.7 | L26: 368.9 | M26: 9.9206
A27: 18 | B27: ABCAPITAL | C27: 152 | D27: 149.95 | E27: 147.40 | F27: 142.80 | G27: 140.25 | H27: 154.55 | I27: 157.10 | J27: 161.70 | K27: 152.5 | L27: 145.35 | M27: 55.27276
A28: 19 | B28: ABFRL | C28: 235.4 | D28: 233.67 | E28: 231.43 | F28: 227.47 | G28: 225.23 | H28: 237.63 | I28: 239.87 | J28: 243.83 | K28: 235.9 | L28: 229.7 | M28: 22.39545
A29: 20 | B29: ALKEM | C29: 3119.2 | D29: 3143.07 | E29: 3084.13 | F29: 3049.07 | G29: 2990.13 | H29: 3178.13 | I29: 3237.07 | J29: 3272.13 | K29: 3202 | L29: 3108 | M29: 1.07004
A30: 21 | B30: AMBUJACEM | C30: 353.6 | D30: 350.90 | E30: 346.90 | F30: 340.20 | G30: 336.20 | H30: 357.60 | I30: 361.60 | J30: 368.30 | K30: 354.9 | L30: 344.2 | M30: 141.44946
A31: 22 | B31: APOLLOHOSP | C31: 4413.8 | D31: 4399.02 | E31: 4352.03 | F31: 4290.27 | G31: 4243.28 | H31: 4460.78 | I31: 4507.77 | J31: 4569.53 | K31: 4446 | L31: 4337.25 | M31: 2.87008
A32: 23 | B32: ASHOKLEY | C32: 143.95 | D32: 144.60 | E32: 142.70 | F32: 141.45 | G32: 139.55 | H32: 145.85 | I32: 147.75 | J32: 149.00 | K32: 146.5 | L32: 143.35 | M32: 84.65184
A33: 24 | B33: ASIANPAINT | C33: 2840.9 | D33: 2836.75 | E33: 2820.20 | F33: 2799.50 | G33: 2782.95 | H33: 2857.45 | I33: 2874.00 | J33: 2894.70 | K33: 2853.3 | L33: 2816.05 | M33: 8.16598
A34: 25 | B34: ASTRAL | C34: 1903.05 | D34: 1909.62 | E34: 1887.23 | F34: 1871.42 | G34: 1849.03 | H34: 1925.43 | I34: 1947.82 | J34: 1963.63 | K34: 1932 | L34: 1893.8 | M34: 1.96521
A35: 26 | B35: AUROPHARMA | C35: 463.65 | D35: 461.43 | E35: 457.87 | F35: 452.08 | G35: 448.52 | H35: 467.22 | I35: 470.78 | J35: 476.57 | K35: 465 | L35: 455.65 | M35: 11.15997
A36: 27 | B36: DMART | C36: 3439.35 | D36: 3448.13 | E36: 3422.27 | F36: 3405.18 | G36: 3379.32 | H36: 3465.22 | I36: 3491.08 | J36: 3508.17 | K36: 3474 | L36: 3431.05 | M36: 1.45318
A37: 28 | B37: AXISBANK | C37: 865.15 | D37: 859.65 | E37: 850.55 | F37: 835.95 | G37: 826.85 | H37: 874.25 | I37: 883.35 | J37: 897.95 | K37: 868.75 | L37: 845.05 | M37: 123.45125
A38: 29 | B38: BAJAJ-AUTO | C38: 3731.65 | D38: 3705.63 | E38: 3662.92 | F38: 3594.18 | G38: 3551.47 | H38: 3774.37 | I38: 3817.08 | J38: 3885.82 | K38: 3748.35 | L38: 3636.9 | M38: 4.32887
A39: 30 | B39: BAJFINANCE | C39: 6154.85 | D39: 6152.97 | E39: 6101.98 | F39: 6049.12 | G39: 5998.13 | H39: 6205.83 | I39: 6256.82 | J39: 6309.68 | K39: 6203.95 | L39: 6100.1 | M39: 5.44804
A40: 31 | B40: BAJAJFINSV | C40: 1343.9 | D40: 1346.27 | E40: 1332.53 | F40: 1321.17 | G40: 1307.43 | H40: 1357.63 | I40: 1371.37 | J40: 1382.73 | K40: 1360 | L40: 1334.9 | M40: 11.34472
A41: 32 | B41: BAJAJHLDNG | C41: 6303.7 | D41: 6314.07 | E41: 6230.18 | F41: 6156.67 | G41: 6072.78 | H41: 6387.58 | I41: 6471.47 | J41: 6544.98 | K41: 6397.95 | L41: 6240.55 | M41: 0.31397
A42: 33 | B42: BALKRISIND | C42: 2051 | D42: 2040.83 | E42: 2022.17 | F42: 1993.33 | G42: 1974.67 | H42: 2069.67 | I42: 2088.33 | J42: 2117.17 | K42: 2059.5 | L42: 2012 | M42: 0.79526
A43: 34 | B43: BANDHANBNK | C43: 235.15 | D43: 233.72 | E43: 231.43 | F43: 227.72 | G43: 225.43 | H43: 237.43 | I43: 239.72 | J43: 243.43 | K43: 236 | L43: 230 | M43: 29.1392
A44: 35 | B44: BANKBARODA | C44: 164.4 | D44: 162.23 | E44: 159.77 | F44: 155.13 | G44: 152.67 | H44: 166.87 | I44: 169.33 | J44: 173.97 | K44: 164.7 | L44: 157.6 | M44: 259.74322
A45: 36 | B45: BANKINDIA | C45: 74.05 | D45: 72.75 | E45: 71.10 | F45: 68.15 | G45: 66.50 | H45: 75.70 | I45: 77.35 | J45: 80.30 | K45: 74.4 | L45: 69.8 | M45: 171.57626
A46: 37 | B46: BATAINDIA | C46: 1419.15 | D46: 1415.63 | E46: 1410.27 | F46: 1401.38 | G46: 1396.02 | H46: 1424.52 | I46: 1429.88 | J46: 1438.77 | K46: 1421 | L46: 1406.75 | M46: 2.82944
A47: 38 | B47: BERGEPAINT | C47: 580.7 | D47: 580.70 | E47: 576.00 | F47: 571.30 | G47: 566.60 | H47: 585.40 | I47: 590.10 | J47: 594.80 | K47: 585.4 | L47: 576 | M47: 11.027
A48: 39 | B48: BEL | C48: 97.05 | D48: 96.32 | E48: 95.53 | F48: 94.02 | G48: 93.23 | H48: 97.83 | I48: 98.62 | J48: 100.13 | K48: 97.1 | L48: 94.8 | M48: 142.85091
A49: 40 | B49: BHARATFORG | C49: 824.05 | D49: 822.35 | E49: 816.75 | F49: 809.45 | G49: 803.85 | H49: 829.65 | I49: 835.25 | J49: 842.55 | K49: 827.95 | L49: 815.05 | M49: 7.32485
A50: 41 | B50: BHEL | C50: 72.8 | D50: 71.80 | E50: 70.50 | F50: 68.20 | G50: 66.90 | H50: 74.10 | I50: 75.40 | J50: 77.70 | K50: 73.1 | L50: 69.5 | M50: 190.33336
A51: 42 | B51: BPCL | C51: 315.9 | D51: 317.48 | E51: 313.97 | F51: 312.03 | G51: 308.52 | H51: 319.42 | I51: 322.93 | J51: 324.87 | K51: 321 | L51: 315.55 | M51: 34.95717
A52: 43 | B52: BHARTIARTL | C52: 750.2 | D52: 748.22 | E52: 742.98 | F52: 735.77 | G52: 730.53 | H52: 755.43 | I52: 760.67 | J52: 767.88 | K52: 753.45 | L52: 741 | M52: 37.44982
A53: 44 | B53: BIOCON | C53: 227.15 | D53: 228.90 | E53: 225.10 | F53: 223.05 | G53: 219.25 | H53: 230.95 | I53: 234.75 | J53: 236.80 | K53: 232.7 | L53: 226.85 | M53: 35.83078
A54: 45 | B54: BOSCHLTD | C54: 18302.25 | D54: 18224.50 | E54: 18074.00 | F54: 17845.75 | G54: 17695.25 | H54: 18452.75 | I54: 18603.25 | J54: 18831.50 | K54: 18375 | L54: 17996.25 | M54: 0.17785
A55: 46 | B55: BRITANNIA | C55: 4379.8 | D55: 4396.50 | E55: 4338.45 | F55: 4297.10 | G55: 4239.05 | H55: 4437.85 | I55: 4495.90 | J55: 4537.25 | K55: 4454.55 | L55: 4355.15 | M55: 3.31092
A56: 47 | B56: CANBK | C56: 288.8 | D56: 285.67 | E56: 281.83 | F56: 274.87 | G56: 271.03 | H56: 292.63 | I56: 296.47 | J56: 303.43 | K56: 289.5 | L56: 278.7 | M56: 74.86961
A57: 48 | B57: CHOLAFIN | C57: 766.75 | D57: 765.42 | E57: 758.93 | F57: 751.12 | G57: 744.63 | H57: 773.23 | I57: 779.72 | J57: 787.53 | K57: 771.9 | L57: 757.6 | M57: 7.79296
A58: 49 | B58: CIPLA | C58: 899.6 | D58: 901.95 | E58: 893.65 | F58: 887.70 | G58: 879.40 | H58: 907.90 | I58: 916.20 | J58: 922.15 | K58: 910.25 | L58: 896 | M58: 34.96231
A59: 50 | B59: CLEAN | C59: 1388.8 | D59: 1389.03 | E59: 1379.72 | F59: 1370.63 | G59: 1361.32 | H59: 1398.12 | I59: 1407.43 | J59: 1416.52 | K59: 1398.35 | L59: 1379.95 | M59: 0.18616
A60: 51 | B60: COALINDIA | C60: 218.75 | D60: 217.42 | E60: 215.83 | F60: 212.92 | G60: 211.33 | H60: 220.33 | I60: 221.92 | J60: 224.83 | K60: 219 | L60: 214.5 | M60: 45.10175
A61: 52 | B61: COFORGE | C61: 4300.35 | D61: 4283.57 | E61: 4258.13 | F61: 4215.92 | G61: 4190.48 | H61: 4325.78 | I61: 4351.22 | J61: 4393.43 | K61: 4309 | L61: 4241.35 | M61: 3.08649
A62: 53 | B62: COLPAL | C62: 1482.5 | D62: 1480.55 | E62: 1474.20 | F62: 1465.90 | G62: 1459.55 | H62: 1488.85 | I62: 1495.20 | J62: 1503.50 | K62: 1486.9 | L62: 1472.25 | M62: 2.54165
A63: 54 | B63: CONCOR | C63: 599.2 | D63: 597.30 | E63: 592.90 | F63: 586.60 | G63: 582.20 | H63: 603.60 | I63: 608.00 | J63: 614.30 | K63: 601.7 | L63: 591 | M63: 15.49355
A64: 55 | B64: COROMANDEL | C64: 913.1 | D64: 907.30 | E64: 898.60 | F64: 884.10 | G64: 875.40 | H64: 921.80 | I64: 930.50 | J64: 945.00 | K64: 916 | L64: 892.8 | M64: 1.42392
A65: 56 | B65: CROMPTON | C65: 309.5 | D65: 308.37 | E65: 306.23 | F65: 302.97 | G65: 300.83 | H65: 311.63 | I65: 313.77 | J65: 317.03 | K65: 310.5 | L65: 305.1 | M65: 13.75176
A66: 57 | B66: CUMMINSIND | C66: 1602.5 | D66: 1592.48 | E66: 1574.02 | F66: 1545.53 | G66: 1527.07 | H66: 1620.97 | I66: 1639.43 | J66: 1667.92 | K66: 1610.95 | L66: 1564 | M66: 6.51248
A67: 58 | B67: DLF | C67: 355.65 | D67: 354.67 | E67: 351.93 | F67: 348.22 | G67: 345.48 | H67: 358.38 | I67: 361.12 | J67: 364.83 | K67: 357.4 | L67: 350.95 | M67: 15.07846
A68: 59 | B68: DABUR | C68: 527.25 | D68: 529.90 | E68: 523.35 | F68: 519.45 | G68: 512.90 | H68: 533.80 | I68: 540.35 | J68: 544.25 | K68: 536.45 | L68: 526 | M68: 17.67693
A69: 60 | B69: DALBHARAT | C69: 1875.7 | D69: 1861.48 | E69: 1843.22 | F69: 1810.73 | G69: 1792.47 | H69: 1893.97 | I69: 1912.23 | J69: 1944.72 | K69: 1879.75 | L69: 1829 | M69: 3.28784
A70: 61 | B70: DEEPAKNTR | C70: 1845.75 | D70: 1832.63 | E70: 1812.27 | F70: 1778.78 | G70: 1758.42 | H70: 1866.12 | I70: 1886.48 | J70: 1919.97 | K70: 1853 | L70: 1799.15 | M70: 4.3244
A71: 62 | B71: DELHIVERY | C71: 348.15 | D71: 345.07 | E71: 340.13 | F71: 332.12 | G71: 327.18 | H71: 353.08 | I71: 358.02 | J71: 366.03 | K71: 350 | L71: 337.05 | M71: 17.52906
A72: 63 | B72: DIVISLAB | C72: 2845.3 | D72: 2841.77 | E72: 2826.53 | F72: 2807.77 | G72: 2792.53 | H72: 2860.53 | I72: 2875.77 | J72: 2894.53 | K72: 2857 | L72: 2823 | M72: 1.54311
A73: 64 | B73: DIXON | C73: 2929.9 | D73: 2934.68 | E73: 2875.12 | F73: 2820.33 | G73: 2760.77 | H73: 2989.47 | I73: 3049.03 | J73: 3103.82 | K73: 2994.25 | L73: 2879.9 | M73: 7.34196
A74: 65 | B74: LALPATHLAB | C74: 1970.05 | D74: 1978.43 | E74: 1951.62 | F74: 1933.18 | G74: 1906.37 | H74: 1996.87 | I74: 2023.68 | J74: 2042.12 | K74: 2005.25 | L74: 1960 | M74: 1.3259
A75: 66 | B75: DRREDDY | C75: 4344.2 | D75: 4332.78 | E75: 4308.42 | F75: 4272.63 | G75: 4248.27 | H75: 4368.57 | I75: 4392.93 | J75: 4428.72 | K75: 4357.15 | L75: 4297 | M75: 1.99103
A76: 67 | B76: EICHERMOT | C76: 3138.8 | D76: 3123.13 | E76: 3102.37 | F76: 3065.93 | G76: 3045.17 | H76: 3159.57 | I76: 3180.33 | J76: 3216.77 | K76: 3143.9 | L76: 3086.7 | M76: 5.22394
A77: 68 | B77: EMAMILTD | C77: 395.05 | D77: 397.43 | E77: 391.72 | F77: 388.38 | G77: 382.67 | H77: 400.77 | I77: 406.48 | J77: 409.82 | K77: 403.15 | L77: 394.1 | M77: 4.18321
A78: 69 | B78: ESCORTS | C78: 2086.3 | D78: 2076.70 | E78: 2059.60 | F78: 2032.90 | G78: 2015.80 | H78: 2103.40 | I78: 2120.50 | J78: 2147.20 | K78: 2093.8 | L78: 2050 | M78: 3.19649
A79: 70 | B79: NYKAA | C79: 142.75 | D79: 143.58 | E79: 139.77 | F79: 136.78 | G79: 132.97 | H79: 146.57 | I79: 150.38 | J79: 153.37 | K79: 147.4 | L79: 140.6 | M79: 142.09058
A80: 71 | B80: FEDERALBNK | C80: 134.35 | D80: 132.75 | E80: 130.75 | F80: 127.15 | G80: 125.15 | H80: 136.35 | I80: 138.35 | J80: 141.95 | K80: 134.75 | L80: 129.15 | M80: 138.98807
A81: 72 | B81: FORTIS | C81: 269 | D81: 268.00 | E81: 266.00 | F81: 263.00 | G81: 261.00 | H81: 271.00 | I81: 273.00 | J81: 276.00 | K81: 270 | L81: 265 | M81: 4.77009
A82: 73 | B82: GAIL | C82: 103.4 | D82: 103.03 | E82: 102.52 | F82: 101.63 | G82: 101.12 | H82: 103.92 | I82: 104.43 | J82: 105.32 | K82: 103.55 | L82: 102.15 | M82: 70.12524
A83: 74 | B83: GLAND | C83: 1292.75 | D83: 1299.98 | E83: 1272.77 | F83: 1252.78 | G83: 1225.57 | H83: 1319.97 | I83: 1347.18 | J83: 1367.17 | K83: 1327.2 | L83: 1280 | M83: 2.01346
A84: 75 | B84: GODREJCP | C84: 912.05 | D84: 918.82 | E84: 901.58 | F84: 891.12 | G84: 873.88 | H84: 929.28 | I84: 946.52 | J84: 956.98 | K84: 936.05 | L84: 908.35 | M84: 10.15922
A85: 76 | B85: GODREJPROP | C85: 1119.25 | D85: 1113.68 | E85: 1103.37 | F85: 1087.48 | G85: 1077.17 | H85: 1129.57 | I85: 1139.88 | J85: 1155.77 | K85: 1124 | L85: 1097.8 | M85: 2.13547
A86: 77 | B86: GRASIM | C86: 1593.65 | D86: 1586.55 | E86: 1575.10 | F86: 1556.55 | G86: 1545.10 | H86: 1605.10 | I86: 1616.55 | J86: 1635.10 | K86: 1598 | L86: 1568 | M86: 2.86958
A87: 78 | B87: GUJGASLTD | C87: 511.2 | D87: 510.18 | E87: 507.27 | F87: 503.33 | G87: 500.42 | H87: 514.12 | I87: 517.03 | J87: 520.97 | K87: 513.1 | L87: 506.25 | M87: 11.53664
A88: 79 | B88: GSPL | C88: 286.55 | D88: 284.97 | E88: 280.18 | F88: 273.82 | G88: 269.03 | H88: 291.33 | I88: 296.12 | J88: 302.48 | K88: 289.75 | L88: 278.6 | M88: 18.62464
A89: 80 | B89: HCLTECH | C89: 1101.1 | D89: 1094.15 | E89: 1084.30 | F89: 1067.50 | G89: 1057.65 | H89: 1110.95 | I89: 1120.80 | J89: 1137.60 | K89: 1104 | L89: 1077.35 | M89: 16.551
A90: 81 | B90: HDFCAMC | C90: 1809.35 | D90: 1808.45 | E90: 1791.90 | F90: 1774.45 | G90: 1757.90 | H90: 1825.90 | I90: 1842.45 | J90: 1859.90 | K90: 1825 | L90: 1791 | M90: 4.43636
A91: 82 | B91: HDFCBANK | C91: 1598.05 | D91: 1602.27 | E91: 1591.53 | F91: 1585.02 | G91: 1574.28 | H91: 1608.78 | I91: 1619.52 | J91: 1626.03 | K91: 1613 | L91: 1595.75 | M91: 70.68628
A92: 83 | B92: HDFCLIFE | C92: 489.75 | D92: 488.33 | E92: 485.82 | F92: 481.88 | G92: 479.37 | H92: 492.27 | I92: 494.78 | J92: 498.72 | K92: 490.85 | L92: 484.4 | M92: 15.91916
A93: 84 | B93: HAVELLS | C93: 1214.55 | D93: 1208.42 | E93: 1198.88 | F93: 1183.22 | G93: 1173.68 | H93: 1224.08 | I93: 1233.62 | J93: 1249.28 | K93: 1217.95 | L93: 1192.75 | M93: 3.02995
A94: 85 | B94: HEROMOTOCO | C94: 2431.1 | D94: 2429.78 | E94: 2415.62 | F94: 2400.13 | G94: 2385.97 | H94: 2445.27 | I94: 2459.43 | J94: 2474.92 | K94: 2443.95 | L94: 2414.3 | M94: 2.93122
A95: 86 | B95: HINDALCO | C95: 413.05 | D95: 409.87 | E95: 404.83 | F95: 396.62 | G95: 391.58 | H95: 418.08 | I95: 423.12 | J95: 431.33 | K95: 414.9 | L95: 401.65 | M95: 79.35816
A96: 87 | B96: HAL | C96: 2684.25 | D96: 2649.53 | E96: 2609.07 | F96: 2533.88 | G96: 2493.42 | H96: 2724.72 | I96: 2765.18 | J96: 2840.37 | K96: 2690 | L96: 2574.35 | M96: 14.01008
A97: 88 | B97: HINDPETRO | C97: 215.2 | D97: 215.58 | E97: 214.02 | F97: 212.83 | G97: 211.27 | H97: 216.77 | I97: 218.33 | J97: 219.52 | K97: 217.15 | L97: 214.4 | M97: 31.1944
A98: 89 | B98: HINDUNILVR | C98: 2466.25 | D98: 2461.42 | E98: 2452.83 | F98: 2439.42 | G98: 2430.83 | H98: 2474.83 | I98: 2483.42 | J98: 2496.83 | K98: 2470 | L98: 2448 | M98: 9.67339
A99: 90 | B99: HINDZINC | C99: 311.55 | D99: 308.93 | E99: 303.87 | F99: 296.18 | G99: 291.12 | H99: 316.62 | I99: 321.68 | J99: 329.37 | K99: 314 | L99: 301.25 | M99: 7.43898
A100: 91 | B100: HONAUT | C100: 35266.25 | D100: 35050.55 | E100: 34715.70 | F100: 34165.15 | G100: 33830.30 | H100: 35601.10 | I100: 35935.95 | J100: 36486.50 | K100: 35385.4 | L100: 34500 | M100: 0.12571
A101: 92 | B101: HDFC | C101: 2618.3 | D101: 2617.82 | E101: 2607.78 | F101: 2597.27 | G101: 2587.23 | H101: 2628.33 | I101: 2638.37 | J101: 2648.88 | K101: 2627.85 | L101: 2607.3 | M101: 16.78043
A102: 93 | B102: ICICIBANK | C102: 856.3 | D102: 857.38 | E102: 850.77 | F102: 845.23 | G102: 838.62 | H102: 862.92 | I102: 869.53 | J102: 875.07 | K102: 864 | L102: 851.85 | M102: 110.15843
A103: 94 | B103: ICICIGI | C103: 1100.45 | D103: 1099.40 | E103: 1092.90 | F103: 1085.35 | G103: 1078.85 | H103: 1106.95 | I103: 1113.45 | J103: 1121.00 | K103: 1105.9 | L103: 1091.85 | M103: 1.96382
A104: 95 | B104: ICICIPRULI | C104: 407.85 | D104: 405.85 | E104: 402.40 | F104: 396.95 | G104: 393.50 | H104: 411.30 | I104: 414.75 | J104: 420.20 | K104: 409.3 | L104: 400.4 | M104: 13.86636
A105: 96 | B105: ISEC | C105: 471.75 | D105: 470.62 | E105: 466.13 | F105: 460.52 | G105: 456.03 | H105: 476.23 | I105: 480.72 | J105: 486.33 | K105: 475.1 | L105: 465 | M105: 0.65508
A106: 97 | B106: IDFCFIRSTB | C106: 55.7 | D106: 55.70 | E106: 55.15 | F106: 54.60 | G106: 54.05 | H106: 56.25 | I106: 56.80 | J106: 57.35 | K106: 56.25 | L106: 55.15 | M106: 175.89664
A107: 98 | B107: ITC | C107: 378.7 | D107: 377.57 | E107: 374.73 | F107: 370.77 | G107: 367.93 | H107: 381.53 | I107: 384.37 | J107: 388.33 | K107: 380.4 | L107: 373.6 | M107: 77.66667
A108: 99 | B108: INDIAMART | C108: 4951.3 | D108: 4948.10 | E108: 4851.20 | F108: 4751.10 | G108: 4654.20 | H108: 5048.20 | I108: 5145.10 | J108: 5245.20 | K108: 5045 | L108: 4848 | M108: 2.31049
A109: 100 | B109: INDIANB | C109: 266.45 | D109: 264.00 | E109: 259.70 | F109: 252.95 | G109: 248.65 | H109: 270.75 | I109: 275.05 | J109: 281.80 | K109: 268.3 | L109: 257.25 | M109: 9.17092
A110: 101 | B110: IEX | C110: 147.5 | D110: 146.55 | E110: 144.85 | F110: 142.20 | G110: 140.50 | H110: 149.20 | I110: 150.90 | J110: 153.55 | K110: 148.25 | L110: 143.9 | M110: 66.00929
A111: 102 | B111: INDHOTEL | C111: 315 | D111: 313.75 | E111: 310.60 | F111: 306.20 | G111: 303.05 | H111: 318.15 | I111: 321.30 | J111: 325.70 | K111: 316.9 | L111: 309.35 | M111: 17.56767
A112: 103 | B112: IOC | C112: 76.95 | D112: 76.67 | E112: 76.13 | F112: 75.32 | G112: 74.78 | H112: 77.48 | I112: 78.02 | J112: 78.83 | K112: 77.2 | L112: 75.85 | M112: 66.94749
A113: 104 | B113: IRCTC | C113: 611.35 | D113: 609.82 | E113: 604.83 | F113: 598.32 | G113: 593.33 | H113: 616.33 | I113: 621.32 | J113: 627.83 | K113: 614.8 | L113: 603.3 | M113: 8.38187
A114: 105 | B114: IGL | C114: 439.85 | D114: 438.72 | E114: 435.88 | F114: 431.92 | G114: 429.08 | H114: 442.68 | I114: 445.52 | J114: 449.48 | K114: 441.55 | L114: 434.75 | M114: 12.38636
A115: 106 | B115: INDUSTOWER | C115: 171.45 | D115: 170.05 | E115: 167.70 | F115: 163.95 | G115: 161.60 | H115: 173.80 | I115: 176.15 | J115: 179.90 | K115: 172.4 | L115: 166.3 | M115: 39.70118
A116: 107 | B116: INDUSINDBK | C116: 1100.45 | D116: 1092.37 | E116: 1078.18 | F116: 1055.92 | G116: 1041.73 | H116: 1114.63 | I116: 1128.82 | J116: 1151.08 | K116: 1106.55 | L116: 1070.1 | M116: 40.06038
A117: 108 | B117: NAUKRI | C117: 3510.85 | D117: 3512.03 | E117: 3487.07 | F117: 3463.28 | G117: 3438.32 | H117: 3535.82 | I117: 3560.78 | J117: 3584.57 | K117: 3537 | L117: 3488.25 | M117: 1.74845
A118: 109 | B118: INFY | C118: 1496.05 | D118: 1492.80 | E118: 1484.75 | F118: 1473.45 | G118: 1465.40 | H118: 1504.10 | I118: 1512.15 | J118: 1523.45 | K118: 1500.85 | L118: 1481.5 | M118: 51.25043
A119: 110 | B119: INDIGO | C119: 1843.7 | D119: 1848.03 | E119: 1827.12 | F119: 1810.53 | G119: 1789.62 | H119: 1864.62 | I119: 1885.53 | J119: 1902.12 | K119: 1868.95 | L119: 1831.45 | M119: 4.16942
A120: 111 | B120: IPCALAB | C120: 807.7 | D120: 806.65 | E120: 802.10 | F120: 796.50 | G120: 791.95 | H120: 812.25 | I120: 816.80 | J120: 822.40 | K120: 811.2 | L120: 801.05 | M120: 2.36744
A121: 112 | B121: JSWENERGY | C121: 233.7 | D121: 234.65 | E121: 227.25 | F121: 220.80 | G121: 213.40 | H121: 241.10 | I121: 248.50 | J121: 254.95 | K121: 242.05 | L121: 228.2 | M121: 39.02719
A122: 113 | B122: JSWSTEEL | C122: 676.7 | D122: 674.50 | E122: 670.20 | F122: 663.70 | G122: 659.40 | H122: 681.00 | I122: 685.30 | J122: 691.80 | K122: 678.8 | L122: 668 | M122: 14.64537
A123: 114 | B123: JINDALSTEL | C123: 572.45 | D123: 566.50 | E123: 558.35 | F123: 544.25 | G123: 536.10 | H123: 580.60 | I123: 588.75 | J123: 602.85 | K123: 574.65 | L123: 552.4 | M123: 27.25782
A124: 115 | B124: JUBLFOOD | C124: 442.9 | D124: 441.32 | E124: 438.63 | F124: 434.37 | G124: 431.68 | H124: 445.58 | I124: 448.27 | J124: 452.53 | K124: 444 | L124: 437.05 | M124: 12.67363
A125: 116 | B125: KOTAKBANK | C125: 1744.9 | D125: 1740.50 | E125: 1730.40 | F125: 1715.90 | G125: 1705.80 | H125: 1755.00 | I125: 1765.10 | J125: 1779.60 | K125: 1750.6 | L125: 1726 | M125: 56.13386
A126: 117 | B126: L&TFH | C126: 90.2 | D126: 89.38 | E126: 88.27 | F126: 86.33 | G126: 85.22 | H126: 91.32 | I126: 92.43 | J126: 94.37 | K126: 90.5 | L126: 87.45 | M126: 49.27896
A127: 118 | B127: LTTS | C127: 3748.65 | D127: 3731.37 | E127: 3702.78 | F127: 3656.92 | G127: 3628.33 | H127: 3777.23 | I127: 3805.82 | J127: 3851.68 | K127: 3759.95 | L127: 3685.5 | M127: 1.2763
A128: 119 | B128: LICHSGFIN | C128: 356.85 | D128: 354.73 | E128: 351.52 | F128: 346.18 | G128: 342.97 | H128: 360.07 | I128: 363.28 | J128: 368.62 | K128: 357.95 | L128: 349.4 | M128: 10.22685
A129: 120 | B129: LTIM | C129: 4743.8 | D129: 4741.07 | E129: 4712.13 | F129: 4680.47 | G129: 4651.53 | H129: 4772.73 | I129: 4801.67 | J129: 4833.33 | K129: 4770 | L129: 4709.4 | M129: 2.90531
A130: 121 | B130: LT | C130: 2115.3 | D130: 2115.10 | E130: 2100.20 | F130: 2085.10 | G130: 2070.20 | H130: 2130.20 | I130: 2145.10 | J130: 2160.20 | K130: 2130 | L130: 2100 | M130: 13.89077
A131: 122 | B131: LAURUSLABS | C131: 314.15 | D131: 314.68 | E131: 312.62 | F131: 311.08 | G131: 309.02 | H131: 316.22 | I131: 318.28 | J131: 319.82 | K131: 316.75 | L131: 313.15 | M131: 5.46856
A132: 123 | B132: LICI | C132: 601.7 | D132: 595.50 | E132: 586.45 | F132: 571.20 | G132: 562.15 | H132: 610.75 | I132: 619.80 | J132: 635.05 | K132: 604.55 | L132: 580.25 | M132: 18.22832
A133: 124 | B133: LINDEINDIA | C133: 3730.65 | D133: 3727.27 | E133: 3697.33 | F133: 3664.02 | G133: 3634.08 | H133: 3760.58 | I133: 3790.52 | J133: 3823.83 | K133: 3757.2 | L133: 3693.95 | M133: 0.23874
A134: 125 | B134: LUPIN | C134: 661.4 | D134: 658.40 | E134: 654.30 | F134: 647.20 | G134: 643.10 | H134: 665.50 | I134: 669.60 | J134: 676.70 | K134: 662.5 | L134: 651.3 | M134: 7.21794
A135: 126 | B135: MRF | C135: 86068.6 | D135: 85780.35 | E135: 85115.75 | F135: 84162.90 | G135: 83498.30 | H135: 86733.20 | I135: 87397.80 | J135: 88350.65 | K135: 86444.95 | L135: 84827.5 | M135: 0.06829
A136: 127 | B136: M&MFIN | C136: 255.1 | D136: 254.60 | E136: 252.10 | F136: 249.10 | G136: 246.60 | H136: 257.60 | I136: 260.10 | J136: 263.10 | K136: 257.1 | L136: 251.6 | M136: 17.95772
A137: 128 | B137: M&M | C137: 1272.15 | D137: 1282.25 | E137: 1258.95 | F137: 1245.75 | G137: 1222.45 | H137: 1295.45 | I137: 1318.75 | J137: 1331.95 | K137: 1305.55 | L137: 1269.05 | M137: 23.38935
A138: 129 | B138: MARICO | C138: 495.95 | D138: 495.65 | E138: 492.30 | F138: 488.65 | G138: 485.30 | H138: 499.30 | I138: 502.65 | J138: 506.30 | K138: 499 | L138: 492 | M138: 11.6172
A139: 130 | B139: MARUTI | C139: 8764.15 | D139: 8720.13 | E139: 8664.02 | F139: 8563.88 | G139: 8507.77 | H139: 8820.27 | I139: 8876.38 | J139: 8976.52 | K139: 8776.25 | L139: 8620 | M139: 3.33441
A140: 131 | B140: MFSL | C140: 699.6 | D140: 695.43 | E140: 685.67 | F140: 671.73 | G140: 661.97 | H140: 709.37 | I140: 719.13 | J140: 733.07 | K140: 705.2 | L140: 681.5 | M140: 7.26959
A141: 132 | B141: MAXHEALTH | C141: 433.55 | D141: 431.68 | E141: 428.37 | F141: 423.18 | G141: 419.87 | H141: 436.87 | I141: 440.18 | J141: 445.37 | K141: 435 | L141: 426.5 | M141: 13.40035
A142: 133 | B142: MSUMI | C142: 50.3 | D142: 50.10 | E142: 49.60 | F142: 48.90 | G142: 48.40 | H142: 50.80 | I142: 51.30 | J142: 52.00 | K142: 50.6 | L142: 49.4 | M142: 14.50955
A143: 134 | B143: MPHASIS | C143: 2060.4 | D143: 2056.57 | E143: 2032.13 | F143: 2003.87 | G143: 1979.43 | H143: 2084.83 | I143: 2109.27 | J143: 2137.53 | K143: 2081 | L143: 2028.3 | M143: 2.58083
A144: 135 | B144: MUTHOOTFIN | C144: 960.4 | D144: 966.78 | E144: 952.62 | F144: 944.83 | G144: 930.67 | H144: 974.57 | I144: 988.73 | J144: 996.52 | K144: 980.95 | L144: 959 | M144: 5.21792
A145: 136 | B145: NTPC | C145: 172.25 | D145: 171.75 | E145: 170.45 | F145: 168.65 | G145: 167.35 | H145: 173.55 | I145: 174.85 | J145: 176.65 | K145: 173.05 | L145: 169.95 | M145: 93.1879
A146: 137 | B146: NATIONALUM | C146: 82.65 | D146: 81.27 | E146: 79.53 | F146: 76.42 | G146: 74.68 | H146: 84.38 | I146: 86.12 | J146: 89.23 | K146: 83 | L146: 78.15 | M146: 146.51557
A147: 138 | B147: NAVINFLUOR | C147: 4209.25 | D147: 4184.55 | E147: 4136.10 | F147: 4062.95 | G147: 4014.50 | H147: 4257.70 | I147: 4306.15 | J147: 4379.30 | K147: 4233 | L147: 4111.4 | M147: 1.24584
A148: 139 | B148: NESTLEIND | C148: 18778.85 | D148: 18724.80 | E148: 18629.20 | F148: 18479.55 | G148: 18383.95 | H148: 18874.45 | I148: 18970.05 | J148: 19119.70 | K148: 18820.4 | L148: 18575.15 | M148: 0.63926
A149: 140 | B149: NAM-INDIA | C149: 223.9 | D149: 223.47 | E149: 221.78 | F149: 219.67 | G149: 217.98 | H149: 225.58 | I149: 227.27 | J149: 229.38 | K149: 225.15 | L149: 221.35 | M149: 3.01717
A150: 141 | B150: OBEROIRLTY | C150: 868.55 | D150: 864.60 | E150: 856.00 | F150: 843.45 | G150: 834.85 | H150: 877.15 | I150: 885.75 | J150: 898.30 | K150: 873.2 | L150: 852.05 | M150: 3.06092
A151: 142 | B151: ONGC | C151: 154.8 | D151: 153.92 | E151: 152.73 | F151: 150.67 | G151: 149.48 | H151: 155.98 | I151: 157.17 | J151: 159.23 | K151: 155.1 | L151: 151.85 | M151: 77.07977
A152: 143 | B152: OIL | C152: 258.45 | D152: 254.97 | E152: 249.93 | F152: 241.42 | G152: 236.38 | H152: 263.48 | I152: 268.52 | J152: 277.03 | K152: 260 | L152: 246.45 | M152: 28.3123
A153: 144 | B153: PAYTM | C153: 608.25 | D153: 607.95 | E153: 600.30 | F153: 592.35 | G153: 584.70 | H153: 615.90 | I153: 623.55 | J153: 631.50 | K153: 615.6 | L153: 600 | M153: 39.28587
A154: 145 | B154: OFSS | C154: 3162.75 | D154: 3164.32 | E154: 3140.63 | F154: 3118.52 | G154: 3094.83 | H154: 3186.43 | I154: 3210.12 | J154: 3232.23 | K154: 3188 | L154: 3142.2 | M154: 0.26858
A155: 146 | B155: POLICYBZR | C155: 574.7 | D155: 572.63 | E155: 562.27 | F155: 549.83 | G155: 539.47 | H155: 585.07 | I155: 595.43 | J155: 607.87 | K155: 583 | L155: 560.2 | M155: 21.76463
A156: 147 | B156: PIIND | C156: 3136 | D156: 3117.33 | E156: 3084.77 | F156: 3033.53 | G156: 3000.97 | H156: 3168.57 | I156: 3201.13 | J156: 3252.37 | K156: 3149.9 | L156: 3066.1 | M156: 2.93899
A157: 148 | B157: PAGEIND | C157: 38190.75 | D157: 38276.92 | E157: 37913.83 | F157: 37636.92 | G157: 37273.83 | H157: 38553.83 | I157: 38916.92 | J157: 39193.83 | K157: 38640 | L157: 38000 | M157: 0.29845
A158: 149 | B158: PATANJALI | C158: 946.5 | D158: 940.22 | E158: 927.48 | F158: 908.47 | G158: 895.73 | H158: 959.23 | I158: 971.97 | J158: 990.98 | K158: 952.95 | L158: 921.2 | M158: 2.5303
A159: 150 | B159: PERSISTENT | C159: 4908.1 | D159: 4868.22 | E159: 4801.43 | F159: 4694.77 | G159: 4627.98 | H159: 4974.88 | I159: 5041.67 | J159: 5148.33 | K159: 4935 | L159: 4761.55 | M159: 2.7437
A160: 151 | B160: PETRONET | C160: 220.25 | D160: 221.25 | E160: 218.55 | F160: 216.85 | G160: 214.15 | H160: 222.95 | I160: 225.65 | J160: 227.35 | K160: 223.95 | L160: 219.55 | M160: 29.02429
A161: 152 | B161: PIDILITIND | C161: 2307.5 | D161: 2306.32 | E161: 2296.38 | F161: 2285.27 | G161: 2275.33 | H161: 2317.43 | I161: 2327.37 | J161: 2338.48 | K161: 2316.25 | L161: 2295.2 | M161: 2.83892
A162: 153 | B162: POLYCAB | C162: 3115.9 | D162: 3108.38 | E162: 3074.77 | F162: 3033.63 | G162: 3000.02 | H162: 3149.52 | I162: 3183.13 | J162: 3224.27 | K162: 3142 | L162: 3067.25 | M162: 5.56955
A163: 154 | B163: POONAWALLA | C163: 292.1 | D163: 292.03 | E163: 289.22 | F163: 286.33 | G163: 283.52 | H163: 294.92 | I163: 297.73 | J163: 300.62 | K163: 294.85 | L163: 289.15 | M163: 15.19061
A164: 155 | B164: PFC | C164: 149.45 | D164: 147.97 | E164: 145.88 | F164: 142.32 | G164: 140.23 | H164: 151.53 | I164: 153.62 | J164: 157.18 | K164: 150.05 | L164: 144.4 | M164: 45.62532
A165: 156 | B165: POWERGRID | C165: 218.9 | D165: 219.52 | E165: 216.78 | F165: 214.67 | G165: 211.93 | H165: 221.63 | I165: 224.37 | J165: 226.48 | K165: 222.25 | L165: 217.4 | M165: 96.72064
A166: 157 | B166: PRESTIGE | C166: 406.9 | D166: 408.60 | E166: 403.45 | F166: 400.00 | G166: 394.85 | H166: 412.05 | I166: 417.20 | J166: 420.65 | K166: 413.75 | L166: 405.15 | M166: 1.69431
A167: 158 | B167: PGHH | C167: 13913.3 | D167: 13797.43 | E167: 13595.87 | F167: 13278.43 | G167: 13076.87 | H167: 14114.87 | I167: 14316.43 | J167: 14633.87 | K167: 13999 | L167: 13480 | M167: 0.04572
A168: 159 | B168: PNB | C168: 50.15 | D168: 49.77 | E168: 48.58 | F168: 47.02 | G168: 45.83 | H168: 51.33 | I168: 52.52 | J168: 54.08 | K168: 50.95 | L168: 48.2 | M168: 547.33648
A169: 160 | B169: RECLTD | C169: 115.05 | D169: 114.82 | E169: 114.08 | F169: 113.12 | G169: 112.38 | H169: 115.78 | I169: 116.52 | J169: 117.48 | K169: 115.55 | L169: 113.85 | M169: 73.63118
A170: 161 | B170: RELIANCE | C170: 2343.9 | D170: 2337.55 | E170: 2329.60 | F170: 2315.30 | G170: 2307.35 | H170: 2351.85 | I170: 2359.80 | J170: 2374.10 | K170: 2345.5 | L170: 2323.25 | M170: 53.30852
A171: 162 | B171: SBICARD | C171: 751.7 | D171: 751.33 | E171: 742.97 | F171: 734.23 | G171: 725.87 | H171: 760.07 | I171: 768.43 | J171: 777.17 | K171: 759.7 | L171: 742.6 | M171: 5.97707
A172: 163 | B172: SBILIFE | C172: 1118.15 | D172: 1117.87 | E172: 1109.08 | F172: 1100.02 | G172: 1091.23 | H172: 1126.93 | I172: 1135.72 | J172: 1144.78 | K172: 1126.65 | L172: 1108.8 | M172: 6.755
A173: 164 | B173: SRF | C173: 2235.45 | D173: 2220.42 | E173: 2199.08 | F173: 2162.72 | G173: 2141.38 | H173: 2256.78 | I173: 2278.12 | J173: 2314.48 | K173: 2241.75 | L173: 2184.05 | M173: 6.18814
A174: 165 | B174: MOTHERSON | C174: 81.4 | D174: 80.93 | E174: 80.27 | F174: 79.13 | G174: 78.47 | H174: 82.07 | I174: 82.73 | J174: 83.87 | K174: 81.6 | L174: 79.8 | M174: 78.49215
A175: 166 | B175: SHREECEM | C175: 26329.5 | D175: 26216.48 | E175: 26012.97 | F175: 25696.43 | G175: 25492.92 | H175: 26533.02 | I175: 26736.53 | J175: 27053.07 | K175: 26420 | L175: 25899.95 | M175: 0.2924
A176: 167 | B176: SRTRANSFIN
A177: 168 | B177: SIEMENS | C177: 3257.15 | D177: 3251.37 | E177: 3236.03 | F177: 3214.92 | G177: 3199.58 | H177: 3272.48 | I177: 3287.82 | J177: 3308.93 | K177: 3266.7 | L177: 3230.25 | M177: 2.20349
A178: 169 | B178: SONACOMS | C178: 459.95 | D178: 457.65 | E178: 452.30 | F178: 444.65 | G178: 439.30 | H178: 465.30 | I178: 470.65 | J178: 478.30 | K178: 463 | L178: 450 | M178: 4.48273
A179: 170 | B179: SBIN | C179: 536.7 | D179: 532.40 | E179: 527.40 | F179: 518.10 | G179: 513.10 | H179: 541.70 | I179: 546.70 | J179: 556.00 | K179: 537.4 | L179: 523.1 | M179: 135.10198
A180: 171 | B180: SAIL | C180: 85.25 | D180: 84.58 | E180: 83.67 | F180: 82.08 | G180: 81.17 | H180: 86.17 | I180: 87.08 | J180: 88.67 | K180: 85.5 | L180: 83 | M180: 136.29694
A181: 172 | B181: SUNPHARMA | C181: 959.3 | D181: 958.78 | E181: 951.52 | F181: 943.73 | G181: 936.47 | H181: 966.57 | I181: 973.83 | J181: 981.62 | K181: 966.05 | L181: 951 | M181: 18.62513
A182: 173 | B182: SUNTV | C182: 439.3 | D182: 435.65 | E182: 431.30 | F182: 423.30 | G182: 418.95 | H182: 443.65 | I182: 448.00 | J182: 456.00 | K182: 440 | L182: 427.65 | M182: 3.79966
A183: 174 | B183: SYNGENE | C183: 586.85 | D183: 586.82 | E183: 580.53 | F183: 574.22 | G183: 567.93 | H183: 593.13 | I183: 599.42 | J183: 605.73 | K183: 593.1 | L183: 580.5 | M183: 7.37823
A184: 175 | B184: TVSMOTOR | C184: 1062.95 | D184: 1069.38 | E184: 1053.57 | F184: 1044.18 | G184: 1028.37 | H184: 1078.77 | I184: 1094.58 | J184: 1103.97 | K184: 1085.2 | L184: 1060 | M184: 19.07551
A185: 176 | B185: TATACHEM | C185: 994.5 | D185: 988.50 | E185: 978.00 | F185: 961.50 | G185: 951.00 | H185: 1005.00 | I185: 1015.50 | J185: 1032.00 | K185: 999 | L185: 972 | M185: 6.10565
A186: 177 | B186: TATACOMM | C186: 1206.15 | D186: 1208.40 | E186: 1199.95 | F186: 1193.75 | G186: 1185.30 | H186: 1214.60 | I186: 1223.05 | J186: 1229.25 | K186: 1216.85 | L186: 1202.2 | M186: 1.48166
A187: 178 | B187: TCS | C187: 3385.7 | D187: 3363.23 | E187: 3337.47 | F187: 3289.23 | G187: 3263.47 | H187: 3411.47 | I187: 3437.23 | J187: 3485.47 | K187: 3389 | L187: 3315 | M187: 16.69307
A188: 179 | B188: TATACONSUM | C188: 715.25 | D188: 713.90 | E188: 710.90 | F188: 706.55 | G188: 703.55 | H188: 718.25 | I188: 721.25 | J188: 725.60 | K188: 716.9 | L188: 709.55 | M188: 9.9154
A189: 180 | B189: TATAELXSI | C189: 6194.6 | D189: 6187.18 | E189: 6130.42 | F189: 6066.23 | G189: 6009.47 | H189: 6251.37 | I189: 6308.13 | J189: 6372.32 | K189: 6243.95 | L189: 6123 | M189: 0.97556
A190: 181 | B190: TATAMOTORS | C190: 426 | D190: 425.17 | E190: 422.33 | F190: 418.67 | G190: 415.83 | H190: 428.83 | I190: 431.67 | J190: 435.33 | K190: 428 | L190: 421.5 | M190: 75.95114
A191: 182 | B191: TATAPOWER | C191: 204.55 | D191: 204.12 | E191: 202.83 | F191: 201.12 | G191: 199.83 | H191: 205.83 | I191: 207.12 | J191: 208.83 | K191: 205.4 | L191: 202.4 | M191: 65.02602
A192: 183 | B192: TATASTEEL | C192: 105.5 | D192: 105.70 | E192: 104.30 | F192: 103.10 | G192: 101.70 | H192: 106.90 | I192: 108.30 | J192: 109.50 | K192: 107.1 | L192: 104.5 | M192: 761.75319
A193: 184 | B193: TTML | C193: 58.85 | D193: 58.00 | E193: 57.15 | F193: 55.45 | G193: 54.60 | H193: 59.70 | I193: 60.55 | J193: 62.25 | K193: 58.85 | L193: 56.3 | M193: 53.34663
A194: 185 | B194: TECHM | C194: 1126.9 | D194: 1117.63 | E194: 1106.27 | F194: 1085.63 | G194: 1074.27 | H194: 1138.27 | I194: 1149.63 | J194: 1170.27 | K194: 1129 | L194: 1097 | M194: 20.84324
A195: 186 | B195: RAMCOCEM | C195: 730.3 | D195: 724.57 | E195: 716.58 | F195: 702.87 | G195: 694.88 | H195: 738.28 | I195: 746.27 | J195: 759.98 | K195: 732.55 | L195: 710.85 | M195: 3.17663
A196: 187 | B196: TITAN | C196: 2382.4 | D196: 2381.60 | E196: 2367.15 | F196: 2351.90 | G196: 2337.45 | H196: 2396.85 | I196: 2411.30 | J196: 2426.55 | K196: 2396.05 | L196: 2366.35 | M196: 4.79935
A197: 188 | B197: TORNTPHARM | C197: 1475.35 | D197: 1466.47 | E197: 1454.43 | F197: 1433.52 | G197: 1421.48 | H197: 1487.38 | I197: 1499.42 | J197: 1520.33 | K197: 1478.5 | L197: 1445.55 | M197: 3.82705
A198: 189 | B198: TORNTPOWER | C198: 506.55 | D198: 506.43 | E198: 503.32 | F198: 500.08 | G198: 496.97 | H198: 509.67 | I198: 512.78 | J198: 516.02 | K198: 509.55 | L198: 503.2 | M198: 3.34566
A199: 190 | B199: TRENT | C199: 1291.5 | D199: 1293.88 | E199: 1277.87 | F199: 1264.23 | G199: 1248.22 | H199: 1307.52 | I199: 1323.53 | J199: 1337.17 | K199: 1309.9 | L199: 1280.25 | M199: 4.67538
A200: 191 | B200: TRIDENT | C200: 31.15 | D200: 31.03 | E200: 30.47 | F200: 29.78 | G200: 29.22 | H200: 31.72 | I200: 32.28 | J200: 32.97 | K200: 31.6 | L200: 30.35 | M200: 40.86242
A201: 192 | B201: TIINDIA | C201: 2782.95 | D201: 2782.87 | E201: 2747.08 | F201: 2711.22 | G201: 2675.43 | H201: 2818.73 | I201: 2854.52 | J201: 2890.38 | K201: 2818.65 | L201: 2747 | M201: 2.34903
A202: 193 | B202: UPL | C202: 713.3 | D202: 707.43 | E202: 700.42 | F202: 687.53 | G202: 680.52 | H202: 720.32 | I202: 727.33 | J202: 740.22 | K202: 714.45 | L202: 694.55 | M202: 18.35234
A203: 194 | B203: ULTRACEMCO | C203: 7274.15 | D203: 7279.38 | E203: 7214.77 | F203: 7155.38 | G203: 7090.77 | H203: 7338.77 | I203: 7403.38 | J203: 7462.77 | K203: 7344 | L203: 7220 | M203: 3.17216
A204: 195 | B204: UNIONBANK | C204: 67.3 | D204: 67.53 | E204: 66.67 | F204: 66.03 | G204: 65.17 | H204: 68.17 | I204: 69.03 | J204: 69.67 | K204: 68.4 | L204: 66.9 | M204: 191.01022
A205: 196 | B205: UBL | C205: 1464.2 | D205: 1462.40 | E205: 1449.85 | F205: 1435.50 | G205: 1422.95 | H205: 1476.75 | I205: 1489.30 | J205: 1503.65 | K205: 1474.95 | L205: 1448.05 | M205: 2.28944
... 29 more rows

Sheet MidCap Intra
L5: Back To Main Page
A6: FOR INTRA DAY TRADING | K6: =Main!B10 -> 2023-03-02
A9: Sr.no | B9: Scrip | C9: CLOSE RATE | D9: Pivot Point | E9: Supports | H9: Resistances
E10: S1 | F10: S2 | G10: S3 | H10: R1 | I10: R2 | J10: R3 | K10: HIGH | L10: LOW | M10: Total Trade Quanity in Lakhs
A11: 1 | B11: 3MINDIA | C11: 22655.9 | D11: 22649.38 | E11: 22410.07 | F11: 22164.23 | G11: 21924.92 | H11: 22895.22 | I11: 23134.53 | J11: 23380.37 | K11: 22888.7 | L11: 22403.55 | M11: 0.02988
A12: 2 | B12: ABB | C12: 3311.45 | D12: 3279.28 | E12: 3238.87 | F12: 3166.28 | G12: 3125.87 | H12: 3351.87 | I12: 3392.28 | J12: 3464.87 | K12: 3319.7 | L12: 3206.7 | M12: 5.5656
A13: 3 | B13: ACC | C13: 1769.45 | D13: 1760.38 | E13: 1744.72 | F13: 1719.98 | G13: 1704.32 | H13: 1785.12 | I13: 1800.78 | J13: 1825.52 | K13: 1776.05 | L13: 1735.65 | M13: 6.26061
A14: 4 | B14: AIAENG | C14: 2706.8 | D14: 2690.60 | E14: 2667.20 | F14: 2627.60 | G14: 2604.20 | H14: 2730.20 | I14: 2753.60 | J14: 2793.20 | K14: 2714 | L14: 2651 | M14: 0.48734
A15: 5 | B15: APLAPOLLO | C15: 1260.45 | D15: 1243.35 | E15: 1212.30 | F15: 1164.15 | G15: 1133.10 | H15: 1291.50 | I15: 1322.55 | J15: 1370.70 | K15: 1274.4 | L15: 1195.2 | M15: 9.67913
A16: 6 | B16: AUBANK | C16: 611.5 | D16: 605.33 | E16: 597.17 | F16: 582.83 | G16: 574.67 | H16: 619.67 | I16: 627.83 | J16: 642.17 | K16: 613.5 | L16: 591 | M16: 10.79988
A17: 7 | B17: AARTIDRUGS | C17: 366.3 | D17: 366.95 | E17: 364.40 | F17: 362.50 | G17: 359.95 | H17: 368.85 | I17: 371.40 | J17: 373.30 | K17: 369.5 | L17: 365.05 | M17: 0.593
A18: 8 | B18: AAVAS | C18: 1851.95 | D18: 1863.48 | E18: 1818.47 | F18: 1784.98 | G18: 1739.97 | H18: 1896.97 | I18: 1941.98 | J18: 1975.47 | K18: 1908.5 | L18: 1830 | M18: 1.10863
A19: 9 | B19: ABBOTINDIA | C19: 20460.6 | D19: 20428.87 | E19: 20191.73 | F19: 19922.87 | G19: 19685.73 | H19: 20697.73 | I19: 20934.87 | J19: 21203.73 | K19: 20666 | L19: 20160 | M19: 0.08852
A20: 10 | B20: ADANIENT | C20: 1564.3 | D20: 1518.43 | E20: 1456.87 | F20: 1349.43 | G20: 1287.87 | H20: 1625.87 | I20: 1687.43 | J20: 1794.87 | K20: 1580 | L20: 1411 | M20: 201.1434
A21: 11 | B21: ADANIGREEN | C21: 509.55 | D21: 507.00 | E21: 504.45 | F21: 499.35 | G21: 496.80 | H21: 512.10 | I21: 514.65 | J21: 519.75 | K21: 509.55 | L21: 501.9 | M21: 3.8736
A22: 12 | B22: ADANIPORTS | C22: 602.1 | D22: 604.23 | E22: 592.47 | F22: 582.83 | G22: 571.07 | H22: 613.87 | I22: 625.63 | J22: 635.27 | K22: 616 | L22: 594.6 | M22: 186.61166
A23: 13 | B23: ATGL | C23: 711.65 | D23: 691.37 | E23: 670.28 | F23: 628.92 | G23: 607.83 | H23: 732.73 | I23: 753.82 | J23: 795.18 | K23: 712.45 | L23: 650 | M23: 73.8737
A24: 14 | B24: ADANITRANS | C24: 675 | D24: 660.50 | E24: 646.00 | F24: 617.00 | G24: 602.50 | H24: 689.50 | I24: 704.00 | J24: 733.00 | K24: 675 | L24: 631.5 | M24: 26.28313
A25: 15 | B25: AWL | C25: 379.7 | D25: 376.10 | E25: 372.50 | F25: 365.30 | G25: 361.70 | H25: 383.30 | I25: 386.90 | J25: 394.10 | K25: 379.7 | L25: 368.9 | M25: 9.9206
A26: 16 | B26: ABCAPITAL | C26: 152 | D26: 149.95 | E26: 147.40 | F26: 142.80 | G26: 140.25 | H26: 154.55 | I26: 157.10 | J26: 161.70 | K26: 152.5 | L26: 145.35 | M26: 55.27276
A27: 17 | B27: ABFRL | C27: 235.4 | D27: 233.67 | E27: 231.43 | F27: 227.47 | G27: 225.23 | H27: 237.63 | I27: 239.87 | J27: 243.83 | K27: 235.9 | L27: 229.7 | M27: 22.39545
A28: 18 | B28: ABSLAMC | C28: 380.05 | D28: 380.70 | E28: 378.90 | F28: 377.75 | G28: 375.95 | H28: 381.85 | I28: 383.65 | J28: 384.80 | K28: 382.5 | L28: 379.55 | M28: 0.69128
A29: 19 | B29: AEGISCHEM | C29: 366 | D29: 365.98 | E29: 361.02 | F29: 356.03 | G29: 351.07 | H29: 370.97 | I29: 375.93 | J29: 380.92 | K29: 370.95 | L29: 361 | M29: 21.80245
A30: 20 | B30: AETHER | C30: 873.4 | D30: 873.63 | E30: 864.77 | F30: 856.13 | G30: 847.27 | H30: 882.27 | I30: 891.13 | J30: 899.77 | K30: 882.5 | L30: 865 | M30: 0.11365
A31: 21 | B31: AFFLE | C31: 1022.1 | D31: 1020.50 | E31: 1013.60 | F31: 1005.10 | G31: 998.20 | H31: 1029.00 | I31: 1035.90 | J31: 1044.40 | K31: 1027.4 | L31: 1012 | M31: 1.29702
A32: 22 | B32: AJANTPHARM | C32: 1178.95 | D32: 1178.82 | E32: 1175.08 | F32: 1171.22 | G32: 1167.48 | H32: 1182.68 | I32: 1186.42 | J32: 1190.28 | K32: 1182.55 | L32: 1174.95 | M32: 0.37352
A33: 23 | B33: APLLTD | C33: 507.25 | D33: 508.47 | E33: 504.78 | F33: 502.32 | G33: 498.63 | H33: 510.93 | I33: 514.62 | J33: 517.08 | K33: 512.15 | L33: 506 | M33: 0.46797
A34: 24 | B34: ALKEM | C34: 3119.2 | D34: 3143.07 | E34: 3084.13 | F34: 3049.07 | G34: 2990.13 | H34: 3178.13 | I34: 3237.07 | J34: 3272.13 | K34: 3202 | L34: 3108 | M34: 1.07004
A35: 25 | B35: ALKYLAMINE | C35: 2507 | D35: 2513.75 | E35: 2494.40 | F35: 2481.80 | G35: 2462.45 | H35: 2526.35 | I35: 2545.70 | J35: 2558.30 | K35: 2533.1 | L35: 2501.15 | M35: 0.14445
A36: 26 | B36: ALLCARGO | C36: 364.3 | D36: 366.60 | E36: 359.80 | F36: 355.30 | G36: 348.50 | H36: 371.10 | I36: 377.90 | J36: 382.40 | K36: 373.4 | L36: 362.1 | M36: 3.92027
A37: 27 | B37: ALOKINDS | C37: 14.15 | D37: 13.40 | E37: 12.35 | F37: 10.55 | G37: 9.50 | H37: 15.20 | I37: 16.25 | J37: 18.05 | K37: 14.45 | L37: 11.6 | M37: 134.16571
A38: 28 | B38: AMARAJABAT | C38: 568.25 | D38: 565.10 | E38: 558.25 | F38: 548.25 | G38: 541.40 | H38: 575.10 | I38: 581.95 | J38: 591.95 | K38: 571.95 | L38: 555.1 | M38: 3.4633
A39: 29 | B39: AMBER | C39: 1891.2 | D39: 1893.92 | E39: 1884.33 | F39: 1877.47 | G39: 1867.88 | H39: 1900.78 | I39: 1910.37 | J39: 1917.23 | K39: 1903.5 | L39: 1887.05 | M39: 0.32723
A40: 30 | B40: AMBUJACEM | C40: 353.6 | D40: 350.90 | E40: 346.90 | F40: 340.20 | G40: 336.20 | H40: 357.60 | I40: 361.60 | J40: 368.30 | K40: 354.9 | L40: 344.2 | M40: 141.44946
A41: 31 | B41: ANGELONE | C41: 1002.85 | D41: 1009.47 | E41: 992.38 | F41: 981.92 | G41: 964.83 | H41: 1019.93 | I41: 1037.02 | J41: 1047.48 | K41: 1026.55 | L41: 999 | M41: 5.53777
A42: 32 | B42: ANURAS | C42: 676.4 | D42: 668.33 | E42: 653.07 | F42: 629.73 | G42: 614.47 | H42: 691.67 | I42: 706.93 | J42: 730.27 | K42: 683.6 | L42: 645 | M42: 0.95023
A43: 33 | B43: APOLLOHOSP | C43: 4413.8 | D43: 4399.02 | E43: 4352.03 | F43: 4290.27 | G43: 4243.28 | H43: 4460.78 | I43: 4507.77 | J43: 4569.53 | K43: 4446 | L43: 4337.25 | M43: 2.87008
A44: 34 | B44: APOLLOTYRE | C44: 316.2 | D44: 315.10 | E44: 312.85 | F44: 309.50 | G44: 307.25 | H44: 318.45 | I44: 320.70 | J44: 324.05 | K44: 317.35 | L44: 311.75 | M44: 11.99802
A45: 35 | B45: APTUS | C45: 242.1 | D45: 242.98 | E45: 240.12 | F45: 238.13 | G45: 235.27 | H45: 244.97 | I45: 247.83 | J45: 249.82 | K45: 245.85 | L45: 241 | M45: 0.93001
A46: 36 | B46: ASAHIINDIA | C46: 487.7 | D46: 485.43 | E46: 480.87 | F46: 474.03 | G46: 469.47 | H46: 492.27 | I46: 496.83 | J46: 503.67 | K46: 490 | L46: 478.6 | M46: 0.24851
A47: 37 | B47: ASHOKLEY | C47: 143.95 | D47: 144.60 | E47: 142.70 | F47: 141.45 | G47: 139.55 | H47: 145.85 | I47: 147.75 | J47: 149.00 | K47: 146.5 | L47: 143.35 | M47: 84.65184
A48: 38 | B48: ASIANPAINT | C48: 2840.9 | D48: 2836.75 | E48: 2820.20 | F48: 2799.50 | G48: 2782.95 | H48: 2857.45 | I48: 2874.00 | J48: 2894.70 | K48: 2853.3 | L48: 2816.05 | M48: 8.16598
A49: 39 | B49: ASTERDM | C49: 219 | D49: 219.67 | E49: 215.93 | F49: 212.87 | G49: 209.13 | H49: 222.73 | I49: 226.47 | J49: 229.53 | K49: 223.4 | L49: 216.6 | M49: 1.82667
A50: 40 | B50: ASTRAZEN | C50: 3380.35 | D50: 3367.45 | E50: 3324.90 | F50: 3269.45 | G50: 3226.90 | H50: 3422.90 | I50: 3465.45 | J50: 3520.90 | K50: 3410 | L50: 3312 | M50: 0.02908
A51: 41 | B51: ASTRAL | C51: 1903.05 | D51: 1909.62 | E51: 1887.23 | F51: 1871.42 | G51: 1849.03 | H51: 1925.43 | I51: 1947.82 | J51: 1963.63 | K51: 1932 | L51: 1893.8 | M51: 1.96521
A52: 42 | B52: ATUL | C52: 7113.65 | D52: 7109.25 | E52: 7048.60 | F52: 6983.55 | G52: 6922.90 | H52: 7174.30 | I52: 7234.95 | J52: 7300.00 | K52: 7169.9 | L52: 7044.2 | M52: 0.2431
A53: 43 | B53: AUROPHARMA | C53: 463.65 | D53: 461.43 | E53: 457.87 | F53: 452.08 | G53: 448.52 | H53: 467.22 | I53: 470.78 | J53: 476.57 | K53: 465 | L53: 455.65 | M53: 11.15997
A54: 44 | B54: AVANTIFEED | C54: 367.6 | D54: 368.28 | E54: 365.07 | F54: 362.53 | G54: 359.32 | H54: 370.82 | I54: 374.03 | J54: 376.57 | K54: 371.5 | L54: 365.75 | M54: 0.71498
A55: 45 | B55: DMART | C55: 3439.35 | D55: 3448.13 | E55: 3422.27 | F55: 3405.18 | G55: 3379.32 | H55: 3465.22 | I55: 3491.08 | J55: 3508.17 | K55: 3474 | L55: 3431.05 | M55: 1.45318
A56: 46 | B56: AXISBANK | C56: 865.15 | D56: 859.65 | E56: 850.55 | F56: 835.95 | G56: 826.85 | H56: 874.25 | I56: 883.35 | J56: 897.95 | K56: 868.75 | L56: 845.05 | M56: 123.45125
A57: 47 | B57: BASF | C57: 2320.2 | D57: 2314.08 | E57: 2298.17 | F57: 2276.13 | G57: 2260.22 | H57: 2336.12 | I57: 2352.03 | J57: 2374.07 | K57: 2330 | L57: 2292.05 | M57: 0.04194
A58: 48 | B58: BSE | C58: 444.6 | D58: 446.37 | E58: 439.33 | F58: 434.07 | G58: 427.03 | H58: 451.63 | I58: 458.67 | J58: 463.93 | K58: 453.4 | L58: 441.1 | M58: 7.40484
A59: 49 | B59: BAJAJ-AUTO | C59: 3731.65 | D59: 3705.63 | E59: 3662.92 | F59: 3594.18 | G59: 3551.47 | H59: 3774.37 | I59: 3817.08 | J59: 3885.82 | K59: 3748.35 | L59: 3636.9 | M59: 4.32887
A60: 50 | B60: BAJAJELEC | C60: 1103.6 | D60: 1098.40 | E60: 1086.80 | F60: 1070.00 | G60: 1058.40 | H60: 1115.20 | I60: 1126.80 | J60: 1143.60 | K60: 1110 | L60: 1081.6 | M60: 0.19874
A61: 51 | B61: BAJFINANCE | C61: 6154.85 | D61: 6152.97 | E61: 6101.98 | F61: 6049.12 | G61: 5998.13 | H61: 6205.83 | I61: 6256.82 | J61: 6309.68 | K61: 6203.95 | L61: 6100.1 | M61: 5.44804
A62: 52 | B62: BAJAJFINSV | C62: 1343.9 | D62: 1346.27 | E62: 1332.53 | F62: 1321.17 | G62: 1307.43 | H62: 1357.63 | I62: 1371.37 | J62: 1382.73 | K62: 1360 | L62: 1334.9 | M62: 11.34472
A63: 53 | B63: BAJAJHLDNG | C63: 6303.7 | D63: 6314.07 | E63: 6230.18 | F63: 6156.67 | G63: 6072.78 | H63: 6387.58 | I63: 6471.47 | J63: 6544.98 | K63: 6397.95 | L63: 6240.55 | M63: 0.31397
A64: 54 | B64: BALAMINES | C64: 2193.55 | D64: 2198.37 | E64: 2176.73 | F64: 2159.92 | G64: 2138.28 | H64: 2215.18 | I64: 2236.82 | J64: 2253.63 | K64: 2220 | L64: 2181.55 | M64: 0.20789
A65: 55 | B65: BALKRISIND | C65: 2051 | D65: 2040.83 | E65: 2022.17 | F65: 1993.33 | G65: 1974.67 | H65: 2069.67 | I65: 2088.33 | J65: 2117.17 | K65: 2059.5 | L65: 2012 | M65: 0.79526
A66: 56 | B66: BALRAMCHIN | C66: 362.25 | D66: 360.72 | E66: 358.58 | F66: 354.92 | G66: 352.78 | H66: 364.38 | I66: 366.52 | J66: 370.18 | K66: 362.85 | L66: 357.05 | M66: 4.15654
A67: 57 | B67: BANDHANBNK | C67: 235.15 | D67: 233.72 | E67: 231.43 | F67: 227.72 | G67: 225.43 | H67: 237.43 | I67: 239.72 | J67: 243.43 | K67: 236 | L67: 230 | M67: 29.1392
A68: 58 | B68: BANKBARODA | C68: 164.4 | D68: 162.23 | E68: 159.77 | F68: 155.13 | G68: 152.67 | H68: 166.87 | I68: 169.33 | J68: 173.97 | K68: 164.7 | L68: 157.6 | M68: 259.74322
A69: 59 | B69: BANKINDIA | C69: 74.05 | D69: 72.75 | E69: 71.10 | F69: 68.15 | G69: 66.50 | H69: 75.70 | I69: 77.35 | J69: 80.30 | K69: 74.4 | L69: 69.8 | M69: 171.57626
A70: 60 | B70: MAHABANK | C70: 26.5 | D70: 26.20 | E70: 25.75 | F70: 25.00 | G70: 24.55 | H70: 26.95 | I70: 27.40 | J70: 28.15 | K70: 26.65 | L70: 25.45 | M70: 136.25065
A71: 61 | B71: BATAINDIA | C71: 1419.15 | D71: 1415.63 | E71: 1410.27 | F71: 1401.38 | G71: 1396.02 | H71: 1424.52 | I71: 1429.88 | J71: 1438.77 | K71: 1421 | L71: 1406.75 | M71: 2.82944
A72: 62 | B72: BAYERCROP | C72: 4274.2 | D72: 4279.73 | E72: 4251.47 | F72: 4228.73 | G72: 4200.47 | H72: 4302.47 | I72: 4330.73 | J72: 4353.47 | K72: 4308 | L72: 4257 | M72: 0.06775
A73: 63 | B73: BERGEPAINT | C73: 580.7 | D73: 580.70 | E73: 576.00 | F73: 571.30 | G73: 566.60 | H73: 585.40 | I73: 590.10 | J73: 594.80 | K73: 585.4 | L73: 576 | M73: 11.027
A74: 64 | B74: BDL | C74: 966.35 | D74: 961.08 | E74: 937.27 | F74: 908.18 | G74: 884.37 | H74: 990.17 | I74: 1013.98 | J74: 1043.07 | K74: 984.9 | L74: 932 | M74: 22.89663
A75: 65 | B75: BEL | C75: 97.05 | D75: 96.32 | E75: 95.53 | F75: 94.02 | G75: 93.23 | H75: 97.83 | I75: 98.62 | J75: 100.13 | K75: 97.1 | L75: 94.8 | M75: 142.85091
A76: 66 | B76: BHARATFORG | C76: 824.05 | D76: 822.35 | E76: 816.75 | F76: 809.45 | G76: 803.85 | H76: 829.65 | I76: 835.25 | J76: 842.55 | K76: 827.95 | L76: 815.05 | M76: 7.32485
A77: 67 | B77: BHEL | C77: 72.8 | D77: 71.80 | E77: 70.50 | F77: 68.20 | G77: 66.90 | H77: 74.10 | I77: 75.40 | J77: 77.70 | K77: 73.1 | L77: 69.5 | M77: 190.33336
A78: 68 | B78: BPCL | C78: 315.9 | D78: 317.48 | E78: 313.97 | F78: 312.03 | G78: 308.52 | H78: 319.42 | I78: 322.93 | J78: 324.87 | K78: 321 | L78: 315.55 | M78: 34.95717
A79: 69 | B79: BHARATRAS | C79: 8659.2 | D79: 8721.38 | E79: 8567.87 | F79: 8476.53 | G79: 8323.02 | H79: 8812.72 | I79: 8966.23 | J79: 9057.57 | K79: 8874.9 | L79: 8630.05 | M79: 0.01016
A80: 70 | B80: BHARTIARTL | C80: 750.2 | D80: 748.22 | E80: 742.98 | F80: 735.77 | G80: 730.53 | H80: 755.43 | I80: 760.67 | J80: 767.88 | K80: 753.45 | L80: 741 | M80: 37.44982
A81: 71 | B81: BIOCON | C81: 227.15 | D81: 228.90 | E81: 225.10 | F81: 223.05 | G81: 219.25 | H81: 230.95 | I81: 234.75 | J81: 236.80 | K81: 232.7 | L81: 226.85 | M81: 35.83078
A82: 72 | B82: BIRLACORPN | C82: 857.1 | D82: 863.68 | E82: 848.92 | F82: 840.73 | G82: 825.97 | H82: 871.87 | I82: 886.63 | J82: 894.82 | K82: 878.45 | L82: 855.5 | M82: 1.08916
A83: 73 | B83: BSOFT | C83: 277 | D83: 276.80 | E83: 274.55 | F83: 272.10 | G83: 269.85 | H83: 279.25 | I83: 281.50 | J83: 283.95 | K83: 279.05 | L83: 274.35 | M83: 12.76137
A84: 74 | B84: BLUEDART | C84: 6335.25 | D84: 6288.07 | E84: 6226.13 | F84: 6117.02 | G84: 6055.08 | H84: 6397.18 | I84: 6459.12 | J84: 6568.23 | K84: 6350 | L84: 6178.95 | M84: 0.08295
A85: 75 | B85: BLUESTARCO | C85: 1436.75 | D85: 1439.77 | E85: 1429.53 | F85: 1422.32 | G85: 1412.08 | H85: 1446.98 | I85: 1457.22 | J85: 1464.43 | K85: 1450 | L85: 1432.55 | M85: 0.59023
A86: 76 | B86: BBTC | C86: 880.85 | D86: 888.15 | E86: 871.30 | F86: 861.75 | G86: 844.90 | H86: 897.70 | I86: 914.55 | J86: 924.10 | K86: 905 | L86: 878.6 | M86: 0.69195
A87: 77 | B87: BORORENEW | C87: 474.8 | D87: 474.62 | E87: 469.38 | F87: 463.97 | G87: 458.73 | H87: 480.03 | I87: 485.27 | J87: 490.68 | K87: 479.85 | L87: 469.2 | M87: 1.84391
A88: 78 | B88: BOSCHLTD | C88: 18302.25 | D88: 18224.50 | E88: 18074.00 | F88: 17845.75 | G88: 17695.25 | H88: 18452.75 | I88: 18603.25 | J88: 18831.50 | K88: 18375 | L88: 17996.25 | M88: 0.17785
A89: 79 | B89: BRIGADE | C89: 475.9 | D89: 480.17 | E89: 469.88 | F89: 463.87 | G89: 453.58 | H89: 486.18 | I89: 496.47 | J89: 502.48 | K89: 490.45 | L89: 474.15 | M89: 1.11048
A90: 80 | B90: BCG | C90: 22.65 | D90: 22.88 | E90: 22.27 | F90: 21.88 | G90: 21.27 | H90: 23.27 | I90: 23.88 | J90: 24.27 | K90: 23.5 | L90: 22.5 | M90: 306.24291
A91: 81 | B91: BRITANNIA | C91: 4379.8 | D91: 4396.50 | E91: 4338.45 | F91: 4297.10 | G91: 4239.05 | H91: 4437.85 | I91: 4495.90 | J91: 4537.25 | K91: 4454.55 | L91: 4355.15 | M91: 3.31092
A92: 82 | B92: MAPMYINDIA | C92: 1127.35 | D92: 1135.43 | E92: 1113.92 | F92: 1100.48 | G92: 1078.97 | H92: 1148.87 | I92: 1170.38 | J92: 1183.82 | K92: 1156.95 | L92: 1122 | M92: 0.60423
A93: 83 | B93: CCL | C93: 562.25 | D93: 558.10 | E93: 550.15 | F93: 538.05 | G93: 530.10 | H93: 570.20 | I93: 578.15 | J93: 590.25 | K93: 566.05 | L93: 546 | M93: 5.93169
A94: 84 | B94: CESC | C94: 69.55 | D94: 69.63 | E94: 69.27 | F94: 68.98 | G94: 68.62 | H94: 69.92 | I94: 70.28 | J94: 70.57 | K94: 70 | L94: 69.35 | M94: 16.64363
A95: 85 | B95: CGPOWER | C95: 306.8 | D95: 305.18 | E95: 300.77 | F95: 294.73 | G95: 290.32 | H95: 311.22 | I95: 315.63 | J95: 321.67 | K95: 309.6 | L95: 299.15 | M95: 15.47803
A96: 86 | B96: CRISIL | C96: 3429.25 | D96: 3422.08 | E96: 3395.27 | F96: 3361.28 | G96: 3334.47 | H96: 3456.07 | I96: 3482.88 | J96: 3516.87 | K96: 3448.9 | L96: 3388.1 | M96: 0.32301
A97: 87 | B97: CSBBANK | C97: 229.8 | D97: 229.57 | E97: 228.33 | F97: 226.87 | G97: 225.63 | H97: 231.03 | I97: 232.27 | J97: 233.73 | K97: 230.8 | L97: 228.1 | M97: 1.68764
A98: 88 | B98: CAMPUS | C98: 410.15 | D98: 410.07 | E98: 405.43 | F98: 400.72 | G98: 396.08 | H98: 414.78 | I98: 419.42 | J98: 424.13 | K98: 414.7 | L98: 405.35 | M98: 11.47537
A99: 89 | B99: CANFINHOME | C99: 576.9 | D99: 576.18 | E99: 573.37 | F99: 569.83 | G99: 567.02 | H99: 579.72 | I99: 582.53 | J99: 586.07 | K99: 579 | L99: 572.65 | M99: 7.43579
A100: 90 | B100: CANBK | C100: 288.8 | D100: 285.67 | E100: 281.83 | F100: 274.87 | G100: 271.03 | H100: 292.63 | I100: 296.47 | J100: 303.43 | K100: 289.5 | L100: 278.7 | M100: 74.86961
A101: 91 | B101: CAPLIPOINT | C101: 659.9 | D101: 659.42 | E101: 655.43 | F101: 650.97 | G101: 646.98 | H101: 663.88 | I101: 667.87 | J101: 672.33 | K101: 663.4 | L101: 654.95 | M101: 0.2703
A102: 92 | B102: CGCL | C102: 681.05 | D102: 681.40 | E102: 672.00 | F102: 662.95 | G102: 653.55 | H102: 690.45 | I102: 699.85 | J102: 708.90 | K102: 690.8 | L102: 672.35 | M102: 2.48678
A103: 93 | B103: CARBORUNIV | C103: 974.7 | D103: 976.85 | E103: 968.85 | F103: 963.00 | G103: 955.00 | H103: 982.70 | I103: 990.70 | J103: 996.55 | K103: 984.85 | L103: 971 | M103: 0.67034
A104: 94 | B104: CASTROLIND | C104: 115.15 | D104: 115.38 | E104: 114.27 | F104: 113.38 | G104: 112.27 | H104: 116.27 | I104: 117.38 | J104: 118.27 | K104: 116.5 | L104: 114.5 | M104: 4.77108
A105: 95 | B105: CEATLTD | C105: 1418.9 | D105: 1406.60 | E105: 1383.80 | F105: 1348.70 | G105: 1325.90 | H105: 1441.70 | I105: 1464.50 | J105: 1499.60 | K105: 1429.4 | L105: 1371.5 | M105: 0.8739
A106: 96 | B106: CENTRALBK | C106: 26.35 | D106: 26.27 | E106: 25.98 | F106: 25.62 | G106: 25.33 | H106: 26.63 | I106: 26.92 | J106: 27.28 | K106: 26.55 | L106: 25.9 | M106: 48.79864
A107: 97 | B107: CDSL | C107: 992.85 | D107: 992.63 | E107: 989.27 | F107: 985.68 | G107: 982.32 | H107: 996.22 | I107: 999.58 | J107: 1003.17 | K107: 996 | L107: 989.05 | M107: 1.58874
A108: 98 | B108: CENTURYPLY | C108: 507.5 | D108: 507.93 | E108: 503.92 | F108: 500.33 | G108: 496.32 | H108: 511.52 | I108: 515.53 | J108: 519.12 | K108: 511.95 | L108: 504.35 | M108: 0.48322
A109: 99 | B109: CENTURYTEX | C109: 618.05 | D109: 616.00 | E109: 607.25 | F109: 596.45 | G109: 587.70 | H109: 626.80 | I109: 635.55 | J109: 646.35 | K109: 624.75 | L109: 605.2 | M109: 0.82585
A110: 100 | B110: CERA | C110: 6563.15 | D110: 6550.77 | E110: 6473.53 | F110: 6383.92 | G110: 6306.68 | H110: 6640.38 | I110: 6717.62 | J110: 6807.23 | K110: 6628 | L110: 6461.15 | M110: 0.31404
A111: 101 | B111: CHALET | C111: 364.5 | D111: 365.88 | E111: 361.77 | F111: 359.03 | G111: 354.92 | H111: 368.62 | I111: 372.73 | J111: 375.47 | K111: 370 | L111: 363.15 | M111: 0.45357
A112: 102 | B112: CHAMBLFERT | C112: 281.65 | D112: 279.30 | E112: 275.00 | F112: 268.35 | G112: 264.05 | H112: 285.95 | I112: 290.25 | J112: 296.90 | K112: 283.6 | L112: 272.65 | M112: 18.85977
A113: 103 | B113: CHEMPLASTS | C113: 389.85 | D113: 390.20 | E113: 386.95 | F113: 384.05 | G113: 380.80 | H113: 393.10 | I113: 396.35 | J113: 399.25 | K113: 393.45 | L113: 387.3 | M113: 2.54013
A114: 104 | B114: CHOLAHLDNG | C114: 584.65 | D114: 583.90 | E114: 577.80 | F114: 570.95 | G114: 564.85 | H114: 590.75 | I114: 596.85 | J114: 603.70 | K114: 590 | L114: 577.05 | M114: 1.67943
A115: 105 | B115: CHOLAFIN | C115: 766.75 | D115: 765.42 | E115: 758.93 | F115: 751.12 | G115: 744.63 | H115: 773.23 | I115: 779.72 | J115: 787.53 | K115: 771.9 | L115: 757.6 | M115: 7.79296
A116: 106 | B116: CIPLA | C116: 899.6 | D116: 901.95 | E116: 893.65 | F116: 887.70 | G116: 879.40 | H116: 907.90 | I116: 916.20 | J116: 922.15 | K116: 910.25 | L116: 896 | M116: 34.96231
A117: 107 | B117: CUB | C117: 141.35 | D117: 140.53 | E117: 139.27 | F117: 137.18 | G117: 135.92 | H117: 142.62 | I117: 143.88 | J117: 145.97 | K117: 141.8 | L117: 138.45 | M117: 30.33796
A118: 108 | B118: CLEAN | C118: 1388.8 | D118: 1389.03 | E118: 1379.72 | F118: 1370.63 | G118: 1361.32 | H118: 1398.12 | I118: 1407.43 | J118: 1416.52 | K118: 1398.35 | L118: 1379.95 | M118: 0.18616
A119: 109 | B119: COALINDIA | C119: 218.75 | D119: 217.42 | E119: 215.83 | F119: 212.92 | G119: 211.33 | H119: 220.33 | I119: 221.92 | J119: 224.83 | K119: 219 | L119: 214.5 | M119: 45.10175
A120: 110 | B120: COCHINSHIP | C120: 464.75 | D120: 461.42 | E120: 456.33 | F120: 447.92 | G120: 442.83 | H120: 469.83 | I120: 474.92 | J120: 483.33 | K120: 466.5 | L120: 453 | M120: 3.51401
A121: 111 | B121: COFORGE | C121: 4300.35 | D121: 4283.57 | E121: 4258.13 | F121: 4215.92 | G121: 4190.48 | H121: 4325.78 | I121: 4351.22 | J121: 4393.43 | K121: 4309 | L121: 4241.35 | M121: 3.08649
A122: 112 | B122: COLPAL | C122: 1482.5 | D122: 1480.55 | E122: 1474.20 | F122: 1465.90 | G122: 1459.55 | H122: 1488.85 | I122: 1495.20 | J122: 1503.50 | K122: 1486.9 | L122: 1472.25 | M122: 2.54165
A123: 113 | B123: CAMS | C123: 2253.7 | D123: 2258.67 | E123: 2245.23 | F123: 2236.77 | G123: 2223.33 | H123: 2267.13 | I123: 2280.57 | J123: 2289.03 | K123: 2272.1 | L123: 2250.2 | M123: 0.50372
A124: 114 | B124: CONCOR | C124: 599.2 | D124: 597.30 | E124: 592.90 | F124: 586.60 | G124: 582.20 | H124: 603.60 | I124: 608.00 | J124: 614.30 | K124: 601.7 | L124: 591 | M124: 15.49355
A125: 115 | B125: COROMANDEL | C125: 913.1 | D125: 907.30 | E125: 898.60 | F125: 884.10 | G125: 875.40 | H125: 921.80 | I125: 930.50 | J125: 945.00 | K125: 916 | L125: 892.8 | M125: 1.42392
A126: 116 | B126: CREDITACC | C126: 967.05 | D126: 967.27 | E126: 956.78 | F126: 946.52 | G126: 936.03 | H126: 977.53 | I126: 988.02 | J126: 998.28 | K126: 977.75 | L126: 957 | M126: 0.4461
A127: 117 | B127: CROMPTON | C127: 309.5 | D127: 308.37 | E127: 306.23 | F127: 302.97 | G127: 300.83 | H127: 311.63 | I127: 313.77 | J127: 317.03 | K127: 310.5 | L127: 305.1 | M127: 13.75176
A128: 118 | B128: CUMMINSIND | C128: 1602.5 | D128: 1592.48 | E128: 1574.02 | F128: 1545.53 | G128: 1527.07 | H128: 1620.97 | I128: 1639.43 | J128: 1667.92 | K128: 1610.95 | L128: 1564 | M128: 6.51248
A129: 119 | B129: CYIENT | C129: 952.25 | D129: 952.95 | E129: 941.65 | F129: 931.05 | G129: 919.75 | H129: 963.55 | I129: 974.85 | J129: 985.45 | K129: 964.25 | L129: 942.35 | M129: 1.3181
A130: 120 | B130: DCMSHRIRAM | C130: 837.45 | D130: 829.18 | E130: 814.67 | F130: 791.88 | G130: 777.37 | H130: 851.97 | I130: 866.48 | J130: 889.27 | K130: 843.7 | L130: 806.4 | M130: 0.2393
A131: 121 | B131: DLF | C131: 355.65 | D131: 354.67 | E131: 351.93 | F131: 348.22 | G131: 345.48 | H131: 358.38 | I131: 361.12 | J131: 364.83 | K131: 357.4 | L131: 350.95 | M131: 15.07846
A132: 122 | B132: DABUR | C132: 527.25 | D132: 529.90 | E132: 523.35 | F132: 519.45 | G132: 512.90 | H132: 533.80 | I132: 540.35 | J132: 544.25 | K132: 536.45 | L132: 526 | M132: 17.67693
A133: 123 | B133: DALBHARAT | C133: 1875.7 | D133: 1861.48 | E133: 1843.22 | F133: 1810.73 | G133: 1792.47 | H133: 1893.97 | I133: 1912.23 | J133: 1944.72 | K133: 1879.75 | L133: 1829 | M133: 3.28784
A134: 124 | B134: DEEPAKFERT | C134: 646 | D134: 639.92 | E134: 631.03 | F134: 616.07 | G134: 607.18 | H134: 654.88 | I134: 663.77 | J134: 678.73 | K134: 648.8 | L134: 624.95 | M134: 4.08001
A135: 125 | B135: DEEPAKNTR | C135: 1845.75 | D135: 1832.63 | E135: 1812.27 | F135: 1778.78 | G135: 1758.42 | H135: 1866.12 | I135: 1886.48 | J135: 1919.97 | K135: 1853 | L135: 1799.15 | M135: 4.3244
A136: 126 | B136: DELHIVERY | C136: 348.15 | D136: 345.07 | E136: 340.13 | F136: 332.12 | G136: 327.18 | H136: 353.08 | I136: 358.02 | J136: 366.03 | K136: 350 | L136: 337.05 | M136: 17.52906
A137: 127 | B137: DELTACORP | C137: 196.1 | D137: 193.27 | E137: 189.33 | F137: 182.57 | G137: 178.63 | H137: 200.03 | I137: 203.97 | J137: 210.73 | K137: 197.2 | L137: 186.5 | M137: 37.8939
A138: 128 | B138: DEVYANI | C138: 151.05 | D138: 152.12 | E138: 149.23 | F138: 147.42 | G138: 144.53 | H138: 153.93 | I138: 156.82 | J138: 158.63 | K138: 155 | L138: 150.3 | M138: 12.32093
A139: 129 | B139: DHANI | C139: 32.05 | D139: 31.78 | E139: 30.77 | F139: 29.48 | G139: 28.47 | H139: 33.07 | I139: 34.08 | J139: 35.37 | K139: 32.8 | L139: 30.5 | M139: 15.54493
A140: 130 | B140: DBL | C140: 196.9 | D140: 197.38 | E140: 194.62 | F140: 192.33 | G140: 189.57 | H140: 199.67 | I140: 202.43 | J140: 204.72 | K140: 200.15 | L140: 195.1 | M140: 1.83087
A141: 131 | B141: DIVISLAB | C141: 2845.3 | D141: 2841.77 | E141: 2826.53 | F141: 2807.77 | G141: 2792.53 | H141: 2860.53 | I141: 2875.77 | J141: 2894.53 | K141: 2857 | L141: 2823 | M141: 1.54311
A142: 132 | B142: DIXON | C142: 2929.9 | D142: 2934.68 | E142: 2875.12 | F142: 2820.33 | G142: 2760.77 | H142: 2989.47 | I142: 3049.03 | J142: 3103.82 | K142: 2994.25 | L142: 2879.9 | M142: 7.34196
A143: 133 | B143: LALPATHLAB | C143: 1970.05 | D143: 1978.43 | E143: 1951.62 | F143: 1933.18 | G143: 1906.37 | H143: 1996.87 | I143: 2023.68 | J143: 2042.12 | K143: 2005.25 | L143: 1960 | M143: 1.3259
A144: 134 | B144: DRREDDY | C144: 4344.2 | D144: 4332.78 | E144: 4308.42 | F144: 4272.63 | G144: 4248.27 | H144: 4368.57 | I144: 4392.93 | J144: 4428.72 | K144: 4357.15 | L144: 4297 | M144: 1.99103
A145: 135 | B145: EIDPARRY | C145: 510.55 | D145: 506.70 | E145: 501.15 | F145: 491.75 | G145: 486.20 | H145: 516.10 | I145: 521.65 | J145: 531.05 | K145: 512.25 | L145: 497.3 | M145: 1.11876
A146: 136 | B146: EIHOTEL | C146: 159.8 | D146: 160.67 | E146: 156.58 | F146: 153.37 | G146: 149.28 | H146: 163.88 | I146: 167.97 | J146: 171.18 | K146: 164.75 | L146: 157.45 | M146: 6.68737
A147: 137 | B147: EPL | C147: 159.85 | D147: 160.82 | E147: 158.53 | F147: 157.22 | G147: 154.93 | H147: 162.13 | I147: 164.42 | J147: 165.73 | K147: 163.1 | L147: 159.5 | M147: 1.66932
A148: 138 | B148: EASEMYTRIP | C148: 48.65 | D148: 48.25 | E148: 47.35 | F148: 46.05 | G148: 45.15 | H148: 49.55 | I148: 50.45 | J148: 51.75 | K148: 49.15 | L148: 46.95 | M148: 144.21796
A149: 139 | B149: EDELWEISS | C149: 64.35 | D149: 64.55 | E149: 64.00 | F149: 63.65 | G149: 63.10 | H149: 64.90 | I149: 65.45 | J149: 65.80 | K149: 65.1 | L149: 64.2 | M149: 4.49189
A150: 140 | B150: EICHERMOT | C150: 3138.8 | D150: 3123.13 | E150: 3102.37 | F150: 3065.93 | G150: 3045.17 | H150: 3159.57 | I150: 3180.33 | J150: 3216.77 | K150: 3143.9 | L150: 3086.7 | M150: 5.22394
A151: 141 | B151: ELGIEQUIP | C151: 476.95 | D151: 471.13 | E151: 462.02 | F151: 447.08 | G151: 437.97 | H151: 486.07 | I151: 495.18 | J151: 510.12 | K151: 480.25 | L151: 456.2 | M151: 6.47364
A152: 142 | B152: EMAMILTD | C152: 395.05 | D152: 397.43 | E152: 391.72 | F152: 388.38 | G152: 382.67 | H152: 400.77 | I152: 406.48 | J152: 409.82 | K152: 403.15 | L152: 394.1 | M152: 4.18321
A153: 143 | B153: ENDURANCE | C153: 1243.25 | D153: 1249.05 | E153: 1229.20 | F153: 1215.15 | G153: 1195.30 | H153: 1263.10 | I153: 1282.95 | J153: 1297.00 | K153: 1268.9 | L153: 1235 | M153: 0.96745
A154: 144 | B154: ENGINERSIN | C154: 72.6 | D154: 72.42 | E154: 71.58 | F154: 70.57 | G154: 69.73 | H154: 73.43 | I154: 74.27 | J154: 75.28 | K154: 73.25 | L154: 71.4 | M154: 8.67774
A155: 145 | B155: EQUITASBNK | C155: 72.7 | D155: 72.58 | E155: 71.67 | F155: 70.63 | G155: 69.72 | H155: 73.62 | I155: 74.53 | J155: 75.57 | K155: 73.5 | L155: 71.55 | M155: 67.56085
A156: 146 | B156: ESCORTS | C156: 2086.3 | D156: 2076.70 | E156: 2059.60 | F156: 2032.90 | G156: 2015.80 | H156: 2103.40 | I156: 2120.50 | J156: 2147.20 | K156: 2093.8 | L156: 2050 | M156: 3.19649
A157: 147 | B157: EXIDEIND | C157: 178.95 | D157: 177.75 | E157: 176.25 | F157: 173.55 | G157: 172.05 | H157: 180.45 | I157: 181.95 | J157: 184.65 | K157: 179.25 | L157: 175.05 | M157: 12.91348
A158: 148 | B158: FDC | C158: 261.85 | D158: 261.30 | E158: 259.10 | F158: 256.35 | G158: 254.15 | H158: 264.05 | I158: 266.25 | J158: 269.00 | K158: 263.5 | L158: 258.55 | M158: 0.48506
A159: 149 | B159: NYKAA | C159: 142.75 | D159: 143.58 | E159: 139.77 | F159: 136.78 | G159: 132.97 | H159: 146.57 | I159: 150.38 | J159: 153.37 | K159: 147.4 | L159: 140.6 | M159: 142.09058
A160: 150 | B160: FEDERALBNK | C160: 134.35 | D160: 132.75 | E160: 130.75 | F160: 127.15 | G160: 125.15 | H160: 136.35 | I160: 138.35 | J160: 141.95 | K160: 134.75 | L160: 129.15 | M160: 138.98807
A161: 151 | B161: FACT | C161: 232.75 | D161: 235.18 | E161: 227.57 | F161: 222.38 | G161: 214.77 | H161: 240.37 | I161: 247.98 | J161: 253.17 | K161: 242.8 | L161: 230 | M161: 5.24501
A162: 152 | B162: FINEORG | C162: 4640.15 | D162: 4650.72 | E162: 4589.43 | F162: 4538.72 | G162: 4477.43 | H162: 4701.43 | I162: 4762.72 | J162: 4813.43 | K162: 4712 | L162: 4600 | M162: 0.20429
A163: 153 | B163: FINCABLES | C163: 733.05 | D163: 724.35 | E163: 708.70 | F163: 684.35 | G163: 668.70 | H163: 748.70 | I163: 764.35 | J163: 788.70 | K163: 740 | L163: 700 | M163: 7.61794
A164: 154 | B164: FINPIPE | C164: 167.8 | D164: 168.48 | E164: 166.02 | F164: 164.23 | G164: 161.77 | H164: 170.27 | I164: 172.73 | J164: 174.52 | K164: 170.95 | L164: 166.7 | M164: 2.38589
A165: 155 | B165: FSL | C165: 113.55 | D165: 113.58 | E165: 112.62 | F165: 111.68 | G165: 110.72 | H165: 114.52 | I165: 115.48 | J165: 116.42 | K165: 114.55 | L165: 112.65 | M165: 21.5756
A166: 156 | B166: FORTIS | C166: 269 | D166: 268.00 | E166: 266.00 | F166: 263.00 | G166: 261.00 | H166: 271.00 | I166: 273.00 | J166: 276.00 | K166: 270 | L166: 265 | M166: 4.77009
A167: 157 | B167: GRINFRA | C167: 1016.95 | D167: 1027.62 | E167: 999.83 | F167: 982.72 | G167: 954.93 | H167: 1044.73 | I167: 1072.52 | J167: 1089.63 | K167: 1055.4 | L167: 1010.5 | M167: 0.98229
A168: 158 | B168: GAIL | C168: 103.4 | D168: 103.03 | E168: 102.52 | F168: 101.63 | G168: 101.12 | H168: 103.92 | I168: 104.43 | J168: 105.32 | K168: 103.55 | L168: 102.15 | M168: 70.12524
A169: 159 | B169: GMMPFAUDLR | C169: 1582.2 | D169: 1593.82 | E169: 1558.38 | F169: 1534.57 | G169: 1499.13 | H169: 1617.63 | I169: 1653.07 | J169: 1676.88 | K169: 1629.25 | L169: 1570 | M169: 1.17544
A170: 160 | B170: GMRINFRA | C170: 38.3 | D170: 38.15 | E170: 37.90 | F170: 37.50 | G170: 37.25 | H170: 38.55 | I170: 38.80 | J170: 39.20 | K170: 38.4 | L170: 37.75 | M170: 23.31797
A171: 161 | B171: GALAXYSURF | C171: 2394.95 | D171: 2384.98 | E171: 2359.97 | F171: 2324.98 | G171: 2299.97 | H171: 2419.97 | I171: 2444.98 | J171: 2479.97 | K171: 2410 | L171: 2350 | M171: 0.16329
A172: 162 | B172: GARFIBRES | C172: 2938.35 | D172: 2937.78 | E172: 2920.57 | F172: 2902.78 | G172: 2885.57 | H172: 2955.57 | I172: 2972.78 | J172: 2990.57 | K172: 2955 | L172: 2920 | M172: 0.07985
A173: 163 | B173: GICRE | C173: 143.3 | D173: 143.80 | E173: 141.70 | F173: 140.10 | G173: 138.00 | H173: 145.40 | I173: 147.50 | J173: 149.10 | K173: 145.9 | L173: 142.2 | M173: 14.07185
A174: 164 | B174: GLAND | C174: 1292.75 | D174: 1299.98 | E174: 1272.77 | F174: 1252.78 | G174: 1225.57 | H174: 1319.97 | I174: 1347.18 | J174: 1367.17 | K174: 1327.2 | L174: 1280 | M174: 2.01346
A175: 165 | B175: GLAXO | C175: 1336.5 | D175: 1332.83 | E175: 1324.67 | F175: 1312.83 | G175: 1304.67 | H175: 1344.67 | I175: 1352.83 | J175: 1364.67 | K175: 1341 | L175: 1321 | M175: 0.19857
A176: 166 | B176: GLENMARK | C176: 429.1 | D176: 427.67 | E176: 424.43 | F176: 419.77 | G176: 416.53 | H176: 432.33 | I176: 435.57 | J176: 440.23 | K176: 430.9 | L176: 423 | M176: 6.12379
A177: 167 | B177: GOCOLORS | C177: 951.1 | D177: 935.35 | E177: 910.85 | F177: 870.60 | G177: 846.10 | H177: 975.60 | I177: 1000.10 | J177: 1040.35 | K177: 959.85 | L177: 895.1 | M177: 0.94834
A178: 168 | B178: GODFRYPHLP | C178: 1807.45 | D178: 1792.48 | E178: 1766.97 | F178: 1726.48 | G178: 1700.97 | H178: 1832.97 | I178: 1858.48 | J178: 1898.97 | K178: 1818 | L178: 1752 | M178: 1.04467
A179: 169 | B179: GODREJAGRO | C179: 439.95 | D179: 440.63 | E179: 436.27 | F179: 432.58 | G179: 428.22 | H179: 444.32 | I179: 448.68 | J179: 452.37 | K179: 445 | L179: 436.95 | M179: 0.55374
A180: 170 | B180: GODREJCP | C180: 912.05 | D180: 918.82 | E180: 901.58 | F180: 891.12 | G180: 873.88 | H180: 929.28 | I180: 946.52 | J180: 956.98 | K180: 936.05 | L180: 908.35 | M180: 10.15922
A181: 171 | B181: GODREJIND | C181: 418.5 | D181: 419.10 | E181: 417.40 | F181: 416.30 | G181: 414.60 | H181: 420.20 | I181: 421.90 | J181: 423.00 | K181: 420.8 | L181: 418 | M181: 0.35909
A182: 172 | B182: GODREJPROP | C182: 1119.25 | D182: 1113.68 | E182: 1103.37 | F182: 1087.48 | G182: 1077.17 | H182: 1129.57 | I182: 1139.88 | J182: 1155.77 | K182: 1124 | L182: 1097.8 | M182: 2.13547
A183: 173 | B183: GRANULES | C183: 283.5 | D183: 282.67 | E183: 280.53 | F183: 277.57 | G183: 275.43 | H183: 285.63 | I183: 287.77 | J183: 290.73 | K183: 284.8 | L183: 279.7 | M183: 3.58809
A184: 174 | B184: GRAPHITE | C184: 295.65 | D184: 294.15 | E184: 288.80 | F184: 281.95 | G184: 276.60 | H184: 301.00 | I184: 306.35 | J184: 313.20 | K184: 299.5 | L184: 287.3 | M184: 4.55727
A185: 175 | B185: GRASIM | C185: 1593.65 | D185: 1586.55 | E185: 1575.10 | F185: 1556.55 | G185: 1545.10 | H185: 1605.10 | I185: 1616.55 | J185: 1635.10 | K185: 1598 | L185: 1568 | M185: 2.86958
A186: 176 | B186: GESHIP | C186: 567.3 | D186: 558.85 | E186: 540.70 | F186: 514.10 | G186: 495.95 | H186: 585.45 | I186: 603.60 | J186: 630.20 | K186: 577 | L186: 532.25 | M186: 5.52621
A187: 177 | B187: GREENPANEL | C187: 284.6 | D187: 287.45 | E187: 275.20 | F187: 265.80 | G187: 253.55 | H187: 296.85 | I187: 309.10 | J187: 318.50 | K187: 299.7 | L187: 278.05 | M187: 5.79973
A188: 178 | B188: GRINDWELL | C188: 1823.3 | D188: 1834.75 | E188: 1801.55 | F188: 1779.80 | G188: 1746.60 | H188: 1856.50 | I188: 1889.70 | J188: 1911.45 | K188: 1867.95 | L188: 1813 | M188: 0.43183
A189: 179 | B189: GUJALKALI | C189: 635.7 | D189: 631.77 | E189: 625.03 | F189: 614.37 | G189: 607.63 | H189: 642.43 | I189: 649.17 | J189: 659.83 | K189: 638.5 | L189: 621.1 | M189: 0.55583
A190: 180 | B190: GAEL | C190: 231.25 | D190: 231.28 | E190: 227.67 | F190: 224.08 | G190: 220.47 | H190: 234.87 | I190: 238.48 | J190: 242.07 | K190: 234.9 | L190: 227.7 | M190: 1.55835
A191: 181 | B191: FLUOROCHEM | C191: 3205.05 | D191: 3188.07 | E191: 3164.03 | F191: 3123.02 | G191: 3098.98 | H191: 3229.08 | I191: 3253.12 | J191: 3294.13 | K191: 3212.1 | L191: 3147.05 | M191: 2.79245
A192: 182 | B192: GUJGASLTD | C192: 511.2 | D192: 510.18 | E192: 507.27 | F192: 503.33 | G192: 500.42 | H192: 514.12 | I192: 517.03 | J192: 520.97 | K192: 513.1 | L192: 506.25 | M192: 11.53664
A193: 183 | B193: GNFC | C193: 541.55 | D193: 536.40 | E193: 526.20 | F193: 510.85 | G193: 500.65 | H193: 551.75 | I193: 561.95 | J193: 577.30 | K193: 546.6 | L193: 521.05 | M193: 10.47876
A194: 184 | B194: GPPL | C194: 109.1 | D194: 108.42 | E194: 105.83 | F194: 102.57 | G194: 99.98 | H194: 111.68 | I194: 114.27 | J194: 117.53 | K194: 111 | L194: 105.15 | M194: 70.50962
A195: 185 | B195: GSFC | C195: 127.65 | D195: 127.03 | E195: 125.87 | F195: 124.08 | G195: 122.92 | H195: 128.82 | I195: 129.98 | J195: 131.77 | K195: 128.2 | L195: 125.25 | M195: 11.68674
A196: 186 | B196: GSPL | C196: 286.55 | D196: 284.97 | E196: 280.18 | F196: 273.82 | G196: 269.03 | H196: 291.33 | I196: 296.12 | J196: 302.48 | K196: 289.75 | L196: 278.6 | M196: 18.62464
A197: 187 | B197: HEG | C197: 965.5 | D197: 970.35 | E197: 956.20 | F197: 946.90 | G197: 932.75 | H197: 979.65 | I197: 993.80 | J197: 1003.10 | K197: 984.5 | L197: 961.05 | M197: 1.24346
A198: 188 | B198: HCLTECH | C198: 1101.1 | D198: 1094.15 | E198: 1084.30 | F198: 1067.50 | G198: 1057.65 | H198: 1110.95 | I198: 1120.80 | J198: 1137.60 | K198: 1104 | L198: 1077.35 | M198: 16.551
A199: 189 | B199: HDFCAMC | C199: 1809.35 | D199: 1808.45 | E199: 1791.90 | F199: 1774.45 | G199: 1757.90 | H199: 1825.90 | I199: 1842.45 | J199: 1859.90 | K199: 1825 | L199: 1791 | M199: 4.43636
A200: 190 | B200: HDFCBANK | C200: 1598.05 | D200: 1602.27 | E200: 1591.53 | F200: 1585.02 | G200: 1574.28 | H200: 1608.78 | I200: 1619.52 | J200: 1626.03 | K200: 1613 | L200: 1595.75 | M200: 70.68628
A201: 191 | B201: HDFCLIFE | C201: 489.75 | D201: 488.33 | E201: 485.82 | F201: 481.88 | G201: 479.37 | H201: 492.27 | I201: 494.78 | J201: 498.72 | K201: 490.85 | L201: 484.4 | M201: 15.91916
A202: 192 | B202: HFCL | C202: 65.85 | D202: 65.28 | E202: 64.17 | F202: 62.48 | G202: 61.37 | H202: 66.97 | I202: 68.08 | J202: 69.77 | K202: 66.4 | L202: 63.6 | M202: 32.22182
A203: 193 | B203: HLEGLAS | C203: 526 | D203: 523.00 | E203: 511.00 | F203: 496.00 | G203: 484.00 | H203: 538.00 | I203: 550.00 | J203: 565.00 | K203: 535 | L203: 508 | M203: 0.44827
A204: 194 | B204: HAPPSTMNDS | C204: 857.15 | D204: 858.52 | E204: 848.08 | F204: 839.02 | G204: 828.58 | H204: 867.58 | I204: 878.02 | J204: 887.08 | K204: 868.95 | L204: 849.45 | M204: 1.67644
A205: 195 | B205: HATSUN | C205: 890.65 | D205: 892.97 | E205: 885.83 | F205: 881.02 | G205: 873.88 | H205: 897.78 | I205: 904.92 | J205: 909.73 | K205: 900.1 | L205: 888.15 | M205: 0.0657
A206: 196 | B206: HAVELLS | C206: 1214.55 | D206: 1208.42 | E206: 1198.88 | F206: 1183.22 | G206: 1173.68 | H206: 1224.08 | I206: 1233.62 | J206: 1249.28 | K206: 1217.95 | L206: 1192.75 | M206: 3.02995
... 320 more rows

Sheet Bulk Deals
E6: Back To Main Page
A7: Subject : | B7: BULK DEAL | D7: =Main!B10 -> 2023-03-02
A9: Date | B9: Scrip code | C9: Scrip Name | D9: Client Name | E9: Buy / Sell | F9: Quantity Traded | G9: Trade Price / Wt.Avg.trade price | H9: Exchange
A10: 2023-03-01 | B10: 539506 | C10: ADCON | D10: SPARK FINANCE | E10: SELL | F10: 200,000 | G10: 1.91 | H10: BSE
A11: 2023-03-01 | B11: 539506 | C11: ADCON | D11: MEGA SUPER REAL ESTATE DEVELOPERS INDIA PRIVATE LIMITED | E11: SELL | F11: 447,000 | G11: 1.76 | H11: BSE
A12: 2023-03-01 | B12: 539506 | C12: ADCON | D12: SYKES AND RAY EQUITIES (INDIA) LIMITED | E12: BUY | F12: 200,000 | G12: 1.75 | H12: BSE
A13: 2023-03-01 | B13: 539506 | C13: ADCON | D13: ANKITA VISHAL SHAH | E13: SELL | F13: 1,128,561 | G13: 1.86 | H13: BSE
A14: 2023-03-01 | B14: 539506 | C14: ADCON | D14: ANKITA VISHAL SHAH | E14: BUY | F14: 2,262,050 | G14: 1.8 | H14: BSE
A15: 2023-03-01 | B15: 539506 | C15: ADCON | D15: ADINARAYANA REDDY MULI | E15: SELL | F15: 287,324 | G15: 1.76 | H15: BSE
A16: 2023-03-01 | B16: 539506 | C16: ADCON | D16: ADINARAYANA REDDY MULI | E16: BUY | F16: 375,202 | G16: 1.87 | H16: BSE
A17: 2023-03-01 | B17: 539506 | C17: ADCON | D17: NITIN BAKSHI | E17: SELL | F17: 269,000 | G17: 1.93 | H17: BSE
A18: 2023-03-01 | B18: 539506 | C18: ADCON | D18: MULTIPLIER SHARE & STOCK ADVISORS PRIVATE LIMITED | E18: SELL | F18: 524,947 | G18: 1.75 | H18: BSE
A19: 2023-03-01 | B19: 539506 | C19: ADCON | D19: RAJ KUMAR MAJOKA HUF . | E19: SELL | F19: 485,000 | G19: 1.85 | H19: BSE
A20: 2023-03-01 | B20: 539122 | C20: BODHTREE | D20: PAVAN KUMAR SRINIVAS RACHERLA | E20: SELL | F20: 109,884 | G20: 8.76 | H20: BSE
A21: 2023-03-01 | B21: 532386 | C21: CALSOFT | D21: SANJAY AGRAWAL | E21: BUY | F21: 162,050 | G21: 14.32 | H21: BSE
A22: 2023-03-01 | B22: 543529 | C22: DELHIVERY | D22: SVF DOORBELL (CAYMAN) LIMITED | E22: SELL | F22: 28,000,000 | G22: 340.8 | H22: BSE
A23: 2023-03-01 | B23: 540811 | C23: DML | D23: LACHHMAN GHANSHAMDAS UTWANI | E23: BUY | F23: 60,000 | G23: 16.08 | H23: BSE
A24: 2023-03-01 | B24: 540811 | C24: DML | D24: PANKAJ BABULAL VORA | E24: BUY | F24: 90,000 | G24: 15.93 | H24: BSE
A25: 2023-03-01 | B25: 540811 | C25: DML | D25: TASHA ZAFAR | E25: SELL | F25: 80,000 | G25: 16 | H25: BSE
A26: 2023-03-01 | B26: 531364 | C26: EKANSH | D26: SAURABH SUNIL DESARDA | E26: BUY | F26: 92,500 | G26: 53.81 | H26: BSE
A27: 2023-03-01 | B27: 508980 | C27: FRONTCAP | D27: NIRALI VIJAYBHAI SHAH | E27: BUY | F27: 140,000 | G27: 5.19 | H27: BSE
A28: 2023-03-01 | B28: 508980 | C28: FRONTCAP | D28: ATUL VASANT BHAGWAT | E28: SELL | F28: 500,000 | G28: 5.19 | H28: BSE
A29: 2023-03-01 | B29: 508980 | C29: FRONTCAP | D29: RUCHIRA GOYAL | E29: BUY | F29: 150,000 | G29: 5.19 | H29: BSE
A30: 2023-03-01 | B30: 508980 | C30: FRONTCAP | D30: PARESH DHIRAJLAL SHAH | E30: BUY | F30: 100,000 | G30: 5.19 | H30: BSE
A31: 2023-03-01 | B31: 512493 | C31: GARNETINT | D31: R B K SHARE BROKING LIMITED | E31: BUY | F31: 159,500 | G31: 62.49 | H31: BSE
A32: 2023-03-01 | B32: 512493 | C32: GARNETINT | D32: MANGAL SAVITRI BIZCON PRIVATE LIMITED | E32: SELL | F32: 158,646 | G32: 62.5 | H32: BSE
A33: 2023-03-01 | B33: 540266 | C33: GLCL | D33: SANJAY B SHAH (HUF) | E33: SELL | F33: 40,000 | G33: 43.5 | H33: BSE
A34: 2023-03-01 | B34: 540266 | C34: GLCL | D34: NOOPUR BHAGWANDAS KANSARA | E34: BUY | F34: 3,800 | G34: 43.57 | H34: BSE
A35: 2023-03-01 | B35: 540266 | C35: GLCL | D35: NOOPUR BHAGWANDAS KANSARA | E35: SELL | F35: 42,100 | G35: 42.38 | H35: BSE
A36: 2023-03-01 | B36: 543520 | C36: GLHRL | D36: NIRAJ RAJNIKANT SHAH | E36: SELL | F36: 64,000 | G36: 45.5 | H36: BSE
A37: 2023-03-01 | B37: 543520 | C37: GLHRL | D37: HARSHAD RASIKLAL SHETH | E37: BUY | F37: 64,000 | G37: 45.5 | H37: BSE
A38: 2023-03-01 | B38: 530263 | C38: GLOBALCA | D38: BHAVYA DHIMAN | E38: SELL | F38: 195,735 | G38: 29.17 | H38: BSE
A39: 2023-03-01 | B39: 530263 | C39: GLOBALCA | D39: BHAVYA DHIMAN | E39: BUY | F39: 195,735 | G39: 29.21 | H39: BSE
A40: 2023-03-01 | B40: 530263 | C40: GLOBALCA | D40: NNM SECURITIES PVT LTD | E40: SELL | F40: 130,000 | G40: 29.22 | H40: BSE
A41: 2023-03-01 | B41: 530263 | C41: GLOBALCA | D41: NNM SECURITIES PVT LTD | E41: BUY | F41: 130,000 | G41: 29.22 | H41: BSE
A42: 2023-03-01 | B42: 530263 | C42: GLOBALCA | D42: AKSHAY RAJENDRABHAI OSWAL | E42: BUY | F42: 154,255 | G42: 29.23 | H42: BSE
A43: 2023-03-01 | B43: 530263 | C43: GLOBALCA | D43: AKSHAY RAJENDRABHAI OSWAL | E43: SELL | F43: 154,255 | G43: 29.24 | H43: BSE
A44: 2023-03-01 | B44: 530263 | C44: GLOBALCA | D44: CHETAN RASIKLAL SHAH | E44: BUY | F44: 178,117 | G44: 29.24 | H44: BSE
A45: 2023-03-01 | B45: 530263 | C45: GLOBALCA | D45: MULTIPLIER SHARE & STOCK ADVISORS PRIVATE LIMITED | E45: BUY | F45: 198,105 | G45: 29.18 | H45: BSE
A46: 2023-03-01 | B46: 530263 | C46: GLOBALCA | D46: CHETAN RASIKLAL SHAH | E46: SELL | F46: 178,117 | G46: 29.21 | H46: BSE
A47: 2023-03-01 | B47: 530263 | C47: GLOBALCA | D47: MULTIPLIER SHARE & STOCK ADVISORS PRIVATE LIMITED | E47: SELL | F47: 298,105 | G47: 29.23 | H47: BSE
A48: 2023-03-01 | B48: 526967 | C48: HEERAISP | D48: DHAVALKUMAR HASTIMALBHAI SONI | E48: BUY | F48: 42,065 | G48: 11.4 | H48: BSE
A49: 2023-03-01 | B49: 526967 | C49: HEERAISP | D49: MAYANK RASIKLAL KOTADIA | E49: SELL | F49: 51,469 | G49: 11.4 | H49: BSE
A50: 2023-03-01 | B50: 526967 | C50: HEERAISP | D50: MAYANK RASIKLAL KOTADIA | E50: BUY | F50: 22,547 | G50: 11.67 | H50: BSE
A51: 2023-03-01 | B51: 543769 | C51: INDONG | D51: NIKUNJ KAUSHIK SHAH | E51: BUY | F51: 200,000 | G51: 17.48 | H51: BSE
A52: 2023-03-01 | B52: 543769 | C52: INDONG | D52: MULTIPLIER SHARE & STOCK ADVISORS PRIVATE LIMITED | E52: SELL | F52: 104,000 | G52: 17.9 | H52: BSE
A53: 2023-03-01 | B53: 539814 | C53: LELAVOIR | D53: BABLA DUTTA ROY | E53: SELL | F53: 25,910 | G53: 40.12 | H53: BSE
A54: 2023-03-01 | B54: 523475 | C54: LOTUSCHO | D54: MULTIPLIER SHARE & STOCK ADVISORS PRIVATE LIMITED | E54: BUY | F54: 109,327 | G54: 212.25 | H54: BSE
A55: 2023-03-01 | B55: 523475 | C55: LOTUSCHO | D55: MULTIPLIER SHARE & STOCK ADVISORS PRIVATE LIMITED | E55: SELL | F55: 72,768 | G55: 225.39 | H55: BSE
A56: 2023-03-01 | B56: 538895 | C56: MIHIKA | D56: DHARMISTHABEN KANUBHAI KACHHIA | E56: BUY | F56: 62,175 | G56: 23.91 | H56: BSE
A57: 2023-03-01 | B57: 531959 | C57: NEWINFRA | D57: FAITH ADVISORY SERVICES PRIVATE LIMITED | E57: SELL | F57: 1,589,443 | G57: 22.75 | H57: BSE
A58: 2023-03-01 | B58: 531959 | C58: NEWINFRA | D58: NISHITH ATULBHAI SHAH | E58: BUY | F58: 1,430,000 | G58: 22.75 | H58: BSE
A59: 2023-03-01 | B59: 543522 | C59: NVENTURES | D59: MIHIR D VASHI (HUF) | E59: BUY | F59: 12,000 | G59: 46.1 | H59: BSE
A60: 2023-03-01 | B60: 538646 | C60: QGO | D60: SINGI | E60: SELL | F60: 40,000 | G60: 43.5 | H60: BSE
A61: 2023-03-01 | B61: 538646 | C61: QGO | D61: SEEMA PATHAK | E61: BUY | F61: 40,000 | G61: 43.5 | H61: BSE
A62: 2023-03-01 | B62: 530111 | C62: RAJPACK | D62: DEEPAK JAIN | E62: BUY | F62: 34,500 | G62: 51.97 | H62: BSE
A63: 2023-03-01 | B63: 530111 | C63: RAJPACK | D63: TINA JAIN | E63: SELL | F63: 36,570 | G63: 51.99 | H63: BSE
A64: 2023-03-01 | B64: 543787 | C64: ROBU | D64: SRISURYANARAYANARAJUVEGESNA | E64: BUY | F64: 102,000 | G64: 184 | H64: BSE
A65: 2023-03-01 | B65: 543782 | C65: SEALMATIC | D65: RAJASTHAN GLOBAL SECURITIES PRIVATE LIMITED | E65: SELL | F65: 208,200 | G65: 232.81 | H65: BSE
A66: 2023-03-01 | B66: 543782 | C66: SEALMATIC | D66: AMARCHAND GOUTAMCHAND BAID | E66: BUY | F66: 60,000 | G66: 225 | H66: BSE
A67: 2023-03-01 | B67: 543782 | C67: SEALMATIC | D67: ANILKUMAR | E67: BUY | F67: 61,200 | G67: 233.06 | H67: BSE
A68: 2023-03-01 | B68: 539584 | C68: SIPTL | D68: SAROJBEN JAYANTILAL VIRVADIA | E68: SELL | F68: 270,000 | G68: 1.13 | H68: BSE
A69: 2023-03-01 | B69: 538923 | C69: SOFCOM | D69: PANKITKUMAR VINODCHANDRA PARIKH | E69: BUY | F69: 42,667 | G69: 93.4 | H69: BSE
A70: 2023-03-01 | B70: 538923 | C70: SOFCOM | D70: AMI NAMAN SHAH | E70: BUY | F70: 144,548 | G70: 92.76 | H70: BSE
A71: 2023-03-01 | B71: 538923 | C71: SOFCOM | D71: NITESH JAGMOHAN VASHISTHA | E71: SELL | F71: 23,681 | G71: 93.8 | H71: BSE
A72: 2023-03-01 | B72: 538923 | C72: SOFCOM | D72: PANNABEN BHANUBHAI SHAH | E72: SELL | F72: 37,000 | G72: 92.66 | H72: BSE
A73: 2023-03-01 | B73: 538923 | C73: SOFCOM | D73: NAMAN BHANUBHAI SHAH | E73: SELL | F73: 49,698 | G73: 93.24 | H73: BSE
A74: 2023-03-01 | B74: 538923 | C74: SOFCOM | D74: ABHIK NARENDRABHAI PATEL | E74: SELL | F74: 22,000 | G74: 92.26 | H74: BSE
A75: 2023-03-01 | B75: 543745 | C75: SVS | D75: MULTIPLIER SHARE & STOCK ADVISORS PRIVATE LIMITED | E75: SELL | F75: 126,000 | G75: 8.45 | H75: BSE
A76: 2023-03-01 | B76: 539402 | C76: VAL | D76: KAUSHIK MAHESH WAGHELA | E76: SELL | F76: 70,000 | G76: 23.2 | H76: BSE
A77: 2023-03-01 | B77: 539402 | C77: VAL | D77: ANANYA FOODS | E77: SELL | F77: 195,390 | G77: 23.44 | H77: BSE
A78: 2023-03-01 | B78: 539402 | C78: VAL | D78: ANANYA FOODS | E78: BUY | F78: 2,706 | G78: 24.26 | H78: BSE
A79: 2023-03-01 | B79: 539402 | C79: VAL | D79: MULTIPLIER SHARE & STOCK ADVISORS PRIVATE LIMITED | E79: BUY | F79: 100,000 | G79: 23.18 | H79: BSE
A80: 2023-03-01 | B80: 539402 | C80: VAL | D80: MULTIPLIER SHARE & STOCK ADVISORS PRIVATE LIMITED | E80: SELL | F80: 20,002 | G80: 23.18 | H80: BSE
A81: 2023-03-01 | B81: 539402 | C81: VAL | D81: D'SOUZA SATISH PETER | E81: BUY | F81: 100,000 | G81: 23.18 | H81: BSE
A82: 2023-03-01 | B82: 542803 | C82: VEL | D82: VAX ENTERPRISE PRIVATE LIMITED | E82: BUY | F82: 53,125 | G82: 17.95 | H82: BSE
A83: 2023-03-01 | B83: 542803 | C83: VEL | D83: ASHOKBHAI MADHUBHAI KORAT | E83: BUY | F83: 155,000 | G83: 17.95 | H83: BSE
A84: 2023-03-01 | B84: 542803 | C84: VEL | D84: THAKURJI INTERNATIONAL PRIVATE LIMITED | E84: BUY | F84: 90,000 | G84: 17.89 | H84: BSE
A85: 2023-03-01 | B85: 542803 | C85: VEL | D85: MULTIPLIER SHARE & STOCK ADVISORS PRIVATE LIMITED | E85: SELL | F85: 221,521 | G85: 17.94 | H85: BSE
A86: 2023-03-01 | B86: 542803 | C86: VEL | D86: PARTH INFIN BROKERS PVT LTD | E86: SELL | F86: 72,121 | G86: 17.88 | H86: BSE
A87: 2023-03-01 | B87: CMRSL | C87: Cyber Media Res & Ser Ltd | D87: VIVEK KUMAR BHAUKA | E87: BUY | F87: 26,400 | G87: 134 | H87: NSE
A88: 2023-03-01 | B88: EXCEL | C88: Excel Realty N Infra Ltd | D88: SAHASTRAA ADVISORS PRIVATE LIMITED | E88: BUY | F88: 7,200,000 | G88: 0.45 | H88: NSE
A89: 2023-03-01 | B89: GOYALALUM | C89: Goyal Aluminiums Limited | D89: TOUCHLINE SECURITIES PRIVATE LIMITED | E89: BUY | F89: 112,915 | G89: 274.13 | H89: NSE
A90: 2023-03-01 | B90: HARDWYN | C90: Hardwyn India Limited | D90: HANSRAJ COMMOSALES LLP | E90: BUY | F90: 112,000 | G90: 289.9 | H90: NSE
A91: 2023-03-01 | B91: SECURCRED | C91: SecUR Credentials Limited | D91: PALAK INTERMEDIATES PRIVATE LIMITED | E91: BUY | F91: 1,033,190 | G91: 30.11 | H91: NSE
A92: 2023-03-01 | B92: SECURCRED | C92: SecUR Credentials Limited | D92: M/S. PRARTHANA ENTERPRISES | E92: BUY | F92: 519,202 | G92: 30.98 | H92: NSE
A93: 2023-03-01 | B93: SECURCRED | C93: SecUR Credentials Limited | D93: ANUSTUP TRADING PRIVATE LIMITED | E93: BUY | F93: 250,813 | G93: 29.4 | H93: NSE
A94: 2023-03-01 | B94: SUULD | C94: Suumaya Industries Ltd | D94: MULTIPLIER SHARE & STOCK ADVISORS PRIVATE LIMITED | E94: BUY | F94: 122,824 | G94: 21.62 | H94: NSE
A95: 2023-03-01 | B95: SUULD | C95: Suumaya Industries Ltd | D95: ACHINTYA SECURITIES PRIVATE LIMITED | E95: BUY | F95: 1,200,748 | G95: 21.13 | H95: NSE
A96: 2023-03-01 | B96: TEMBO | C96: Tembo Global Ind Ltd | D96: KAUSHIK MAHESHBHAI WAGHELA | E96: BUY | F96: 87,309 | G96: 161.89 | H96: NSE
A97: 2023-03-01 | B97: TRACXN | C97: Tracxn Technologies Ltd | D97: PARTH INFIN BROKERS PVT LTD | E97: BUY | F97: 1,125,243 | G97: 77.94 | H97: NSE
A98: 2023-03-01 | B98: TRACXN | C98: Tracxn Technologies Ltd | D98: CRONY VYAPAR PVT LTD | E98: BUY | F98: 595,916 | G98: 78.67 | H98: NSE
A99: 2023-03-01 | B99: VERTOZ | C99: Vertoz Advertising Ltd | D99: SW CAPITAL PRIVATE LIMITED | E99: BUY | F99: 73,230 | G99: 230.24 | H99: NSE
A100: 2023-03-01 | B100: VIAZ | C100: Viaz Tyres Limited | D100: GOENKA BUSINESS AND FINANCE LIMITED | E100: BUY | F100: 368,000 | G100: 68 | H100: NSE
A101: 2023-03-01 | B101: VIAZ | C101: Viaz Tyres Limited | D101: PATEL CHIRAGKUMAR HUF | E101: BUY | F101: 72,000 | G101: 68.05 | H101: NSE
A102: 2023-03-01 | B102: VIAZ | C102: Viaz Tyres Limited | D102: GAURAV CHANDRAKANTBHAI RUPARELIA HUF | E102: BUY | F102: 68,000 | G102: 68.05 | H102: NSE
A103: 2023-03-01 | B103: VIAZ | C103: Viaz Tyres Limited | D103: AJITKUMAR NARAYANBHAI PATEL HUF | E103: BUY | F103: 72,000 | G103: 68.05 | H103: NSE
A104: 2023-03-01 | B104: VIAZ | C104: Viaz Tyres Limited | D104: VIRAL MALAYBHAI BHOW | E104: BUY | F104: 368,000 | G104: 68 | H104: NSE
A105: 2023-03-01 | B105: VIAZ | C105: Viaz Tyres Limited | D105: MALAY ROHITKUMAR BHOW | E105: BUY | F105: 368,000 | G105: 68 | H105: NSE
A106: 2023-03-01 | B106: VIAZ | C106: Viaz Tyres Limited | D106: KOMALAY INVESTRADE PRIVATE LIMITED | E106: BUY | F106: 246,000 | G106: 68 | H106: NSE
A107: 2023-03-01 | B107: VINNY | C107: Vinny Overseas Limited | D107: ANTARA INDIA EVERGREEN FUND LTD | E107: BUY | F107: 1,000,000 | G107: 15.55 | H107: NSE
A108: 2023-03-01 | B108: VINNY | C108: Vinny Overseas Limited | D108: EUROPLUS ONE REALITY PVT LTD | E108: BUY | F108: 119,372 | G108: 15.62 | H108: NSE
A109: 2023-03-01 | B109: 5PAISA | C109: 5paisa Capital Limited | D109: SHETH MADHUKAR CHIMANLAL | E109: SELL | F109: 200,000 | G109: 274.49 | H109: NSE
A110: 2023-03-01 | B110: CMRSL | C110: Cyber Media Res & Ser Ltd | D110: PREETI BHAUKA | E110: SELL | F110: 26,400 | G110: 134 | H110: NSE
A111: 2023-03-01 | B111: GOYALALUM | C111: Goyal Aluminiums Limited | D111: TOUCHLINE SECURITIES PRIVATE LIMITED | E111: SELL | F111: 134,686 | G111: 273.44 | H111: NSE
A112: 2023-03-01 | B112: HARDWYN | C112: Hardwyn India Limited | D112: SAHITAY COMMOSALES LLP | E112: SELL | F112: 112,000 | G112: 289.9 | H112: NSE
A113: 2023-03-01 | B113: IEL | C113: Indiabulls Ent Ltd | D113: NIKHIL RAJGOPALA CHARI | E113: SELL | F113: 1,050,000 | G113: 8.76 | H113: NSE
A114: 2023-03-01 | B114: SECURCRED | C114: SecUR Credentials Limited | D114: M/S. PRARTHANA ENTERPRISES | E114: SELL | F114: 49,202 | G114: 29.91 | H114: NSE
A115: 2023-03-01 | B115: SECURCRED | C115: SecUR Credentials Limited | D115: ANUSTUP TRADING PRIVATE LIMITED | E115: SELL | F115: 250,813 | G115: 28.85 | H115: NSE
A116: 2023-03-01 | B116: SECURCRED | C116: SecUR Credentials Limited | D116: PALAK INTERMEDIATES PRIVATE LIMITED | E116: SELL | F116: 1,034,618 | G116: 30.06 | H116: NSE
A117: 2023-03-01 | B117: SRPL | C117: Shree Ram Proteins Ltd. | D117: LALITKUMAR CHANDULAL VASOYA | E117: SELL | F117: 346,879 | G117: 51.14 | H117: NSE
A118: 2023-03-01 | B118: SUULD | C118: Suumaya Industries Ltd | D118: MULTIPLIER SHARE & STOCK ADVISORS PRIVATE LIMITED | E118: SELL | F118: 352,954 | G118: 20.3 | H118: NSE
A119: 2023-03-01 | B119: SUULD | C119: Suumaya Industries Ltd | D119: AVINASH ANANT JOIEL | E119: SELL | F119: 802,500 | G119: 21.65 | H119: NSE
A120: 2023-03-01 | B120: TEMBO | C120: Tembo Global Ind Ltd | D120: OPTUME INVESTMENTS | E120: SELL | F120: 73,370 | G120: 161.12 | H120: NSE
A121: 2023-03-01 | B121: TRACXN | C121: Tracxn Technologies Ltd | D121: PARTH INFIN BROKERS PVT LTD | E121: SELL | F121: 865,243 | G121: 78.06 | H121: NSE
A122: 2023-03-01 | B122: TRACXN | C122: Tracxn Technologies Ltd | D122: CRONY VYAPAR PVT LTD | E122: SELL | F122: 284,754 | G122: 78.62 | H122: NSE
A123: 2023-03-01 | B123: VERTOZ | C123: Vertoz Advertising Ltd | D123: SW CAPITAL PRIVATE LIMITED | E123: SELL | F123: 33,145 | G123: 229.7 | H123: NSE
A124: 2023-03-01 | B124: VINNY | C124: Vinny Overseas Limited | D124: EUROPLUS ONE REALITY PVT LTD | E124: SELL | F124: 825,000 | G124: 15.55 | H124: NSE

Sheet Call Tracker (Equity & F&O)
M5: Back To Main Page
A6: Retail Research Technical Calls & Fundamental Performance Report for the month of Mar-2023
M7: =Main!B10 -> 2023-03-02
B8: Positional Call
A9: Sr.no | B9: Date | D9: Company | E9: Rec | F9: Rec Price | G9: Stop Loss*** | H9: Call Closed At | I9: Target | J9: Remark | K9: Profit / Loss per Share | L9: All charges | M9: Net Gain / Loss % | N9: Status | O9: Closed Date | P9: Market Closing Price
A10: 1 | B10: 2022-12-01 | D10: TCS | E10: Buy<> | F10: 3380 | G10: 3140 | H10: 3565 | I10: 3800-4000 | J10: Part profit of Rs.185/- | K10: =H10-F10 -> 185 | L10: =(F10*-0.7)/100 -> -23.66 | M10: =(K10+L10)/F10 -> 4.77% | N10: Successful | O10: 2023-02-16 | R10: H
A11: 2 | B11: 2023-01-10 | D11: BHARTIARTL | E11: Buy | F11: 780-800 | G11: 735 | I11: 870-900 | J11: Open | R11: H
A12: 3 | B12: 2023-01-24 | D12: KIMS | E12: Buy | F12: 1435 | G12: 1340 | H12: 1512.5 | I12: 1580-1650 | J12: Part Profit of Rs.77.5/- | K12: =H12-F12 -> 77.5 | L12: =(F12*-0.7)/100 -> -10.05 | M12: =(K12+L12)/F12 -> 4.70% | N12: Successful | O12: 2023-01-31 | R12: N
A13: 4 | B13: 2023-02-01 | D13: AXISBANK | E13: Accu | F13: 825-850 | G13: 790 | I13: 900-950 | J13: Open | R13: H
A14: 5 | B14: 2023-02-06 | D14: JSWSTEEL | E14: Accu | F14: 695-717.5 | G14: 660 | I14: 770-800 | J14: Open | R14: H
A15: 6 | B15: 2023-02-16 | D15: PIDILITIND | E15: Accu | F15: 2250-2310 | G15: 2170 | I15: 2450-2500 | J15: Open | R15: H
A16: 7 | B16: 2023-02-20 | D16: SHARDACROP | E16: Accu | F16: 452.5-472.5 | G16: 425 | I16: 520-550 | J16: Open | R16: H
A17: 8 | B17: 2023-02-21 | D17: CANBK | E17: Accu | F17: 281-288 | G17: 268 | I17: 315-335 | J17: Open | R17: N
A18: 9 | B18: 2023-02-21 | D18: HAPPIESTMNDS | E18: Accu | F18: 865-899 | G18: 830 | I18: 960-1000 | J18: Open | R18: H
A19: 10 | B19: 2023-02-24 | D19: PIIND | E19: Accu | F19: 3110-3010 | G19: 2890 | I19: 3300-3400 | J19: Open | R19: H
A20: 11 | B20: 2023-02-27 | D20: SBIN | E20: Accu | F20: 502.5-522.5 | G20: 478 | I20: 570-600 | J20: Open | R20: H
A21: 12 | B21: 2023-03-01 | D21: REDINGTON | E21: Accu | F21: 169.5-165 | G21: 158 | I21: 180-185 | J21: Open
A25: CLBS = Closing Basis ***
A26: Dividend adjusted <> | F26: Reinitiated $
A27: Part book {} | D27: s | F27: Revised stoploss #
B29: Momentum Call
A30: Sr.no | B30: Date | D30: Company | E30: Rec | F30: Rec Price | G30: Stop Loss | H30: Call Closed At | I30: Target | J30: Remark | K30: Profit / Loss per Share/Lot | L30: All charges | M30: Net Gain / Loss % | N30: Status | O30: Closed Date
A31: 1 | B31: 2023-02-28 | D31: RELIANCE | E31: Buy | F31: 2354-2360 | G31: 2270 | I31: 2450-2500 | J31: Open | R31: H
A32: 2 | B32: 2023-03-01 | D32: AMARAJABAT | E32: Buy | F32: 559-563 | G32: 545 | I32: 585-595 | J32: Open
A33: 3 | B33: 2023-03-01 | D33: VTL | E33: Buy | F33: 309-311 | G33: 300 | I33: 325-330 | J33: Open
A34: 4 | B34: 2023-03-01 | D34: TECHM | E34: Buy | F34: 1107-1113 | G34: 978 | I34: 1150-1170 | J34: Open
A38: CLBS = Closing Basis *** | H38: *
A39: Dividend adjusted <> | F39: Reinitiated $
F40: Revised stoploss #
A42: Master Trade High Risk
A43: Sr.no | B43: Date | D43: Company | E43: Rec | F43: Rec Price | G43: Stop Loss | H43: Call Closed At | I43: Target | J43: Remark | K43: Profit / Loss per share | L43: All charges | M43: Gain / Loss per Lot | N43: Lot | O43: Status | P43: Closed Date
A44: 1 | B44: 2023-02-21 | D44: IGL MAR FUT | E44: Buy | F44: 442-443 | G44: 432 | I44: 455-463 | J44: Open | R44: N
A45: 2 | B45: 2023-02-22 | D45: BATAINDIA MAR FUT | E45: Buy | F45: 1420-1425 | G45: 1380 | I45: 1470-1480 | J45: Open | R45: H
A46: 3 | B46: 2023-03-01 | D46: LT MAR FUT | E46: Buy | F46: 2128-2132 | G46: 2090 | I46: 2170-2200 | J46: Open
A47: 4 | B47: 2023-03-01 | D47: BHARTIARTL MAR FUT | E47: Buy | F47: 752-754 | G47: 739 | I47: 770-780 | J47: Open
A50: Master Trade Medium Risk
A51: Sr.no | B51: Date | D51: Company | E51: Rec | F51: Rec Price | G51: Stop Loss | H51: Call Closed At | I51: Target | J51: Remark | K51: Profit/ Loss per lot | L51: All charges | M51: Gain / Loss per Lot | N51: Lot | O51: Status | P51: Closed Date
A52: 1 | B52: 2023-02-28 | D52: LT 2160 CE MAR | E52: Buy | F52: 37-39 | G52: 21 | I52: 60-70 | J52: Open | R52: N
A53: 2 | B53: 2023-02-28 | D53: RELIANCE 2400 CE MAR | E53: Buy | F53: 38-40 | J53: Open | R53: H
D54: RELIANCE 2460 CE MAR | E54: Sell | F54: 19-21
A55: 3 | B55: 2023-02-28 | D55: ACC 1900 CE MAR | E55: Buy | F55: 22 | H55: 28.5 | I55: 50-60 | J55: Profit of Rs.6.5/- | K55: =H55-F55 -> 6.5 | L55: 100.00 | M55: =(K55*N55)-100 -> 1525.0 | N55: 250 | O55: Successful | P55: 2023-02-01 | R55: H
A56: 4 | B56: 2023-03-01 | D56: ACC 1900 CE MAR | E56: Buy | F56: 20-21 | I56: 50-60 | J56: Open
A57: 5 | B57: 2023-03-01 | D57: NIFTY 17400 CE 2-MAR | E57: Buy | F57: 71 | G57: 40 | H57: 91 | I57: 110-140 | J57: Profit of Rs.20/- | K57: =H57-F57 -> 20 | L57: 100.00 | M57: =(K57*N57)-100 -> 900.0 | N57: 50 | O57: Successful | P57: 2023-02-01
A62: Techno -Funda (positional)
A63: Sr.no | B63: Date | D63: Company | E63: Rec | F63: Rec Price | G63: Stop Loss*** | H63: Call Closed At | I63: Target | J63: Remark | K63: Profit / Loss per Share/Lot | L63: All charges | M63: Net Gain / Loss % | N63: Status | O63: Closed Date | P63: Market Closing Price
A64: 1 | B64: 2022-10-06 | D64: AMBIKCO | E64: Buy | F64: 1420-1620 | G64: 1220 | I64: 2000-2300 | J64: Open | R64: H
A66: CLBS = Closing Basis *** | F66: Reinitiated $
A67: Dividend adjusted <> | F67: Revised stoploss # | H67: .................
B71: Investment Idea
A72: Sr.no | B72: Date | D72: Company | E72: Rec | F72: Rec Price | G72: Point of Review | H72: Close Rate | I72: Target | J72: Remark | K72: Profit / Loss per Share | L72: Gain / Loss % | M72: Status | N72: Closed Date
A73: 1 | B73: 2013-11-01 | D73: L&T Finance Holding | E73: Accu | F73: 82.00 | G73: - | H73: 100 | I73: 100.00 | J73: Target Achieved | K73: =H73-F73 -> 18.00 | L73: =K73/F73 -> 21.95% | M73: Successful | N73: 2016-10-14
A74: 2 | B74: 2014-06-04 | D74: Finolex Inds | E74: Buy | F74: 257.00 | G74: - | H74: 300 | I74: 300.00 | J74: Target Achieved | K74: 43.00 | L74: 16.73% | M74: Successful | N74: 2014-07-02
A75: 3 | B75: 2014-07-08 | D75: JK Cement | E75: Buy | F75: 393.00 | G75: - | H75: 468 | I75: 468.00 | J75: Target Achieved | K75: 75.00 | L75: 19.08% | M75: Successful | N75: 2014-08-12
A76: 4 | B76: 2014-08-06 | D76: Finolex Cables | E76: Buy | F76: 205.00 | G76: - | H76: 275 | I76: 250.00 | J76: Target Achieved | K76: 70.00 | L76: 34.15% | M76: Successful | N76: 2014-11-19
A77: 5 | B77: 2014-09-04 | D77: Exide Inds | E77: Buy | F77: 162.00 | G77: - | H77: 190 | I77: 190.00 | J77: Target Achieved | K77: 28.00 | L77: 17.28% | M77: Successful | N77: 2015-01-02
A78: 6 | B78: 2014-09-04 | D78: Deepak Nitrite | E78: Buy | F78: 75.00 | G78: - | H78: 91.5 | I78: 95-100 | J78: Profit of Rs.16.50/- | K78: 16.50 | L78: 22.00% | M78: Successful | N78: 2014-11-11
A79: 7 | B79: 2014-10-01 | D79: Mercks | E79: Buy | F79: 850.00 | G79: - | H79: 982.5 | I79: 1050.00 | J79: Profit of Rs.132.50/- | K79: 132.50 | L79: 15.59% | M79: Successful | N79: 2015-02-04
A80: 8 | B80: 2014-10-01 | D80: Grindwell Norton | E80: Buy | F80: 475.00 | G80: - | H80: 515 | I80: 600.00 | J80: Profit of Rs.40/- | K80: 40.00 | L80: 8.42% | M80: Successful | N80: 2014-10-27
A81: 9 | B81: 2014-10-01 | D81: Snowman Logistics | E81: Buy | F81: 86.00 | G81: - | H81: 99 | I81: 140.00 | J81: Profit of Rs.13.00/- | K81: 13.00 | L81: 15.12% | M81: Successful | N81: 2014-10-27
A82: 10 | B82: 2014-10-14 | D82: Birla Corp | E82: Buy | F82: 496.60 | G82: - | H82: 621 | I82: 580.00 | J82: Target Achieved | K82: 124.40 | L82: 25.05% | M82: Successful | N82: 2016-08-23
A83: 11 | B83: 2014-10-14 | D83: Ultratech Cem | E83: Buy | F83: 2481.90 | G83: - | H83: 2840 | I83: 2870.00 | J83: Profit of Rs.358.10/- | K83: 358.10 | L83: 14.43% | M83: Successful | N83: 2015-01-13
A84: 12 | B84: 2014-10-16 | D84: Sintex Inds | E84: Buy | F84: 84.50 | G84: - | H84: 93 | I84: 110.00 | J84: Profit of Rs.8.50/- | K84: 8.50 | L84: 10.06% | M84: Successful | N84: 2014-10-27
A85: 13 | B85: 2014-10-16 | D85: HSIL | E85: Buy | F85: 401.00 | G85: - | H85: 428 | I85: 450.00 | J85: Profit of Rs.27.00/- | K85: 27.00 | L85: 6.73% | M85: Successful | N85: 2015-01-16
A86: 14 | B86: 2014-10-16 | D86: Eveready Inds | E86: Buy | F86: 101.00 | G86: - | H86: 112 | I86: 120.00 | J86: Profit of Rs.11.00/- | K86: 11.00 | L86: 10.89% | M86: Successful | N86: 2014-10-27
A87: 15 | B87: 2014-11-11 | D87: Pennar Inds | E87: Buy | F87: 59.00 | G87: - | H87: 76 | I87: 76.00 | J87: Target Achieved | K87: 17.00 | L87: 28.81% | M87: Successful | N87: 2017-10-24
A88: 16 | B88: 2014-11-11 | D88: Snowman Logistics | E88: Buy | F88: 99.00 | G88: - | H88: 120 | I88: 120.00 | J88: Profit of Rs.21/- | K88: 21.00 | L88: 21.21% | M88: Successful | N88: 2014-11-17
A89: 17 | B89: 2014-11-13 | D89: Dharamsi Morarji Chem | E89: Buy | F89: 22.00 | G89: - | H89: 33.55 | I89: 32.00 | J89: Profit of Rs 11.55/- | K89: 11.55 | L89: 52.50% | M89: Successful | N89: 2015-07-03
A90: 18 | B90: 2014-12-03 | D90: Tatachem | E90: Buy | F90: 440.00 | G90: - | H90: 520 | I90: 520.00 | J90: Profit of Rs 80.00/- | K90: 80.00 | L90: 18.18% | M90: Successful | N90: 2015-07-23
A91: 19 | B91: 2014-12-03 | D91: Advanta | E91: Buy | F91: 360.00 | G91: - | H91: 427 | I91: 425.00 | J91: Profit of Rs.67.00/- | K91: 67.00 | L91: 18.61% | M91: Successful | N91: 2015-02-23
A92: 20 | B92: 2015-01-08 | D92: GDL | E92: Buy | F92: 360.00 | G92: - | H92: 455 | I92: 420.00 | J92: Profit of Rs.95.00/- | K92: 95.00 | L92: 26.39% | M92: Successful | N92: 2015-01-20
A93: 21 | B93: 2015-01-08 | D93: NRB Bearing | E93: Buy | F93: 130.00 | H93: 175.5 | I93: 165.00 | J93: Profit of Rs 45.50/- | K93: 45.50 | L93: 35.00% | M93: Successful | N93: 2017-12-19
A94: 22 | B94: 2015-02-05 | D94: GSFC | E94: Accu | F94: 98.00 | H94: 120 | I94: 120.00 | J94: Target Achieved | K94: 22.00 | L94: 22.45% | M94: Successful | N94: 2017-01-18
A95: 23 | B95: 2015-02-05 | D95: Sundrmfast | E95: Accu | F95: 196.00 | H95: 262 | I95: 255.00 | J95: Target Achieved | K95: 66.00 | L95: 33.67% | M95: Successful | N95: 2016-08-17
A96: 24 | B96: 2015-03-04 | D96: GPPL | E96: Accu | F96: 235 | H96: 77.00 | I96: 280-285 | J96: Loss of Rs.158/- | K96: -158.00 | L96: -67.23% | M96: Unsuccessful | N96: 2019-02-26
A97: 25 | B97: 2015-03-04 | D97: ORIENTCEM | E97: Accu | F97: 185.00 | H97: 224 | I97: 220-225 | J97: Target Achieved | K97: 39.00 | L97: 21.08% | M97: Successful | N97: 2016-10-04
A98: 26 | B98: 2015-03-27 | D98: PFS | E98: Accu | F98: 49.5 | H98: 15.85 | I98: 67.00 | J98: Loss of Rs.33.65/- | K98: -33.65 | L98: -68% | M98: Unsuccessful | N98: 2019-06-11
A99: 27 | B99: 2015-03-30 | D99: Walchandnagar Ind Ltd | E99: Accu | F99: 183.50 | H99: 219 | I99: 218.00 | J99: Profit of Rs.35.50/- | K99: 35.50 | L99: 19.35% | M99: Successful | N99: 2015-04-09
A100: 28 | B100: 2015-04-20 | D100: Kalpataru Power Transmission Ltd | E100: Accu | F100: =(227+237)/2 -> 232.00 | H100: 298 | I100: 298.00 | J100: Target Achieved | K100: 66.00 | L100: 28.45% | M100: Successful | N100: 2017-03-29
A101: 29 | B101: 2015-05-04 | D101: Mastek Ltd | E101: Buy | F101: 385.00 | H101: =212.5+331 -> 543.5 | I101: 510.00 | J101: Profit of Rs 158.50/- | K101: 158.50 | L101: 41.17% | M101: Successful | N101: 2015-08-19
A102: 30 | B102: 2015-05-04 | D102: Suprajit Eng | E102: Buy | F102: 115.50 | H102: 146 | I102: 142.00 | J102: Profit of Rs 30.50/- | K102: 30.50 | L102: 26.41% | M102: Successful | N102: 2015-07-17
A103: 31 | B103: 2015-05-27 | D103: TCI | E103: Buy | F103: 237.50 | H103: 279.5 | I103: 278.00 | J103: Target Achieved | K103: 42.00 | L103: 17.68% | M103: Successful | N103: 2015-08-06
A104: 32 | B104: 2015-06-19 | D104: HSIL | E104: Accu | F104: 340.00 | H104: 448 | I104: 448.00 | J104: Target Achieved | K104: 108.00 | L104: 31.76% | M104: Successful | N104: 2017-10-10
A105: 33 | B105: 2015-07-06 | D105: Capital First | E105: Accu | F105: 390.00 | H105: 460 | I105: 460.00 | J105: Target Achieved | K105: 70.00 | L105: 17.95% | M105: Successful | N105: 2016-04-18
A106: 34 | B106: 2015-07-10 | D106: Dolphin OffShore | E106: Accu | F106: 122.5 | H106: 61.00 | I106: 172.00 | J106: Loss of Rs.61.50/- | K106: -61.50 | L106: -50.20% | M106: Unsuccessful | N106: 2018-08-21
A107: 35 | B107: 2015-08-03 | D107: Allcargo logistics | E107: Accu | F107: 297.50 | H107: 350 | I107: 360.00 | J107: Profit of Rs 52.50/- | K107: 52.50 | L107: 17.65% | M107: Successful | N107: 2015-08-16
A108: 36 | B108: 2015-08-03 | D108: Camline Fine | E108: Accu | F108: 115.50 | H108: 149 | I108: 140.00 | J108: Profit of Rs 33.50/- | K108: 33.50 | L108: 29.00% | M108: Successful | N108: 2017-01-05
A109: 37 | B109: 2015-09-04 | D109: TCI | E109: Accu | F109: 226.00 | H109: 292 | I109: 292.00 | J109: Target Achieved | K109: 66.00 | L109: 29.20% | M109: Successful | N109: 2015-10-09
A110: 38 | B110: 2015-09-07 | D110: Kalpataru Power Transmission Ltd | E110: Accu | F110: 232.50 | H110: 312.5 | I110: 310.00 | J110: Target Achieved | K110: 80.00 | L110: 34.41% | M110: Successful | N110: 2017-03-29
A111: 39 | B111: 2015-09-21 | D111: LLOYD ELECTRIC & ENG LTD | E111: Accu | F111: 196.50 | H111: 238 | I111: 238.00 | J111: Target Achieved | K111: 41.50 | L111: 21.12% | M111: Successful | N111: 2015-10-14
A112: 40 | B112: 2015-09-24 | D112: L&T Finance Holding | E112: Accu | F112: 65.00 | H112: 82 | I112: 82.00 | J112: Target Achieved | K112: 17.00 | L112: 26.15% | M112: Successful | N112: 2016-07-27
A113: 41 | B113: 2015-10-14 | D113: KEC International ltd | E113: Accu | F113: 144.00 | H113: 182.5 | I113: 181.00 | J113: Target Achieved | K113: 38.50 | L113: 26.74% | M113: Successful | N113: 2017-03-23
A114: 42 | B114: 2015-10-14 | D114: Gruh Finance | E114: Accu | F114: 264.00 | H114: 311 | I114: 311.00 | J114: Target Achieved | K114: 47.00 | L114: 17.80% | M114: Successful | N114: 2016-08-22
A115: 43 | B115: 2015-11-10 | D115: Pidilitind | E115: Buy | F115: 549.50 | H115: 630 | I115: 630.00 | J115: Target Achieved | K115: 80.50 | L115: 14.65% | M115: Successful | N115: 2016-02-19
A116: 44 | B116: 2015-12-04 | D116: Zensar Technology | E116: Accu | F116: 1027.50 | H116: 1315 | I116: 1250.00 | J116: Target Achieved | K116: 287.50 | L116: 27.98% | M116: Successful | N116: 2018-05-24
A117: 45 | B117: 2015-12-29 | D117: Vinati Organics Ltd | E117: Accu | F117: 465.00 | H117: 540 | I117: 540.00 | J117: Target Achieved | K117: 75.00 | L117: 16.13% | M117: Successful | N117: 2016-06-09
A118: 46 | B118: 2016-01-11 | D118: GSFC | E118: Buy | F118: 81.00 | H118: 110 | I118: 110.00 | J118: Target Achieved | K118: 29.00 | L118: 35.80% | M118: Successful | N118: 2017-01-10
A119: 47 | B119: 2016-01-13 | D119: SSWL | E119: Buy | F119: 417.50 | H119: 547 | I119: 535.00 | J119: Target Achieved | K119: 129.50 | L119: 31.02% | M119: Successful | N119: 2016-07-27
A120: 48 | B120: 2016-02-08 | D120: Persistent System Ltd | E120: Accu | F120: 650.00 | H120: 800 | I120: 800.00 | J120: Target Achieved | K120: 150.00 | L120: 23.08% | M120: Successful | N120: 2018-02-23
A121: 49 | B121: 2016-03-04 | D121: UPL | E121: Accu | F121: 437.50 | H121: 504.5 | I121: 522.00 | J121: Profit of Rs.67/- | K121: 67.00 | L121: 15.31% | M121: Successful | N121: 2016-04-20
A122: 50 | B122: 2016-03-09 | D122: Ashoka Buildcon Ltd | E122: Accu | F122: 189.50 | H122: 218 | I122: 218.00 | J122: Target Achieved | K122: 28.50 | L122: 15.04% | M122: Successful | N122: 2017-10-26
A123: 51 | B123: 2016-04-11 | D123: PTC INDIA FIN SERV LTD | E123: Accu | F123: 36.5 | H123: 15.85 | I123: 60.00 | J123: Loss of Rs.20.65/- | K123: -20.65 | L123: -56.58% | M123: Unsuccessful | N123: 2019-06-11
A124: 52 | B124: 2016-04-12 | D124: CAMLINFINE $ | E124: Accu | F124: 93.00 | H124: 149 | I124: 140.00 | J124: Profit of Rs 56/- | K124: 56.00 | L124: 60.22% | M124: Successful | N124: 2017-01-05
A125: 53 | B125: 2016-04-12 | D125: Greaves Cotton Ltd. | E125: Accu | F125: 130.00 | H125: 150 | I125: 150-155 | J125: Target Achieved | K125: 20.00 | L125: 15.38% | M125: Successful | N125: 2016-07-13
A126: 54 | B126: 2016-04-13 | D126: DHFL | E126: Accu | F126: 196.00 | H126: 299 | I126: 299.00 | J126: Target Achieved | K126: 103.00 | L126: 52.55% | M126: Successful | N126: 2016-09-07
A127: 55 | B127: 2016-04-13 | D127: Magma | E127: Accu | F127: 88.00 | H127: 103 | I127: 103.00 | J127: Target Achieved | K127: 15.00 | L127: 17.05% | M127: Successful | N127: 2016-06-09
A128: 56 | B128: 2016-05-02 | D128: KEC International ltd $ | E128: Accu | F128: 127.50 | H128: 148 | I128: 148-150 | J128: Target Achieved | K128: =H128-F128 -> 20.50 | L128: =K128/F128 -> 16.08% | M128: Successful | N128: 2016-07-13
A129: 57 | B129: 2016-05-03 | D129: Mindtree | E129: Accu | F129: 675.00 | H129: 815 | I129: 790-800 | J129: Target Achieved | K129: =H129-F129 -> 140.00 | L129: =K129/F129 -> 20.74% | M129: Successful | N129: 2018-02-23
A130: 58 | B130: 2016-06-01 | D130: Atulauto | E130: Accu | F130: 500 | H130: 232.50 | I130: 565-570 | J130: Loss of Rs.267.50 /- | K130: =H130-F130 -> -267.50 | L130: =K130/F130 -> -53.50% | M130: Unsuccessful | N130: 2019-09-27
A131: 59 | B131: 2016-06-06 | D131: TRITURBINE | E131: Accu | F131: 110.00 | H131: 126.5 | I131: 125.00 | J131: Profit of Rs.16.50/- | K131: =H131-F131 -> 16.50 | L131: =K131/F131 -> 15.00% | M131: Successful | N131: 2016-07-01
A132: 60 | B132: 2016-06-17 | D132: Pennar Industries Ltd | E132: Accu | F132: 44.00 | H132: 69.5 | I132: 69.50 | J132: Profit of Rs.25.50/- | K132: =H132-F132 -> 25.50 | L132: =K132/F132 -> 57.95% | M132: Successful | N132: 2017-08-30
A133: 61 | B133: 2016-06-28 | D133: EVEREADY | E133: Accu | F133: 262.50 | H133: 340 | I133: 333.00 | J133: Profit of Rs.77.50/- | K133: 77.50 | L133: 29.52% | M133: Successful | N133: 2017-10-09
A134: 62 | B134: 2016-06-28 | D134: FIEMIND | E134: Accu | F134: 840.00 | H134: 1230 | I134: 1230.00 | J134: Target Achieved | K134: 390.00 | L134: 46.43% | M134: Successful | N134: 2016-10-06
A135: 63 | B135: 2016-07-05 | D135: Bajaj Corp Ltd | E135: Accu | F135: 395 | H135: =(468.5+342.5)/2 -> 405.50 | I135: 510.00 | J135: Profit of Rs.10.50/- | K135: =H135-F135 -> 10.50 | L135: =K135/F135 -> 3% | M135: Neutral | N135: 2019-05-21
A136: 64 | B136: 2016-08-02 | D136: GPPL $ | E136: Buy | F136: =169.5-12.8 -> 156.7 | H136: 77.00 | I136: 198-200 | J136: Loss of Rs.79.7/- | K136: -79.70 | L136: -50.86% | M136: Unsuccessful | N136: 2019-02-26
A137: 65 | B137: 2016-08-04 | D137: WONDERLA HOLIDAYS LTD | E137: Accu | F137: 400 | H137: 305.00 | I137: 475.00 | J137: Loss of Rs.95/- | K137: -95.00 | L137: -23.75% | M137: Unsuccessful | N137: 2019-05-21
A138: 66 | B138: 2016-08-11 | D138: CAMLINFINE | E138: Accu | F138: 86.50 | H138: 130 | I138: 130.00 | J138: Profit of Rs.43.50/- | K138: 43.50 | L138: 50.29% | M138: Successful | N138: 2017-12-22
A139: 67 | B139: 2016-08-18 | D139: GRANULES | E139: Accu | F139: 133.5 | H139: 126.50 | I139: 178.00 | J139: Exit | K139: -7.00 | L139: -5.24% | M139: Unsuccessful | N139: 2016-09-02
A140: 68 | B140: 2016-08-31 | D140: VA TECH WABAG | E140: Accu | F140: 560.00 | H140: 725 | I140: 725.00 | J140: Target Achieved | K140: 165.00 | L140: 29.46% | M140: Successful | N140: 2016-03-27
A141: 69 | B141: 2016-09-01 | D141: SKIPPER LIMITED | E141: Accu | F141: 160.50 | H141: 210 | I141: 210.00 | J141: Target Achieved | K141: 49.50 | L141: 30.84% | M141: Successful | N141: 2017-05-16
A142: 70 | B142: 2016-10-03 | D142: IFBIND | E142: Accu | F142: 430.00 | H142: 596 | I142: 575.00 | J142: Profit of Rs.166/- | K142: 166.00 | L142: 38.60% | M142: Successful | N142: 2017-02-03
A143: 71 | B143: 2016-10-14 | D143: ASIANTILES | E143: Accu | F143: 280.00 | H143: 345 | I143: 345.00 | J143: Target Achieved | K143: =H143-F143 -> 65.00 | L143: =K143/F143 -> 23.21% | M143: Successful | N143: 2017-03-20
A144: 72 | B144: 2016-10-14 | D144: DEEPIND | E144: Accu | F144: 245.00 | H144: 325.5 | I144: 330.00 | J144: Profit of Rs.80.5/- | K144: 80.50 | L144: =K144/F144 -> 32.86% | M144: Successful | N144: 2017-02-03
A145: 73 | B145: 2016-10-17 | D145: DCBBANK | E145: Accu | F145: 125.00 | H145: 160 | I145: 160.00 | J145: Target Achieved | K145: 35.00 | L145: 28.00% | M145: Successful | N145: 2017-03-09
A146: 74 | B146: 2016-10-17 | D146: ORIENTREF | E146: Accu | F146: 114.00 | H146: 145 | I146: 145.00 | J146: Target Achieved | K146: 31.00 | L146: =K146/F146 -> 27.19% | M146: Successful | N146: 2017-05-04
A147: 75 | B147: 2016-10-17 | D147: GANECOS | E147: Accu | F147: 212.00 | H147: 280 | I147: 276.00 | J147: Profit of Rs.68/- | K147: 68.00 | L147: =K147/F147 -> 32.08% | M147: Successful | N147: 2017-05-03
A148: 76 | B148: 2016-11-04 | D148: NBCC | E148: Accu | F148: 155.00 | H148: 210 | I148: 210.00 | J148: Profit of Rs.55/- | K148: 55.00 | L148: =K148/F148 -> 35.48% | M148: Successful | N148: 2017-07-28
A149: 77 | B149: 2016-12-06 | D149: PRECAM | E149: Accu | F149: 150.5 | H149: 72.50 | I149: 174.00 | J149: Loss of Rs.78/- | K149: -78.00 | L149: -51.83% | M149: Unsuccessful | N149: 2018-08-21
A150: 78 | B150: 2016-12-08 | D150: INFRATEL | E150: Accu | F150: 380.00 | H150: 478 | I150: 468.00 | J150: Target Achieved | K150: =H150-F150 -> 98.00 | L150: =K150/F150 -> 25.79% | M150: Successful | N150: 2017-10-17
A151: 79 | B151: 2016-12-30 | D151: GODREJPROP | E151: Accu | F151: 305.00 | H151: 375 | I151: 375.00 | J151: Target Achieved | K151: =H151-F151 -> 70.00 | L151: =K151/F151 -> 22.95% | M151: Successful | N151: 2017-02-02
A152: 80 | B152: 2017-01-04 | D152: DEEPAKNTR | E152: Accu | F152: 99.50 | H152: 158 | I152: 158.00 | J152: Target Achieved | K152: =H152-F152 -> 58.50 | L152: =K152/F152 -> 58.79% | M152: Successful | N152: 2017-06-12
A153: 81 | B153: 2017-01-04 | D153: DEEPAKNTR | E153: Accu | F153: 99.50 | H153: 158 | I153: 158.00 | J153: Target Achieved | K153: 58.50 | L153: 58.79% | M153: Successful | N153: 2017-06-12
A154: 82 | B154: 2017-02-20 | D154: RECLTD | E154: Accu | F154: 140.50 | H154: 220 | I154: 220.00 | J154: Target Achieved | K154: =H154-F154 -> 79.50 | L154: =K154/F154 -> 56.58% | M154: Successful | N154: 2017-05-09
A155: 83 | B155: 2017-02-20 | D155: SUBROS | E155: Accu | F155: 202.50 | H155: 234 | I155: 234.00 | J155: Target Achieved | K155: 31.50 | L155: 15.56% | M155: Successful | N155: 2017-04-11
A156: 84 | B156: 2017-03-24 | D156: VRLLOG | E156: Accu | F156: 300.50 | H156: 417.5 | I156: 420.00 | J156: Profit of Rs.117/- | K156: =H156-F156 -> 117.00 | L156: =K156/F156 -> 38.94% | M156: Successful | N156: 2017-12-01
A157: 85 | B157: 2017-03-24 | D157: FIEMIND | E157: Accu | F157: 850.00 | H157: 1042.5 | I157: 1023.00 | J157: Profit of Rs 192.50/- | K157: 192.50 | L157: 22.65% | M157: Successful | N157: 2017-04-05
A158: 86 | B158: 2017-04-05 | D158: RATNAMANI | E158: Accu | F158: 785.00 | H158: 930 | I158: 920.00 | J158: Profit of Rs.145/- | K158: =H158-F158 -> 145.00 | L158: =K158/F158 -> 18.47% | M158: Successful | N158: 2017-08-29
A159: 87 | B159: 2017-04-06 | D159: ZEEMEDIA | E159: Accu | F159: 40 | H159: 13.10 | I159: 60.00 | J159: Loss of Rs.26.9/- | K159: -26.90 | L159: -67.25% | M159: Unsuccessful | N159: 2018-02-07
A160: 88 | B160: 2017-04-12 | D160: DABUR | E160: Accu | F160: 289.50 | H160: 354 | I160: 360.00 | J160: Profit of Rs.64.5/- | K160: =H160-F160 -> 64.50 | L160: =K160/F160 -> 22.28% | M160: Successful | N160: 2017-11-01
A161: 89 | B161: 2017-04-20 | D161: KPRMILL | E161: Accu | F161: 700.00 | H161: 840 | I161: 840.00 | J161: Profit of Rs.140/- | K161: 140.00 | L161: 20.00% | M161: Successful | N161: 2017-06-07
A162: 90 | B162: 2017-06-01 | D162: ESSELPACK | E162: Accu | F162: 130.00 | H162: 144.25 | I162: 170.00 | J162: Profit of Rs.14.25/- | K162: 14.25 | L162: 10.96% | M162: Successful | N162: 2019-07-29
A163: 91 | B163: 2017-06-15 | D163: KEI | E163: Accu | F163: 214.50 | H163: 262 | I163: 262.00 | J163: Profit of Rs.47.5/- | K163: 47.50 | L163: 22.14% | M163: Successful | N163: 2017-08-30
A164: 92 | B164: 2017-07-17 | D164: MAYURUNIQ | E164: Accu | F164: 370.00 | H164: 447.5 | I164: 450.00 | J164: Target Achieved | K164: 77.50 | L164: 20.95% | M164: Successful | N164: 2017-10-27
A165: 93 | B165: 2017-07-27 | D165: RAMCOCEM | E165: Accu | F165: 657.50 | H165: 825 | I165: 820.00 | J165: Target Achieved | K165: 167.50 | L165: 25.48% | M165: Successful | N165: 2017-12-21
A166: 94 | B166: 2017-08-17 | D166: FINPIPE | E166: Accu | F166: 605.00 | H166: 750 | I166: 750.00 | J166: Profit of Rs.145/- | K166: 145.00 | L166: 23.97% | M166: Successful | N166: 2017-10-19
A167: 95 | B167: 2017-09-01 | D167: SHK | E167: Accu | F167: 255 | H167: 217.25 | I167: 320.00 | J167: Loss of Rs.37.75/- | K167: -37.75 | L167: -15% | M167: Unsuccessful | N167: 2019-07-15
A168: 96 | B168: 2017-09-19 | D168: SKIPPER | E168: Accu | F168: 215.00 | H168: 258 | I168: 258.00 | J168: Target Achieved | K168: 43.00 | L168: 20.00% | M168: Successful | N168: 2017-11-01
A169: 97 | B169: 2017-09-19 | D169: SKIPPER | E169: Accu | F169: 215.00 | H169: 258 | I169: 258.00 | J169: Target Achieved | K169: 43.00 | L169: 20.00% | M169: Successful | N169: 2017-11-01
A170: 98 | B170: 2017-09-20 | D170: CAMLINFINE$ | E170: Accu | F170: 75.00 | H170: 90 | I170: 90.00 | J170: Profit of Rs.15.00/- | K170: =H170-F170 -> 15.00 | L170: =K170/F170 -> 20.00% | M170: Successful | N170: 2017-10-11
A171: 99 | B171: 2017-10-03 | D171: GNA | E171: Accu | F171: 315.00 | H171: 392 | I171: 384.00 | J171: Profit of Rs.77/- | K171: 77.00 | L171: 24.44% | M171: Successful | N171: 2017-10-09
A172: 100 | B172: 2017-10-05 | D172: NOCIL | E172: Accu | F172: 145.00 | H172: 179 | I172: 180.00 | J172: Profit of Rs.34/- | K172: 34.00 | L172: 23.45% | M172: Successful | N172: 2017-10-17
A173: 101 | B173: 2017-10-06 | D173: CENTURYPLY | E173: Accu | F173: 256.00 | H173: 323 | I173: 320.00 | J173: Target Achieved | K173: 67.00 | L173: 26.17% | M173: Successful | N173: 2017-11-28
A174: 102 | B174: 2017-10-09 | D174: EIHOTEL | E174: Accu | F174: 137.50 | H174: 184 | I174: 183.00 | J174: Profit of Rs.46.5/- | K174: 46.50 | L174: 33.82% | M174: Successful | N174: 2018-01-08
A175: 103 | B175: 2017-10-10 | D175: NRBBEARING | E175: Accu | F175: 125.50 | H175: 158 | I175: 155.00 | J175: Profit of Rs.32.5/- | K175: 32.50 | L175: 25.90% | M175: Successful | N175: 2017-11-28
A176: 104 | B176: 2017-10-10 | D176: BOROSIL | E176: Accu | F176: 895.00 | H176: 1122.5 | I176: 1078.00 | J176: Profit of Rs.227.5/- | K176: 227.50 | L176: 25.42% | M176: Successful | N176: 2018-01-17
A177: 105 | B177: 2017-10-12 | D177: CYIENT | E177: Accu | F177: 525.00 | H177: 629 | I177: 629.00 | J177: Target Achieved | K177: 104.00 | L177: 19.81% | M177: Successful | N177: 2018-01-19
A178: 106 | B178: 2017-11-07 | D178: HATSUN | E178: Accu | F178: 740.00 | H178: 892.5 | I178: 900.00 | J178: Profit of Rs.152.5/- | K178: =H178-F178 -> 152.50 | L178: =K178/F178 -> 20.61% | M178: Successful | N178: 2017-11-13
A179: 107 | B179: 2017-12-04 | D179: SANGHIIND | E179: Accu | F179: 118.50 | H179: 143.5 | I179: 145.00 | J179: Profit of Rs.25/- | K179: =H179-F179 -> 25.00 | L179: =K179/F179 -> 21.10% | M179: Successful | N179: 2017-12-28
A180: 108 | B180: 2017-12-21 | D180: KAJARIACER | E180: Accu | F180: 715 | H180: 500.00 | I180: 872.00 | J180: Loss of Rs.215/- | K180: =H180-F180 -> -215.00 | L180: =K180/F180 -> -30.07% | M180: Unsuccessful | N180: 2019-07-24
A181: 109 | B181: 2017-12-29 | D181: GNA | E181: Accu | F181: 435.00 | H181: 542.5 | I181: 539.00 | J181: Target Achieved | K181: 107.50 | L181: 24.71% | M181: Successful | N181: 2018-04-16
A182: 110 | B182: 2017-12-29 | D182: ZENSARTECH | E182: Accu | F182: 885.00 | H182: 1090 | I182: 1084.00 | J182: Target Achieved | K182: 205.00 | L182: 23.16% | M182: Successful | N182: 2018-04-23
A183: 111 | B183: 2018-04-02 | D183: EVERESTIND | E183: Accu | F183: 478.50 | H183: 442 | I183: 613.00 | J183: Loss of Rs.36.50 /- | K183: =H183-F183 -> -36.50 | L183: =K183/F183 -> -7.63% | M183: Unsuccessful | N183: 2019-10-24
A184: 112 | B184: 2018-04-04 | D184: GPPL$ | E184: Accu | F184: =141.5-7.3 -> 134.2 | H184: 77.00 | I184: 180.00 | J184: Loss of Rs.57.2/- | K184: =H184-F184 -> -57.20 | L184: =K184/F184 -> -42.62% | M184: Unsuccessful | N184: 2019-02-26
A185: 113 | B185: 2018-04-19 | D185: MANPASAND | E185: Accu | F185: 430 | H185: 220.00 | I185: 537.00 | J185: Loss of Rs.210/- | K185: =H185-F185 -> -210.00 | L185: =K185/F185 -> -48.84% | M185: Unsuccessful | N185: 2018-06-01
A186: 114 | B186: 2018-04-30 | D186: HEIDELBERG | E186: Accu | F186: 153.5 | H186: 196 | I186: 196.00 | J186: Profit of Rs.42.50/- | K186: =H186-F186 -> 42.50 | L186: =K186/F186 -> 27.69% | M186: Successful | N186: 2019-05-20
A187: 115 | B187: 2018-07-25 | D187: ZEEMEDIA | E187: Accu | F187: 27.5 | H187: 13.10 | I187: 60.00 | J187: Loss of Rs.14.40/- | K187: -14.40 | L187: -52.36% | M187: Unsuccessful | N187: 2018-02-07
A188: 116 | B188: 2018-08-06 | D188: GABRIEL | E188: Accu | F188: 148.5 | H188: 102 | I188: 182.00 | J188: Loss of Rs.46.50/- | K188: =H188-F188 -> -46.50 | L188: =K188/F188 -> -31.31% | M188: Unsuccessful | N188: 2019-07-15
A189: 117 | B189: 2018-08-23 | D189: INDIANHUME | E189: Accu | F189: 285 | H189: 355 | I189: 364.00 | J189: Profit of Rs.70/- | K189: 70.00 | L189: 24.56% | M189: Successful | N189: 2018-12-21
A190: 118 | B190: 2018-08-29 | D190: GRINDWELL | E190: Accu | F190: 525 | H190: 585 | I190: 635.00 | J190: Profit of Rs.60- | K190: =H190-F190 -> 60.00 | L190: =K190/F190 -> 11.43% | M190: Successful | N190: 2019-07-16
A191: 119 | B191: 2018-10-22 | D191: FINPIPE | E191: Accu | F191: 475 | H191: 574 | I191: 570.00 | J191: Target Achieved | K191: 99.00 | L191: 20.84% | M191: Successful | N191: 2018-10-30
A192: 120 | B192: 2018-10-24 | D192: GULFOILLUB | E192: Accu | F192: 707.5 | H192: 872 | I192: 872.00 | J192: Target Achieved | K192: 164.50 | L192: 23.25% | M192: Successful | N192: 2019-01-17
A193: 121 | B193: 2018-10-25 | D193: DBCORP | E193: Accu | F193: 162 | H193: 204 | I193: 209.00 | J193: Profit of Rs.42/- | K193: 42.00 | L193: 25.93% | M193: Successful | N193: 2019-03-15
A194: 122 | B194: 2018-10-26 | D194: RITES | E194: Accu | F194: 240 | H194: 297 | I194: 297.00 | J194: Target Achieved | K194: 57.00 | L194: 23.75% | M194: Successful | N194: 2018-11-13
A195: 123 | B195: 2018-12-05 | D195: BRIGADE | E195: Accu | F195: 202.5 | H195: 255 | I195: 252.00 | J195: Target Achieved | K195: 52.50 | L195: 25.93% | M195: Successful | N195: 2019-03-18 | R195: V
A196: 124 | B196: 2018-12-31 | D196: JKCEMENT | E196: Accu | F196: 710 | H196: 866 | I196: 866.00 | J196: Target Achieved | K196: 156.00 | L196: 21.97% | M196: Successful | N196: 2019-03-29 | R196: V
A197: 125 | B197: 2019-02-26 | D197: MARICO | E197: Accu | F197: 337.25 | H197: 398.5 | I197: 411.00 | J197: Profit of Rs.61.25/- | K197: 61.25 | L197: 18.16% | M197: Successful | N197: 2019-10-22 | R197: V
A198: 126 | B198: 2019-04-04 | D198: ITDCEM | E198: Accu | F198: 130 | H198: 65 | I198: 158.00 | J198: Loss of Rs.65 /- | K198: -65.00 | L198: -50.00% | M198: Unsuccessful | N198: 2019-09-18 | R198: K
A199: 127 | B199: 2017-10-09 | D199: RECLTD | E199: Accu | F199: 141.5 | H199: 183.5 | I199: 210.00 | J199: Profit of Rs.42/- | K199: 42.00 | L199: 29.68% | M199: Successful | N199: 2017-11-03 | R199: K
A200: 128 | B200: 2017-12-05 | D200: ALLCARGO | E200: Accu | F200: 172.00 | H200: 155.25 | I200: 230.00 | J200: Loss of Rs.16.75/- | K200: -16.75 | L200: -9.74% | M200: Unsuccessful | N200: 2019-11-18 | R200: K
A201: 129 | B201: 2018-10-25 | D201: GODREJCP | E201: Accu | F201: 698.5 | H201: 890 | I201: 890.00 | J201: Profit of Rs.191.50/- | K201: 191.50 | L201: 27.42% | M201: Successful | N201: 2021-05-12 | R201: V
A202: 130 | B202: 2017-05-22 | D202: GREAVESCOT | E202: Accu | F202: 127.6 | H202: 138 | I202: 190.00 | J202: Profit of Rs.10.40 | K202: 10.40 | L202: 8.15% | M202: Successful | N202: 2019-11-05 | R202: K
A203: 131 | B203: 2018-02-27 | D203: MOLDTKPAC | E203: Accu | F203: 317 | H203: 382.5 | I203: 398.00 | J203: Profit of Rs.65.5 | K203: 65.50 | L203: 20.66% | M203: Successful | N203: 2021-02-11 | R203: K
A204: 132 | B204: 2018-03-05 | D204: LICHSGFIN | E204: Accu | F204: =510-14.4 -> 495.60 | H204: 350 | I204: 672.00 | J204: Loss of Rs.145.60/- | K204: -145.60 | L204: -29.38% | M204: Unsuccessful | N204: 2020-02-26 | R204: V
A205: 133 | B205: 2018-05-17 | D205: PHILIPCARB | E205: Accu | F205: 230.30 | H205: 102.5 | I205: 348.00 | J205: Loss of Rs.127.80/- | K205: -127.80 | L205: -55.49% | M205: Unsuccessful | N205: 2020-03-06 | R205: V
A206: 134 | B206: 2018-06-07 | D206: KEC | E206: Accu | F206: =342.5-5.1 -> 337.4 | H206: 412.5 | I206: 439.00 | J206: Profit of Rs.75.10 | K206: 75.10 | L206: 22.26% | M206: Successful | N206: 2021-02-03 | R206: K
A207: 135 | B207: 2018-07-04 | D207: ASHOKLEY | E207: Accu | F207: =127.5-5.53 -> 121.97 | H207: 122.50 | I207: 170.00 | J207: Profit of Rs.0.53/- | K207: 0.53 | L207: 0% | M207: Neutral | N207: 2021-08-23 | R207: V
A208: 136 | B208: 2018-07-13 | D208: FCONSUMER | E208: Accu | F208: 46.50 | H208: 17 | I208: 59.00 | J208: Loss of Rs.29.50/- | K208: =H208-F208 -> -29.50 | L208: =K208/F208 -> -63.44% | M208: Unsuccessful | N208: 2020-02-26 | R208: V
A209: 137 | B209: 2018-10-23 | D209: JKPAPER | E209: Accu | F209: 156.5 | H209: 207.5 | I209: 191.00 | J209: Target Achieved | K209: 51.00 | L209: 32.59% | M209: Successful | N209: 2021-06-22 | R209: V
A210: 138 | B210: 2018-12-05 | D210: CCL | E210: Accu | F210: 259.5 | H210: 320 | I210: 320.00 | J210: Target Achieved | K210: 60.50 | L210: 23.31% | M210: Successful | N210: 2021-05-07 | R210: V
A211: 139 | B211: 2018-12-05 | D211: VARROC | E211: Accu | F211: 715 | H211: 445 | I211: 840.00 | J211: Loss of Rs.270/- | K211: -270.00 | L211: -37.76% | M211: Unsuccessful | N211: 2019-12-01 | R211: V
A212: 140 | B212: 2019-01-04 | D212: MGL | E212: Accu | F212: 875 | H212: 1165 | I212: 1185.00 | J212: Profit of Rs.290/- | K212: 290.00 | L212: 33.14% | M212: Successful | N212: 2020-01-17 | R212: V
A213: 141 | B213: 2019-04-04 | D213: COCHINSHIP | E213: Accu | F213: =387-14.63 -> 372.37 | H213: 490 | I213: 490.00 | J213: Target Achieved | K213: 117.63 | L213: 31.59% | M213: Successful | N213: 2020-01-20 | R213: V
A214: 142 | B214: 2019-04-23 | D214: MAHINDCIE | E214: Buy | F214: 220 | H214: 127.5 | I214: 284.00 | J214: Loss of Rs.92.50/- | K214: -92.50 | L214: -42.05% | M214: Unsuccessful | N214: 2020-03-06 | R214: V
A215: 143 | B215: 2019-06-06 | D215: RADICO | E215: Buy | F215: 332.8 | H215: 405 | I215: 419.00 | J215: Profit of Rs.72.20/- | K215: 72.20 | L215: 21.69% | M215: Successful | N215: 2020-01-30 | R215: K
A216: 144 | B216: 2019-06-25 | D216: M&MFIN | E216: Accu | F216: 386 | H216: 395.00 | I216: 452.00 | J216: Profit of Rs.9/- | K216: 9.00 | L216: 2% | M216: Neutral | N216: 2020-02-07 | R216: K
A217: 145 | B217: 2019-08-30 | D217: INDHOTEL | E217: Accu | F217: 137.5 | H217: 138.50 | I217: 190.00 | J217: Profit of Rs.1/- | K217: =H217-F217 -> 1.00 | L217: =K217/F217 -> 1% | M217: Neutral | N217: 2021-08-24 | R217: V
A218: 146 | B218: 2019-09-23 | D218: KNRCON | E218: Accu | F218: 235 | H218: 295 | I218: 296.00 | J218: Profit of Rs.60/- | K218: =H218-F218 -> 60.00 | L218: =K218/F218 -> 25.53% | M218: Successful | N218: 2020-01-14 | R218: K
A219: 147 | B219: 2019-10-14 | D219: KEC$ | E219: Accu | F219: 277.5 | H219: 333 | I219: 333.00 | J219: Profit of Rs.55.50/- | K219: 55.50 | L219: 20.00% | M219: Successful | N219: 2020-01-16 | R219: V
A220: 148 | B220: 2019-10-14 | D220: MGL$ | E220: Accu | F220: 930 | H220: 1165 | I220: 1200.00 | J220: Profit of Rs.235/- | K220: 235.00 | L220: 25.27% | M220: Successful | N220: 2020-01-17 | R220: K
A221: 149 | B221: 2019-10-15 | D221: JKPAPER$ | E221: Accu | F221: 111.00 | H221: 141 | I221: 141.00 | J221: Profit of Rs.30/- | K221: 30.00 | L221: 27.03% | M221: Successful | N221: 2021-05-12 | R221: K
A222: 150 | B222: 2019-10-15 | D222: RADICO$ | E222: Accu | F222: 296.00 | H222: 370 | I222: 370.00 | J222: Target Achieved | K222: 74.00 | L222: 25.00% | M222: Successful | N222: 2020-01-23 | R222: K
... 33 more rows
